Ref No,Fund Type,Dept,Cost Centre Description    ,Description    ,Creditor Name    ,GL Code Net Amount,Payment date        
2,Revenue,CAHD,Central - Commissioned Services,Permanent Residential,1 St Georges House,13333.52, 11-Jan-2022
3,Revenue,CAHD,Early Years High Needs Support,Other Private Contractors,100 Acre Wood Day Nursery,910.07, 21-Jan-2022
4,Revenue,CAHD,CSC - LAC Housing Support Grants,Grants to Voluntary Bodies,1625 Independent People,3343.00, 17-Jan-2022
5,Revenue,CAHD,South - Commissioned Services,Permanent Residential,2Nd Floor Building,5630.76, 11-Jan-2022
6,Revenue,CAHD,South - Commissioned Services,Permanent Residential,2Nd Floor Building,2806.12, 11-Jan-2022
7,Revenue,CAHD,Central - Commissioned Services,Other Small Contracts,3 Trees Community Support Ltd,7005.65, 10-Jan-2022
8,Revenue,CAHD,Central - Commissioned Services,Supported Living,3 Trees Community Support Ltd,3008.32, 10-Jan-2022
9,Revenue,CAHD,Central - Commissioned Services,Other Small Contracts,3 Trees Community Support Ltd,7533.73, 12-Jan-2022
10,Revenue,CAHD,Central - Commissioned Services,Supported Living,3 Trees Community Support Ltd,3008.32, 12-Jan-2022
11,Revenue,CAHD,Central - Commissioned Services,Other Small Contracts,3 Trees Community Support Ltd,7664.02, 20-Jan-2022
12,Revenue,CAHD,Central - Commissioned Services,Supported Living,3 Trees Community Support Ltd,3009.41, 20-Jan-2022
13,Revenue,CAHD,Central - Commissioned Services,Other Small Contracts,3 Trees Community Support Ltd,7525.07, 24-Jan-2022
14,Revenue,CAHD,Central - Commissioned Services,Supported Living,3 Trees Community Support Ltd,3008.32, 24-Jan-2022
15,Revenue,CAHD,South - Commissioned Services,Permanent Residential,5Th Floor Harlech Court,17391.48, 11-Jan-2022
16,Revenue,CAHD,South - Commissioned Services,Permanent Residential,5Th Floor Harlech Court,18290.84, 11-Jan-2022
17,Revenue,CAHD,S28A cases,Permanent Residential,5Th Floor Harlech Court,11378.60, 11-Jan-2022
18,Revenue,CAHD,South - Commissioned Services,Permanent Residential,5Th Floor Harlech Court,11933.40, 11-Jan-2022
19,Revenue,CAHD,North - Community based support,Permanent Residential,5Th Floor Harlech Court,12498.56, 11-Jan-2022
20,Revenue,CAHD,Central - Commissioned Services,Permanent Residential,5Th Floor Harlech Court,47865.09, 11-Jan-2022
21,Revenue,CAHD,Central - Commissioned Services,Permanent Residential,5Th Floor Harlech Court,14891.36, 11-Jan-2022
22,Revenue,CAHD,North - Community based support,Permanent Residential,5Th Floor Harlech Court,10537.24, 11-Jan-2022
23,Revenue,CAHD,North - Community based support,Permanent Residential,5Th Floor Harlech Court,9071.12, 11-Jan-2022
24,Revenue,CAHD,Early Years Inclusion Fund,Other Public Bodies,Abacus Pre-School,1000.00, 25-Jan-2022
25,Revenue,CAHD,Early Years Inclusion Fund,Other Public Bodies,Abacus Pre-School,1350.00, 25-Jan-2022
26,Revenue,CAHD,Early Years High Needs Support,Other Private Contractors,Abacus Pre-School @ Stoke Gifford,596.93, 21-Jan-2022
27,Revenue,CAHD,South - Commissioned Services,Legal Fees,Abid Mahmood,1500.00, 17-Jan-2022
28,Revenue,CAHD,CSC - Vinney Green Secure Unit,Educational Supplies & Equipment,Absolute Bounce,1250.00, 10-Jan-2022
29,Revenue,CAHD,South - Commissioned Services,Permanent Nursing,Acacia House,3085.88, 11-Jan-2022
30,Revenue,CAHD,Central - Commissioned Services,Permanent Nursing,Acacia House,3587.76, 11-Jan-2022
31,Revenue,CAHD,Post 16 High Needs Placements,Other Private Contractors,Access To Music Ltd,3841.33, 12-Jan-2022
32,Revenue,CAHD,Post 16 High Needs Placements,Other Private Contractors,Access To Music Ltd,1894.24, 12-Jan-2022
33,Revenue,CAHD,Post 16 High Needs Placements,Other Private Contractors,Access To Music Ltd,920.98, 12-Jan-2022
34,Revenue,CAHD,Post 16 High Needs Placements,Other Private Contractors,Access To Music Ltd,688.36, 12-Jan-2022
35,Revenue,CAHD,Home Care Monitoring (CM2000),Other Supplies & Services,Access UK Limited,15382.27, 28-Jan-2022
36,Revenue,CAHD,Community Support - South,Preventative Assistance,Accomplish Group,3410.93, 31-Jan-2022
37,Revenue,CAHD,Central - Commissioned Services,Permanent Residential,Acer House Care Home.,3800.00, 11-Jan-2022
38,Revenue,CAHD,Jointly Funded H&SC Packages,Permanent Residential,Acorn Care Providers,2366.36, 11-Jan-2022
39,Revenue,CAHD,Section 117 Placements MH Younger,Permanent Residential,Acorn Care Providers,5605.08, 11-Jan-2022
40,Revenue,CAHD,North - S117,Permanent Residential,Acorn Care Providers,4067.36, 11-Jan-2022
41,Revenue,CAHD,Jointly Funded H&SC Packages,Permanent Residential,Acorn Care Providers,2193.40, 11-Jan-2022
42,Revenue,CAHD,MH Purchasing - Younger,Permanent Residential,Acorn Care Providers,6528.83, 11-Jan-2022
43,Revenue,CAHD,Jointly Funded H&SC Packages,Permanent Residential,Acorn Care Providers,3515.53, 11-Jan-2022
44,Revenue,CAHD,MH Purchasing - Younger,Permanent Residential,Acorn Care Providers,6411.00, 11-Jan-2022
45,Revenue,CAHD,CSC - Agency Fostering,Foster Parent Allowances,Action for Children,3715.35, 13-Jan-2022
46,Revenue,CAHD,CSC - Agency Fostering,Foster Parent Allowances,Action for Children,3715.35, 13-Jan-2022
47,Revenue,CAHD,CSC - Agency Fostering,Foster Parent Allowances,Action for Children,3897.01, 13-Jan-2022
48,Revenue,CAHD,CSC - Professional Fees Foster Carers,Band 3 Foster Care,Adam & Amanda Gibbons,585.29, 07-Jan-2022
49,Revenue,CAHD,Central - Commissioned Services,Day Care / Social Activities,Age Concern,559.36, 11-Jan-2022
50,Revenue,CAHD,Mental Health and Emotional Wellbeing,Grants to Voluntary Bodies,Age UK South Gloucestershire,13725.00, 04-Jan-2022
51,Revenue,CAHD,South - Commissioned Services,Other Small Contracts,Agincare UK Limited,518.70, 20-Jan-2022
52,Revenue,CAHD,South - Commissioned Services,Other Small Contracts,Agincare UK Limited,508.82, 21-Jan-2022
53,Revenue,CAHD,South - Commissioned Services,Other Small Contracts,Agincare UK Limited,528.58, 31-Jan-2022
54,Revenue,CAHD,Extra Care Housing,Private & Voluntary Home Care,Agincare UK Limited,30860.93, 04-Jan-2022
55,Revenue,CAHD,Extra Care Housing,Private & Voluntary Home Care,Agincare UK Limited,5458.37, 10-Jan-2022
56,Revenue,CAHD,Extra Care Housing,Private & Voluntary Home Care,Agincare UK Limited,5458.37, 17-Jan-2022
57,Revenue,CAHD,Extra Care Housing,Private & Voluntary Home Care,Agincare UK Limited,5458.37, 24-Jan-2022
58,Revenue,CAHD,Extra Care Housing,Private & Voluntary Home Care,Agincare UK Limited,5458.37, 31-Jan-2022
59,Revenue,CAHD,Prison Assessments & Costs,Other Supplies & Services,Agincare UK Limited,4400.00, 12-Jan-2022
60,Revenue,CAHD,Covid  - Workforce capacity,Grants to Voluntary Bodies,Agincare UK Limited,6427.34, 10-Jan-2022
61,Revenue,CAHD,Covid  - Workforce capacity,Grants to Voluntary Bodies,Agincare UK Limited,13905.77, 28-Jan-2022
62,Revenue,CAHD,Statemented Support Payments to OLAs,Other L.A.s - General,Air Balloon Hill Primary School,801.92, 21-Jan-2022
63,Revenue,CAHD,Covid 19 -Adult Social Care,Other Small Contracts,AliMo Care Ltd,9.78, 17-Jan-2022
64,Revenue,CAHD,Central - Commissioned Services,Other Small Contracts,AliMo Care Ltd,210.27, 17-Jan-2022
65,Revenue,CAHD,South - Commissioned Services,Other Small Contracts,AliMo Care Ltd,836.19, 17-Jan-2022
66,Revenue,CAHD,North - Community based support,Other Small Contracts,AliMo Care Ltd,132.03, 17-Jan-2022
67,Revenue,CAHD,Covid 19 -Adult Social Care,Other Small Contracts,AliMo Care Ltd,9.78, 17-Jan-2022
68,Revenue,CAHD,Central - Commissioned Services,Other Small Contracts,AliMo Care Ltd,200.49, 17-Jan-2022
69,Revenue,CAHD,South - Commissioned Services,Other Small Contracts,AliMo Care Ltd,787.29, 17-Jan-2022
70,Revenue,CAHD,North - Community based support,Other Small Contracts,AliMo Care Ltd,117.36, 17-Jan-2022
71,Revenue,CAHD,Central - Commissioned Services,Other Small Contracts,AliMo Care Ltd,176.04, 20-Jan-2022
72,Revenue,CAHD,South - Commissioned Services,Other Small Contracts,AliMo Care Ltd,728.61, 20-Jan-2022
73,Revenue,CAHD,North - Community based support,Other Small Contracts,AliMo Care Ltd,127.14, 20-Jan-2022
74,Revenue,CAHD,Covid 19 -Adult Social Care,Other Small Contracts,AliMo Care Ltd,9.78, 20-Jan-2022
75,Revenue,CAHD,Central - Commissioned Services,Other Small Contracts,AliMo Care Ltd,141.81, 20-Jan-2022
76,Revenue,CAHD,South - Commissioned Services,Other Small Contracts,AliMo Care Ltd,811.74, 20-Jan-2022
77,Revenue,CAHD,North - Community based support,Other Small Contracts,AliMo Care Ltd,97.80, 20-Jan-2022
78,Revenue,CAHD,Covid 19 -Adult Social Care,Other Small Contracts,AliMo Care Ltd,9.78, 24-Jan-2022
79,Revenue,CAHD,Central - Commissioned Services,Other Small Contracts,AliMo Care Ltd,136.92, 24-Jan-2022
80,Revenue,CAHD,South - Commissioned Services,Other Small Contracts,AliMo Care Ltd,772.62, 24-Jan-2022
81,Revenue,CAHD,North - Community based support,Other Small Contracts,AliMo Care Ltd,92.91, 24-Jan-2022
82,Revenue,CAHD,Covid 19 -Adult Social Care,Other Small Contracts,AliMo Care Ltd,9.78, 24-Jan-2022
83,Revenue,CAHD,Central - Commissioned Services,Other Small Contracts,AliMo Care Ltd,205.38, 24-Jan-2022
84,Revenue,CAHD,South - Commissioned Services,Other Small Contracts,AliMo Care Ltd,841.08, 24-Jan-2022
85,Revenue,CAHD,North - Community based support,Other Small Contracts,AliMo Care Ltd,132.03, 24-Jan-2022
86,Revenue,CAHD,Covid 19 -Adult Social Care,Other Small Contracts,AliMo Care Ltd,9.78, 24-Jan-2022
87,Revenue,CAHD,Central - Commissioned Services,Other Small Contracts,AliMo Care Ltd,195.60, 24-Jan-2022
88,Revenue,CAHD,South - Commissioned Services,Other Small Contracts,AliMo Care Ltd,801.96, 24-Jan-2022
89,Revenue,CAHD,North - Community based support,Other Small Contracts,AliMo Care Ltd,112.47, 24-Jan-2022
90,Revenue,CAHD,Covid  - Workforce capacity,Grants to Voluntary Bodies,AliMo Care Ltd,3672.76, 14-Jan-2022
91,Revenue,CAHD,Covid  - Workforce capacity,Grants to Voluntary Bodies,AliMo Care Ltd,4120.23, 28-Jan-2022
92,Revenue,CAHD,Covid  - Workforce capacity,Grants to Voluntary Bodies,Alina Homecare Services Limited,1836.38, 10-Jan-2022
93,Revenue,CAHD,South - Commissioned Services,Permanent Nursing,Allambie Court,13404.61, 11-Jan-2022
94,Revenue,CAHD,South - Commissioned Services,Permanent Nursing,Allambie Court,2734.44, 11-Jan-2022
95,Revenue,CAHD,South - Commissioned Services,Respite Planned - Nursing,Allambie Court,2629.07, 11-Jan-2022
96,Revenue,CAHD,Central - Commissioned Services,Permanent Residential,Alvony House Residential Care Home,3000.00, 11-Jan-2022
97,Revenue,CAHD,Mental Health and Emotional Wellbeing,Grants to Voluntary Bodies,Alzheimers Society,11142.75, 04-Jan-2022
98,Revenue,CAHD,CSC - Residential Placements,Permanent Residential,Ambito Care and Education,19920.87, 31-Jan-2022
99,Revenue,CAHD,CSC - Residential Placements,Permanent Residential,Ambito Care and Education,19930.88, 31-Jan-2022
100,Revenue,CAHD,CSC - Agency Fostering,Foster Parent Allowances,Amicus Foster Care Ltd,4796.44, 27-Jan-2022
101,Revenue,CAHD,CSC - Allowances,ADPN Allowances,Individual,2472.99, 28-Jan-2022
102,Revenue,CAHD,CSC - Allowances,ADPN Allowances,Individual,1584.00, 28-Jan-2022
103,Revenue,CAHD,Social Lettings Agency,Rent,Individual,822.73, 20-Jan-2022
104,Revenue,CAHD,Social Lettings Agency,Fees & Charges Income - General,Individual,-65.82, 20-Jan-2022
105,Revenue,CAHD,Younger MH non-res purchasing,Supported Living,Archcare Rehab Limited,2002.44, 11-Jan-2022
106,Revenue,CAHD,South - Commissioned Services,Permanent Residential,Ash Lea House,5551.92, 11-Jan-2022
107,Revenue,CAHD,South - Commissioned Services,Permanent Residential,Ash View House,5655.48, 11-Jan-2022
108,Revenue,CAHD,Jointly Funded H&SC Packages,Permanent Residential,Ash View House,1160.84, 11-Jan-2022
109,Revenue,CAHD,S117 Placements PCT,Permanent Residential,Ash View House,7884.72, 11-Jan-2022
110,Revenue,CAHD,North - Community based support,Permanent Residential,Ash View House,7099.52, 11-Jan-2022
111,Revenue,CAHD,North - Community based support,Permanent Residential,Ash View House,7120.00, 11-Jan-2022
112,Revenue,CAHD,Section 117 Placements MH Younger,Permanent Residential,Ash View House,5135.96, 11-Jan-2022
113,Revenue,CAHD,Jointly Funded H&SC Packages,Permanent Residential,Ash View House,2204.28, 11-Jan-2022
114,Revenue,CAHD,South - S117,Permanent Residential,Ash View House,6983.64, 11-Jan-2022
115,Revenue,CAHD,South - Commissioned Services,Permanent Residential,Ash View House,6903.04, 11-Jan-2022
116,Revenue,CAHD,Covid  - Workforce capacity,Grants to Voluntary Bodies,Ash View House,2838.04, 25-Jan-2022
117,Revenue,CAHD,CSC - Legal Fees,Legal Fees,Individual,800.00, 31-Jan-2022
118,Revenue,CAHD,18-25 Year Olds,Other Small Contracts,Aspirations,4043.84, 04-Jan-2022
119,Revenue,CAHD,18-25 Year Olds,Supported Living,Aspirations,361.86, 04-Jan-2022
120,Revenue,CAHD,Central - Commissioned Services,Other Small Contracts,Aspirations,144.00, 04-Jan-2022
121,Revenue,CAHD,South - Commissioned Services,Day Care / Social Activities,Aspirations,1506.12, 04-Jan-2022
122,Revenue,CAHD,South - Commissioned Services,Other Small Contracts,Aspirations,2958.45, 04-Jan-2022
123,Revenue,CAHD,South - Commissioned Services,Supported Living,Aspirations,14725.41, 04-Jan-2022
124,Revenue,CAHD,North - Community based support,Supported Living,Aspirations,3450.24, 04-Jan-2022
125,Revenue,CAHD,18-25 Year Olds,Other Small Contracts,Aspirations,2594.54, 12-Jan-2022
126,Revenue,CAHD,18-25 Year Olds,Supported Living,Aspirations,224.94, 12-Jan-2022
127,Revenue,CAHD,Central - Commissioned Services,Other Small Contracts,Aspirations,96.00, 12-Jan-2022
128,Revenue,CAHD,South - Commissioned Services,Day Care / Social Activities,Aspirations,1496.34, 12-Jan-2022
129,Revenue,CAHD,South - Commissioned Services,Other Small Contracts,Aspirations,3200.15, 12-Jan-2022
130,Revenue,CAHD,South - Commissioned Services,Supported Living,Aspirations,12203.14, 12-Jan-2022
131,Revenue,CAHD,North - Community based support,Supported Living,Aspirations,1388.70, 12-Jan-2022
132,Revenue,CAHD,18-25 Year Olds,Other Small Contracts,Aspirations,2509.28, 19-Jan-2022
133,Revenue,CAHD,18-25 Year Olds,Supported Living,Aspirations,303.18, 19-Jan-2022
134,Revenue,CAHD,Central - Commissioned Services,Other Small Contracts,Aspirations,48.00, 19-Jan-2022
135,Revenue,CAHD,South - Commissioned Services,Day Care / Social Activities,Aspirations,1506.12, 19-Jan-2022
136,Revenue,CAHD,South - Commissioned Services,Other Small Contracts,Aspirations,3013.11, 19-Jan-2022
137,Revenue,CAHD,South - Commissioned Services,Supported Living,Aspirations,12874.65, 19-Jan-2022
138,Revenue,CAHD,North - Community based support,Supported Living,Aspirations,1023.36, 19-Jan-2022
139,Revenue,CAHD,18-25 Year Olds,Other Small Contracts,Aspirations,4278.56, 20-Jan-2022
140,Revenue,CAHD,18-25 Year Olds,Supported Living,Aspirations,361.86, 20-Jan-2022
141,Revenue,CAHD,Central - Commissioned Services,Other Small Contracts,Aspirations,144.00, 20-Jan-2022
142,Revenue,CAHD,South - Commissioned Services,Day Care / Social Activities,Aspirations,1481.67, 20-Jan-2022
143,Revenue,CAHD,South - Commissioned Services,Other Small Contracts,Aspirations,3032.22, 20-Jan-2022
144,Revenue,CAHD,South - Commissioned Services,Supported Living,Aspirations,14510.57, 20-Jan-2022
145,Revenue,CAHD,North - Community based support,Supported Living,Aspirations,3444.48, 20-Jan-2022
146,Revenue,CAHD,18-25 Year Olds,Other Small Contracts,Aspirations,3970.58, 31-Jan-2022
147,Revenue,CAHD,18-25 Year Olds,Supported Living,Aspirations,361.86, 31-Jan-2022
148,Revenue,CAHD,Central - Commissioned Services,Other Small Contracts,Aspirations,144.00, 31-Jan-2022
149,Revenue,CAHD,South - Commissioned Services,Day Care / Social Activities,Aspirations,1413.21, 31-Jan-2022
150,Revenue,CAHD,South - Commissioned Services,Other Small Contracts,Aspirations,3281.16, 31-Jan-2022
151,Revenue,CAHD,South - Commissioned Services,Supported Living,Aspirations,14475.09, 31-Jan-2022
152,Revenue,CAHD,North - Community based support,Supported Living,Aspirations,3432.96, 31-Jan-2022
153,Revenue,CAHD,Covid  - Workforce capacity,Grants to Voluntary Bodies,Aspirations,12854.67, 10-Jan-2022
154,Revenue,CAHD,Covid  - Workforce capacity,Grants to Voluntary Bodies,Aspirations,28154.90, 28-Jan-2022
155,Revenue,CAHD,CSC - Care Leavers Independent Living,Adults - Family Support,Aspirations Support Bristol Limited,15419.68, 27-Jan-2022
156,Revenue,CAHD,CSC - Care Leavers Independent Living,Adults - Family Support,Aspirations Support Bristol Limited,15419.68, 31-Jan-2022
157,Revenue,CAHD,Covid  - Workforce capacity,Grants to Voluntary Bodies,Aspire Care SW Limited,1252.08, 14-Jan-2022
158,Revenue,CAHD,Alexandra Way,Building Improvements,Aspire Environmental Limited,715.00, 21-Jan-2022
159,Revenue,CAHD,South - Commissioned Services,Adults - Family Support,Ategi Limited,828.90, 20-Jan-2022
160,Revenue,CAHD,South - Commissioned Services,Adults - Family Support,Ategi Limited,663.12, 31-Jan-2022
161,Revenue,CAHD,South - Commissioned Services,Adults - Family Support,Ategi Limited,17042.85, 05-Jan-2022
162,Revenue,CAHD,Statemented Support Academies,Other Public Bodies,Athelstan Trust,718.08, 21-Jan-2022
163,Revenue,CAHD,Statemented Support Academies,Other Public Bodies,Athelstan Trust,1101.42, 21-Jan-2022
164,Revenue,CAHD,Statemented Support Academies,Other Public Bodies,Athelstan Trust,722.42, 21-Jan-2022
165,Revenue,CAHD,Statemented Support Academies,Other Public Bodies,Athelstan Trust,1342.25, 21-Jan-2022
166,Revenue,CAHD,Statemented Support Academies,Other Public Bodies,Athelstan Trust,1367.64, 21-Jan-2022
167,Revenue,CAHD,Statemented Support Academies,Other Public Bodies,Athelstan Trust,771.42, 21-Jan-2022
168,Revenue,CAHD,Statemented Support Academies,Other Public Bodies,Athelstan Trust,1436.25, 21-Jan-2022
169,Revenue,CAHD,Statemented Support Academies,Other Public Bodies,Athelstan Trust,588.75, 21-Jan-2022
170,Revenue,CAHD,Statemented Support Academies,Other Public Bodies,Athelstan Trust,934.13, 21-Jan-2022
171,Revenue,CAHD,Statemented Support Academies,Other Public Bodies,Athelstan Trust,3514.12, 24-Jan-2022
172,Revenue,CAHD,Statemented Support Academies,Other Public Bodies,Athelstan Trust,926.58, 21-Jan-2022
173,Revenue,CAHD,Statemented Support Academies,Other Public Bodies,Athelstan Trust,1066.65, 21-Jan-2022
174,Revenue,CAHD,Academy Resource Base Funding,Other Public Bodies,Athelstan Trust,849.32, 21-Jan-2022
175,Revenue,CAHD,Academy Resource Base Funding,Other Public Bodies,Athelstan Trust,2513.88, 21-Jan-2022
176,Revenue,CAHD,Academy Resource Base Funding,Other Public Bodies,Athelstan Trust,2513.88, 21-Jan-2022
177,Revenue,CAHD,Academy Resource Base Funding,Other Public Bodies,Athelstan Trust,2513.88, 21-Jan-2022
178,Revenue,CAHD,Academy Resource Base Funding,Other Public Bodies,Athelstan Trust,2513.88, 21-Jan-2022
179,Revenue,CAHD,Academy Resource Base Funding,Other Public Bodies,Athelstan Trust,2513.88, 21-Jan-2022
180,Revenue,CAHD,Academy Resource Base Funding,Other Public Bodies,Athelstan Trust,2513.88, 21-Jan-2022
181,Revenue,CAHD,Academy Resource Base Funding,Other Public Bodies,Athelstan Trust,2513.88, 21-Jan-2022
182,Revenue,CAHD,Academy Resource Base Funding,Other Public Bodies,Athelstan Trust,2513.88, 21-Jan-2022
183,Revenue,CAHD,Academy Resource Base Funding,Other Public Bodies,Athelstan Trust,2513.88, 21-Jan-2022
184,Revenue,CAHD,Academy Resource Base Funding,Other Public Bodies,Athelstan Trust,2513.88, 21-Jan-2022
185,Revenue,CAHD,Academy Resource Base Funding,Other Public Bodies,Athelstan Trust,2513.88, 21-Jan-2022
186,Revenue,CAHD,South - Commissioned Services,Permanent Residential,Autism Specialised Care Homes,6506.88, 11-Jan-2022
187,Revenue,CAHD,Younger Adult Mental Health,Health Services (Third Party Payments),Avon & Wiltshire Mental Health,14583.00, 17-Jan-2022
188,Revenue,CAHD,Younger Adult Mental Health,Agency Staff (Admin/Support Staff) Pay,Avon & Wiltshire Mental Health,1070.00, 25-Jan-2022
189,Revenue,CAHD,Younger Adult Mental Health,Health Services (Third Party Payments),Avon & Wiltshire Mental Health,1693.33, 25-Jan-2022
190,Revenue,CAHD,Younger Adult Mental Health,Agency Staff (Admin/Support Staff) Pay,Avon & Wiltshire Mental Health,2985.00, 25-Jan-2022
191,Revenue,CAHD,Younger Adult Mental Health,Health Services (Third Party Payments),Avon & Wiltshire Mental Health,1693.33, 28-Jan-2022
192,Revenue,CAHD,South Glos Users in South Glos Homes,Permanent Nursing,Avon Lodge Care Centre,750.40, 11-Jan-2022
193,Revenue,CAHD,South Glos Users in South Glos Homes,Permanent Nursing,Avon Lodge Care Centre,750.40, 11-Jan-2022
194,Revenue,CAHD,North - Community based support,Permanent Nursing,Avon Lodge Care Centre,9512.57, 11-Jan-2022
195,Revenue,CAHD,North - Community based support,Permanent Nursing,Avon Lodge Care Centre,4296.00, 11-Jan-2022
196,Revenue,CAHD,South Glos Users in South Glos Homes,Permanent Nursing,Avon Lodge Care Centre,750.40, 11-Jan-2022
197,Revenue,CAHD,Central - Commissioned Services,Respite Planned - Nursing,Avon Lodge Care Centre,6444.72, 11-Jan-2022
198,Revenue,CAHD,South Glos Users in South Glos Homes,Permanent Nursing,Avon Lodge Care Centre,750.40, 11-Jan-2022
199,Revenue,CAHD,South - Commissioned Services,Permanent Nursing,Avon Lodge Care Centre,3339.08, 11-Jan-2022
200,Revenue,CAHD,South Glos Users in South Glos Homes,Permanent Nursing,Avon Lodge Care Centre,750.40, 11-Jan-2022
201,Revenue,CAHD,South Glos Users in South Glos Homes,Permanent Nursing,Avon Lodge Care Centre,750.40, 11-Jan-2022
202,Revenue,CAHD,South - Commissioned Services,Permanent Nursing,Avon Lodge Care Centre,4296.00, 11-Jan-2022
203,Revenue,CAHD,South Glos Users in South Glos Homes,Permanent Nursing,Avon Lodge Care Centre,750.40, 11-Jan-2022
204,Revenue,CAHD,South - Commissioned Services,Permanent Nursing,Avon Lodge Care Centre,3539.60, 11-Jan-2022
205,Revenue,CAHD,South Glos Users in South Glos Homes,Permanent Nursing,Avon Lodge Care Centre,750.40, 11-Jan-2022
206,Revenue,CAHD,South Glos Users in South Glos Homes,Permanent Nursing,Avon Lodge Care Centre,750.40, 11-Jan-2022
207,Revenue,CAHD,South - Commissioned Services,Permanent Nursing,Avon Lodge Care Centre,4447.88, 11-Jan-2022
208,Revenue,CAHD,South Glos Users in South Glos Homes,Permanent Nursing,Avon Lodge Care Centre,750.40, 11-Jan-2022
209,Revenue,CAHD,South Glos Users in South Glos Homes,Permanent Nursing,Avon Lodge Care Centre,750.40, 11-Jan-2022
210,Revenue,CAHD,South - Commissioned Services,Permanent Nursing,Avon Lodge Care Centre,4505.12, 11-Jan-2022
211,Revenue,CAHD,South Glos Users in South Glos Homes,Permanent Nursing,Avon Lodge Care Centre,750.40, 11-Jan-2022
212,Revenue,CAHD,South - Commissioned Services,Permanent Residential,Avon Lodge Care Centre,3600.00, 11-Jan-2022
213,Revenue,CAHD,South - Commissioned Services,Permanent Nursing,Avon Lodge Care Centre,4410.32, 11-Jan-2022
214,Revenue,CAHD,South Glos Users in South Glos Homes,Permanent Nursing,Avon Lodge Care Centre,750.40, 11-Jan-2022
215,Revenue,CAHD,South - Commissioned Services,Permanent Nursing,Avon Lodge Care Centre,4400.00, 11-Jan-2022
216,Revenue,CAHD,South Glos Users in South Glos Homes,Permanent Nursing,Avon Lodge Care Centre,750.40, 11-Jan-2022
217,Revenue,CAHD,South Glos Users in South Glos Homes,Permanent Nursing,Avon Lodge Care Centre,750.40, 11-Jan-2022
218,Revenue,CAHD,South Glos Users in South Glos Homes,Permanent Nursing,Avon Lodge Care Centre,3510.80, 11-Jan-2022
219,Revenue,CAHD,South Glos Users in South Glos Homes,Permanent Nursing,Avon Lodge Care Centre,750.40, 11-Jan-2022
220,Revenue,CAHD,South Glos Users in South Glos Homes,Permanent Nursing,Avon Lodge Care Centre,750.40, 11-Jan-2022
221,Revenue,CAHD,Central - Commissioned Services,Permanent Nursing,Avon Lodge Care Centre,3974.16, 11-Jan-2022
222,Revenue,CAHD,South Glos Users in South Glos Homes,Permanent Nursing,Avon Lodge Care Centre,750.40, 11-Jan-2022
223,Revenue,CAHD,South - Commissioned Services,Permanent Nursing,Avon Lodge Care Centre,3887.40, 11-Jan-2022
224,Revenue,CAHD,South Glos Users in South Glos Homes,Permanent Nursing,Avon Lodge Care Centre,750.40, 11-Jan-2022
225,Revenue,CAHD,South - Commissioned Services,Permanent Nursing,Avon Lodge Care Centre,4296.48, 11-Jan-2022
226,Revenue,CAHD,Central - Commissioned Services,Respite Planned - Nursing,Avon Lodge Care Centre,3068.91, 11-Jan-2022
227,Revenue,CAHD,South Glos Users in South Glos Homes,Permanent Nursing,Avon Lodge Care Centre,4636.40, 11-Jan-2022
228,Revenue,CAHD,South Glos Users in South Glos Homes,Permanent Nursing,Avon Lodge Care Centre,750.40, 11-Jan-2022
229,Revenue,CAHD,Central - Commissioned Services,Permanent Nursing,Avon Lodge Care Centre,3887.40, 11-Jan-2022
230,Revenue,CAHD,South Glos Users in South Glos Homes,Permanent Nursing,Avon Lodge Care Centre,750.40, 11-Jan-2022
231,Revenue,CAHD,North - Community based support,Permanent Residential,Avon Lodge Care Centre,3539.60, 11-Jan-2022
232,Revenue,CAHD,South Glos Users in South Glos Homes,Permanent Nursing,Avon Lodge Care Centre,750.40, 11-Jan-2022
233,Revenue,CAHD,Central - Commissioned Services,Respite Planned - Nursing,Avon Lodge Care Centre,2406.27, 11-Jan-2022
234,Revenue,CAHD,South Glos Users in South Glos Homes,Permanent Nursing,Avon Lodge Care Centre,750.40, 11-Jan-2022
235,Revenue,CAHD,South Glos Users in South Glos Homes,Permanent Nursing,Avon Lodge Care Centre,2787.20, 11-Jan-2022
236,Revenue,CAHD,South - Commissioned Services,Permanent Nursing,Avon Lodge Care Centre,4296.48, 11-Jan-2022
237,Revenue,CAHD,South - Commissioned Services,Permanent Nursing,Avon Lodge Care Centre,4634.24, 11-Jan-2022
238,Revenue,CAHD,South Glos Users in South Glos Homes,Permanent Nursing,Avon Lodge Care Centre,750.40, 11-Jan-2022
239,Revenue,CAHD,South - S117,Permanent Nursing,Avon Lodge Care Centre,3974.84, 11-Jan-2022
240,Revenue,CAHD,South Glos Users in South Glos Homes,Permanent Nursing,Avon Lodge Care Centre,750.40, 11-Jan-2022
241,Revenue,CAHD,South - Commissioned Services,Respite Planned - Nursing,Avon Lodge Care Centre,6920.00, 11-Jan-2022
242,Revenue,CAHD,South - Commissioned Services,Respite Planned - Nursing,Avon Lodge Care Centre,1730.00, 11-Jan-2022
243,Revenue,CAHD,South Glos Users in South Glos Homes,Permanent Nursing,Avon Lodge Care Centre,750.40, 11-Jan-2022
244,Revenue,CAHD,North - Community based support,Permanent Nursing,Avon Lodge Care Centre,3887.40, 11-Jan-2022
245,Revenue,CAHD,South Glos Users in South Glos Homes,Permanent Nursing,Avon Lodge Care Centre,750.40, 11-Jan-2022
246,Revenue,CAHD,South - Commissioned Services,Permanent Nursing,Avon Lodge Care Centre,4296.48, 11-Jan-2022
247,Revenue,CAHD,South - Commissioned Services,Permanent Residential,Avon Lodge Care Centre,3130.40, 11-Jan-2022
248,Revenue,CAHD,South Glos Users in South Glos Homes,Permanent Nursing,Avon Lodge Care Centre,750.40, 11-Jan-2022
249,Revenue,CAHD,South Glos Users in South Glos Homes,Permanent Nursing,Avon Lodge Care Centre,750.40, 11-Jan-2022
250,Revenue,CAHD,South - Commissioned Services,Permanent Nursing,Avon Lodge Care Centre,3800.00, 11-Jan-2022
251,Revenue,CAHD,South Glos Users in South Glos Homes,Permanent Nursing,Avon Lodge Care Centre,750.40, 11-Jan-2022
252,Revenue,CAHD,Covid  - Workforce capacity,Grants to Voluntary Bodies,Avon Lodge Care Centre,4424.01, 14-Jan-2022
253,Revenue,CAHD,Covid  - Workforce capacity,Grants to Voluntary Bodies,Avon Lodge Care Centre,9098.84, 28-Jan-2022
254,Revenue,CAHD,"Physical Activity, Nutrition & Obesity",Redundancy/Early Retirement,Avon Pension Fund,1680.98, 31-Jan-2022
255,Revenue,CAHD,South - Commissioned Services,Permanent Residential,Avon Valley Care Home,4092.00, 11-Jan-2022
256,Revenue,CAHD,South - Commissioned Services,Permanent Residential,Avon Valley Care Home,4270.00, 11-Jan-2022
257,Revenue,CAHD,South - Commissioned Services,Permanent Residential,Avon Valley Care Home,4270.00, 11-Jan-2022
258,Revenue,CAHD,South - S117,Permanent Residential,Avon Valley Care Home,4092.00, 11-Jan-2022
259,Revenue,CAHD,South - Commissioned Services,Permanent Residential,Avon Valley Care Home,4051.08, 11-Jan-2022
260,Revenue,CAHD,South - Commissioned Services,Permanent Residential,Avon Valley Care Home,4230.00, 11-Jan-2022
261,Revenue,CAHD,South - Commissioned Services,Permanent Residential,Avon Valley Care Home,4051.08, 11-Jan-2022
262,Revenue,CAHD,South - Commissioned Services,Permanent Residential,Avon Valley Care Home,4270.00, 11-Jan-2022
263,Revenue,CAHD,South - Commissioned Services,Permanent Residential,Avon Valley Care Home,4910.40, 11-Jan-2022
264,Revenue,CAHD,South - Commissioned Services,Permanent Residential,Avon Valley Care Home,4230.00, 11-Jan-2022
265,Revenue,CAHD,South - Commissioned Services,Permanent Residential,Avon Valley Care Home,4051.08, 11-Jan-2022
266,Revenue,CAHD,South - Commissioned Services,Permanent Residential,Avon Valley Care Home,4230.00, 11-Jan-2022
267,Revenue,CAHD,South - Commissioned Services,Permanent Residential,Avon Valley Care Home,4230.00, 11-Jan-2022
268,Revenue,CAHD,South - Commissioned Services,Permanent Residential,Avon Valley Care Home,4230.00, 11-Jan-2022
269,Revenue,CAHD,Central - Commissioned Services,Permanent Residential,Avon Valley Care Home,4092.00, 11-Jan-2022
270,Revenue,CAHD,South - Commissioned Services,Permanent Residential,Avon Valley Care Home,4092.00, 11-Jan-2022
271,Revenue,CAHD,North - Community based support,Permanent Residential,Avonmere Care Home,4680.00, 11-Jan-2022
272,Revenue,CAHD,Covid 19- Spend on behalf of NHS,Respite Planned - Residential,Avonmere Care Home,2514.29, 11-Jan-2022
273,Revenue,CAHD,North - Community based support,Permanent Residential,Avonmere Care Home,4892.00, 11-Jan-2022
274,Revenue,CAHD,North - Community based support,Permanent Residential,Avonmere Care Home,4521.68, 11-Jan-2022
275,Revenue,CAHD,Covid 19- Spend on behalf of NHS,Respite Planned - Residential,Avonmere Care Home,942.86, 11-Jan-2022
276,Revenue,CAHD,North - Community based support,Permanent Residential,Avonmere Care Home,4600.00, 11-Jan-2022
277,Revenue,CAHD,North - Community based support,Permanent Residential,Avonmere Care Home,4720.00, 11-Jan-2022
278,Revenue,CAHD,Central - Commissioned Services,Respite Planned - Residential,Avonmere Care Home,5185.71, 11-Jan-2022
279,Revenue,CAHD,Central - Commissioned Services,Respite Planned - Residential,Avonmere Care Home,2200.00, 11-Jan-2022
280,Revenue,CAHD,Covid 19- Spend on behalf of NHS,Respite Planned - Residential,Avonmere Care Home,2514.29, 11-Jan-2022
281,Revenue,CAHD,Covid 19- Spend on behalf of NHS,Respite Planned - Residential,Avonmere Care Home,2671.43, 11-Jan-2022
282,Revenue,CAHD,Bed and Breakfast,Storage & Removal,B W Removals,1115.00, 11-Jan-2022
283,Revenue,CAHD,North - Community based support,Permanent Nursing,Badminton Place,4864.32, 11-Jan-2022
284,Revenue,CAHD,South Glos Users in South Glos Homes,Permanent Nursing,Badminton Place,750.40, 11-Jan-2022
285,Revenue,CAHD,North - Community based support,Permanent Nursing,Badminton Place,8700.00, 11-Jan-2022
286,Revenue,CAHD,North - Community based support,Permanent Nursing,Badminton Place,5800.00, 11-Jan-2022
287,Revenue,CAHD,North - Community based support,Fees & Charges Income - General,Badminton Place,913.20, 11-Jan-2022
288,Revenue,CAHD,North - Community based support,Permanent Nursing,Badminton Place,727.43, 11-Jan-2022
289,Revenue,CAHD,South Glos Users in South Glos Homes,Permanent Nursing,Badminton Place,750.40, 11-Jan-2022
290,Revenue,CAHD,South Glos Users in South Glos Homes,Permanent Nursing,Badminton Place,750.40, 11-Jan-2022
291,Revenue,CAHD,Training - Adult Services,Books & Publications,BCP Council,500.00, 20-Jan-2022
292,Revenue,CAHD,South Glos Users in South Glos Homes,Permanent Nursing,Beaufort Grange Care Home,750.40, 11-Jan-2022
293,Revenue,CAHD,South Glos Users in South Glos Homes,Permanent Nursing,Beaufort Grange Care Home,750.40, 11-Jan-2022
294,Revenue,CAHD,South Glos Users in South Glos Homes,Permanent Nursing,Beaufort Grange Care Home,750.40, 11-Jan-2022
295,Revenue,CAHD,Central - Commissioned Services,Permanent Nursing,Beaufort Grange Care Home,11684.00, 11-Jan-2022
296,Revenue,CAHD,South Glos Users in South Glos Homes,Permanent Nursing,Beaufort Grange Care Home,750.40, 11-Jan-2022
297,Revenue,CAHD,South Glos Users in South Glos Homes,Permanent Nursing,Beaufort Grange Care Home,750.40, 11-Jan-2022
298,Revenue,CAHD,Central - Commissioned Services,Permanent Nursing,Beaufort Grange Care Home,5400.00, 11-Jan-2022
299,Revenue,CAHD,South Glos Users in South Glos Homes,Permanent Nursing,Beaufort Grange Care Home,750.40, 11-Jan-2022
300,Revenue,CAHD,South Glos Users in South Glos Homes,Permanent Nursing,Beaufort Grange Care Home,750.40, 11-Jan-2022
301,Revenue,CAHD,North - Community based support,Permanent Nursing,Beaufort Grange Care Home,4369.60, 11-Jan-2022
302,Revenue,CAHD,South Glos Users in South Glos Homes,Permanent Nursing,Beaufort Grange Care Home,750.40, 11-Jan-2022
303,Revenue,CAHD,South - Commissioned Services,Permanent Nursing,Beaufort Grange Care Home,4449.60, 11-Jan-2022
304,Revenue,CAHD,South Glos Users in South Glos Homes,Permanent Nursing,Beaufort Grange Care Home,750.40, 11-Jan-2022
305,Revenue,CAHD,South Glos Users in South Glos Homes,Permanent Nursing,Beaufort Grange Care Home,750.40, 11-Jan-2022
306,Revenue,CAHD,South Glos Users in South Glos Homes,Permanent Nursing,Beaufort Grange Care Home,750.40, 11-Jan-2022
307,Revenue,CAHD,South Glos Users in South Glos Homes,Permanent Nursing,Beaufort Grange Care Home,750.40, 11-Jan-2022
308,Revenue,CAHD,South Glos Users in South Glos Homes,Permanent Nursing,Beaufort Grange Care Home,750.40, 11-Jan-2022
309,Revenue,CAHD,South Glos Users in South Glos Homes,Permanent Nursing,Beaufort Grange Care Home,750.40, 11-Jan-2022
310,Revenue,CAHD,South Glos Users in South Glos Homes,Permanent Nursing,Beaufort Grange Care Home,750.40, 11-Jan-2022
311,Revenue,CAHD,South Glos Users in South Glos Homes,Permanent Nursing,Beaufort Grange Care Home,750.40, 11-Jan-2022
312,Revenue,CAHD,South Glos Users in South Glos Homes,Permanent Nursing,Beaufort Grange Care Home,750.40, 11-Jan-2022
313,Revenue,CAHD,South Glos Users in South Glos Homes,Permanent Nursing,Beaufort Grange Care Home,750.40, 11-Jan-2022
314,Revenue,CAHD,North - S117,Permanent Nursing,Beaufort Grange Care Home,5400.00, 11-Jan-2022
315,Revenue,CAHD,Central - Commissioned Services,Permanent Nursing,Beaufort Grange Care Home,5500.00, 11-Jan-2022
316,Revenue,CAHD,South Glos Users in South Glos Homes,Permanent Nursing,Beaufort Grange Care Home,750.40, 11-Jan-2022
317,Revenue,CAHD,North - Community based support,Permanent Nursing,Beaufort Grange Care Home,10620.00, 11-Jan-2022
318,Revenue,CAHD,South Glos Users in South Glos Homes,Permanent Nursing,Beaufort Grange Care Home,750.40, 11-Jan-2022
319,Revenue,CAHD,South Glos Users in South Glos Homes,Permanent Nursing,Beaufort Grange Care Home,750.40, 11-Jan-2022
320,Revenue,CAHD,South Glos Users in South Glos Homes,Permanent Nursing,Beaufort Grange Care Home,750.40, 11-Jan-2022
321,Revenue,CAHD,South Glos Users in South Glos Homes,Permanent Nursing,Beaufort Grange Care Home,750.40, 11-Jan-2022
322,Revenue,CAHD,South Glos Users in South Glos Homes,Permanent Nursing,Beaufort Grange Care Home,750.40, 11-Jan-2022
323,Revenue,CAHD,South Glos Users in South Glos Homes,Permanent Nursing,Beaufort Grange Care Home,750.40, 11-Jan-2022
324,Revenue,CAHD,South Glos Users in South Glos Homes,Permanent Nursing,Beaufort Grange Care Home,750.40, 11-Jan-2022
325,Revenue,CAHD,South Glos Users in South Glos Homes,Permanent Nursing,Beaufort Grange Care Home,750.40, 11-Jan-2022
326,Revenue,CAHD,South Glos Users in South Glos Homes,Permanent Nursing,Beaufort Grange Care Home,750.40, 11-Jan-2022
327,Revenue,CAHD,South Glos Users in South Glos Homes,Permanent Nursing,Beaufort Grange Care Home,750.40, 11-Jan-2022
328,Revenue,CAHD,South Glos Users in South Glos Homes,Permanent Nursing,Beaufort Grange Care Home,750.40, 11-Jan-2022
329,Revenue,CAHD,South Glos Users in South Glos Homes,Permanent Nursing,Beaufort Grange Care Home,750.40, 11-Jan-2022
330,Revenue,CAHD,South Glos Users in South Glos Homes,Permanent Nursing,Beaufort Grange Care Home,750.40, 11-Jan-2022
331,Revenue,CAHD,South Glos Users in South Glos Homes,Permanent Nursing,Beaufort Grange Care Home,4395.20, 11-Jan-2022
332,Revenue,CAHD,South Glos Users in South Glos Homes,Permanent Nursing,Beaufort Grange Care Home,750.40, 11-Jan-2022
333,Revenue,CAHD,South Glos Users in South Glos Homes,Permanent Nursing,Beaufort Grange Care Home,1500.80, 11-Jan-2022
334,Revenue,CAHD,South Glos Users in South Glos Homes,Permanent Nursing,Beaufort Grange Care Home,2706.80, 11-Jan-2022
335,Revenue,CAHD,South Glos Users in South Glos Homes,Permanent Nursing,Beaufort Grange Care Home,750.40, 11-Jan-2022
336,Revenue,CAHD,South Glos Users in South Glos Homes,Permanent Nursing,Beaufort Grange Care Home,2331.60, 11-Jan-2022
337,Revenue,CAHD,South Glos Users in South Glos Homes,Permanent Nursing,Beaufort Grange Care Home,750.40, 11-Jan-2022
338,Revenue,CAHD,South - Commissioned Services,Respite Planned - Nursing,Beaufort Grange Care Home,3200.00, 11-Jan-2022
339,Revenue,CAHD,Jointly Funded H&SC Packages,Respite Planned - Nursing,Beaufort Grange Care Home,3200.00, 11-Jan-2022
340,Revenue,CAHD,South - Commissioned Services,Respite Planned - Nursing,Beaufort Grange Care Home,4571.43, 11-Jan-2022
341,Revenue,CAHD,South Glos Users in South Glos Homes,Permanent Nursing,Beaufort Grange Care Home,750.40, 11-Jan-2022
342,Revenue,CAHD,South Glos Users in South Glos Homes,Permanent Nursing,Beaufort Grange Care Home,750.40, 11-Jan-2022
343,Revenue,CAHD,South Glos Users in South Glos Homes,Permanent Nursing,Beaufort Grange Care Home,509.20, 11-Jan-2022
344,Revenue,CAHD,Central - Commissioned Services,Permanent Residential,Beaufort House,2991.84, 11-Jan-2022
345,Revenue,CAHD,Central - Commissioned Services,Permanent Residential,Beaufort House,2896.24, 11-Jan-2022
346,Revenue,CAHD,Central - Commissioned Services,Permanent Residential,Beaufort House,3800.00, 11-Jan-2022
347,Revenue,CAHD,North - Community based support,Permanent Residential,Beaufort House,4000.00, 11-Jan-2022
348,Revenue,CAHD,North - Community based support,Permanent Residential,Beaufort House,2817.28, 11-Jan-2022
349,Revenue,CAHD,Central - Commissioned Services,Permanent Residential,Beaufort House,4000.00, 11-Jan-2022
350,Revenue,CAHD,Central - Commissioned Services,Permanent Residential,Beaufort House,6760.00, 11-Jan-2022
351,Revenue,CAHD,Central - Commissioned Services,Permanent Residential,Beaufort House,3380.00, 11-Jan-2022
352,Revenue,CAHD,Central - Commissioned Services,Fees & Charges Income - General,Beaufort House,1767.56, 11-Jan-2022
353,Revenue,CAHD,Central - Commissioned Services,Permanent Residential,Beaufort House,3200.00, 11-Jan-2022
354,Revenue,CAHD,Central - Commissioned Services,Permanent Residential,Beaufort House,4000.00, 11-Jan-2022
355,Revenue,CAHD,North - Community based support,Permanent Residential,Beaufort House,4000.00, 11-Jan-2022
356,Revenue,CAHD,Central - Commissioned Services,Permanent Residential,Beaufort House,3600.00, 11-Jan-2022
357,Revenue,CAHD,Central - Commissioned Services,Permanent Residential,Beaufort House,3857.14, 11-Jan-2022
358,Revenue,CAHD,Central - Commissioned Services,Permanent Residential,Beaufort House,3600.00, 11-Jan-2022
359,Revenue,CAHD,Central - Commissioned Services,Respite Planned - Residential,Beaufort House,2200.00, 11-Jan-2022
360,Revenue,CAHD,Covid  - Workforce capacity,Grants to Voluntary Bodies,Beaufort House,2060.11, 28-Jan-2022
361,Revenue,CAHD,South Glos Users in South Glos Homes,Permanent Nursing,Beech House,750.40, 11-Jan-2022
362,Revenue,CAHD,South Glos Users in South Glos Homes,Permanent Nursing,Beech House,750.40, 11-Jan-2022
363,Revenue,CAHD,South Glos Users in South Glos Homes,Permanent Nursing,Beech House,750.40, 11-Jan-2022
364,Revenue,CAHD,South Glos Users in South Glos Homes,Permanent Nursing,Beech House,750.40, 11-Jan-2022
365,Revenue,CAHD,Central - Commissioned Services,Permanent Residential,Beech House,1280.00, 11-Jan-2022
366,Revenue,CAHD,South Glos Users in South Glos Homes,Permanent Nursing,Beech House,750.40, 11-Jan-2022
367,Revenue,CAHD,South Glos Users in South Glos Homes,Permanent Nursing,Beech House,6807.20, 11-Jan-2022
368,Revenue,CAHD,South Glos Users in South Glos Homes,Permanent Nursing,Beech House,750.40, 11-Jan-2022
369,Revenue,CAHD,South Glos Users in South Glos Homes,Permanent Nursing,Beech House,750.40, 11-Jan-2022
370,Revenue,CAHD,North - Community based support,Permanent Nursing,Beech House,4378.44, 11-Jan-2022
371,Revenue,CAHD,South Glos Users in South Glos Homes,Permanent Nursing,Beech House,750.40, 11-Jan-2022
372,Revenue,CAHD,South Glos Users in South Glos Homes,Permanent Nursing,Beech House,750.40, 11-Jan-2022
373,Revenue,CAHD,South Glos Users in South Glos Homes,Permanent Nursing,Beech House,2417.23, 11-Jan-2022
374,Revenue,CAHD,North - Community based support,Permanent Nursing,Beech House,4407.12, 11-Jan-2022
375,Revenue,CAHD,South Glos Users in South Glos Homes,Permanent Nursing,Beech House,750.40, 11-Jan-2022
376,Revenue,CAHD,North - Community based support,Permanent Residential,Beech House,4480.00, 11-Jan-2022
377,Revenue,CAHD,South - Commissioned Services,Permanent Residential,Beech House,4480.00, 11-Jan-2022
378,Revenue,CAHD,North - Community based support,Permanent Residential,Beech House,4480.00, 11-Jan-2022
379,Revenue,CAHD,South Glos Users in South Glos Homes,Permanent Nursing,Beech House,750.40, 11-Jan-2022
380,Revenue,CAHD,South Glos Users in South Glos Homes,Permanent Nursing,Beech House,750.40, 11-Jan-2022
381,Revenue,CAHD,North - Community based support,Permanent Residential,Beech House,4480.00, 11-Jan-2022
382,Revenue,CAHD,South Glos Users in South Glos Homes,Permanent Nursing,Beech House,750.40, 11-Jan-2022
383,Revenue,CAHD,South Glos Users in South Glos Homes,Permanent Nursing,Beech House,750.40, 11-Jan-2022
384,Revenue,CAHD,South Glos Users in South Glos Homes,Permanent Nursing,Beech House,750.40, 11-Jan-2022
385,Revenue,CAHD,South Glos Users in South Glos Homes,Permanent Nursing,Beech House,750.40, 11-Jan-2022
386,Revenue,CAHD,North - Community based support,Permanent Nursing,Beech House,8642.86, 11-Jan-2022
387,Revenue,CAHD,North - Community based support,Permanent Nursing,Beech House,4400.00, 11-Jan-2022
388,Revenue,CAHD,North - Community based support,Fees & Charges Income - General,Beech House,1365.84, 11-Jan-2022
389,Revenue,CAHD,North - Community based support,Fees & Charges Income - General,Beech House,1174.11, 11-Jan-2022
390,Revenue,CAHD,North - Community based support,Permanent Residential,Beech House,4460.28, 11-Jan-2022
391,Revenue,CAHD,Covid  - Workforce capacity,Grants to Voluntary Bodies,Beech House,4006.65, 10-Jan-2022
392,Revenue,CAHD,South Glos Users in South Glos Homes,Permanent Nursing,Beechwood Care Home,1122.40, 11-Jan-2022
393,Revenue,CAHD,18-25 Year Olds,Permanent Residential,Beechwood Court Ltd,14491.31, 31-Jan-2022
394,Revenue,CAHD,18-25 Year Olds,Permanent Residential,Beechwood Court Ltd,20867.62, 31-Jan-2022
395,Revenue,CAHD,Central - Commissioned Services,Respite Planned - Residential,Begbrook House Nursing Home,3400.00, 11-Jan-2022
396,Revenue,CAHD,South - Commissioned Services,Permanent Nursing,Begbrook House Nursing Home,3593.88, 11-Jan-2022
397,Revenue,CAHD,North - Community based support,Permanent Nursing,Begbrook House Nursing Home,3234.72, 11-Jan-2022
398,Revenue,CAHD,Covid 19- Spend on behalf of NHS,Respite Planned - Nursing,Begbrook House Nursing Home,3972.00, 11-Jan-2022
399,Revenue,CAHD,South - Commissioned Services,Permanent Residential,Begbrook House Nursing Home,3400.00, 11-Jan-2022
400,Revenue,CAHD,Central - Commissioned Services,Permanent Nursing,Begbrook House Nursing Home,3400.00, 11-Jan-2022
401,Revenue,CAHD,Independent Special Placements - Pre 16,Other Private Contractors,Belgrave School,4942.00, 14-Jan-2022
402,Revenue,CAHD,Independent Special Placements - Pre 16,Other Private Contractors,Belgrave School,8289.00, 14-Jan-2022
403,Revenue,CAHD,Independent Special Placements - Pre 16,Other Private Contractors,Belgrave School,6932.00, 14-Jan-2022
404,Revenue,CAHD,ICES / NRS Contract,Legal Fees,Bevan Brittan LLP,720.50, 07-Jan-2022
405,Revenue,CAHD,ICES / NRS Contract,Legal Fees,Bevan Brittan LLP,2316.25, 20-Jan-2022
406,Revenue,CAHD,South - S117,Permanent Residential,Bidna House,3774.24, 11-Jan-2022
407,Revenue,CAHD,Placements OLA Special Schools and RB,Other L.A.s - General,Blaise High School,834.87, 21-Jan-2022
408,Revenue,CAHD,Placements OLA Special Schools and RB,Other L.A.s - General,Blaise High School,792.40, 21-Jan-2022
409,Revenue,CAHD,Statemented Support Payments to OLAs,Other L.A.s - General,Blaise High School,907.83, 21-Jan-2022
410,Revenue,CAHD,Placements OLA Special Schools and RB,Other L.A.s - General,Blaise High School,792.40, 21-Jan-2022
411,Revenue,CAHD,18-25 Year Olds,Other Small Contracts,Blakehill Healthcare Ltd,456.25, 04-Jan-2022
412,Revenue,CAHD,Central - Commissioned Services,Other Small Contracts,Blakehill Healthcare Ltd,5662.50, 04-Jan-2022
413,Revenue,CAHD,South - Commissioned Services,Other Small Contracts,Blakehill Healthcare Ltd,5455.22, 04-Jan-2022
414,Revenue,CAHD,North - Community based support,Other Small Contracts,Blakehill Healthcare Ltd,5263.44, 04-Jan-2022
415,Revenue,CAHD,18-25 Year Olds,Other Small Contracts,Blakehill Healthcare Ltd,418.76, 19-Jan-2022
416,Revenue,CAHD,Central - Commissioned Services,Other Small Contracts,Blakehill Healthcare Ltd,6012.50, 19-Jan-2022
417,Revenue,CAHD,South - Commissioned Services,Other Small Contracts,Blakehill Healthcare Ltd,4415.70, 19-Jan-2022
418,Revenue,CAHD,North - Community based support,Other Small Contracts,Blakehill Healthcare Ltd,3999.20, 19-Jan-2022
419,Revenue,CAHD,18-25 Year Olds,Other Small Contracts,Blakehill Healthcare Ltd,356.25, 26-Jan-2022
420,Revenue,CAHD,Central - Commissioned Services,Other Small Contracts,Blakehill Healthcare Ltd,5781.25, 26-Jan-2022
421,Revenue,CAHD,South - Commissioned Services,Other Small Contracts,Blakehill Healthcare Ltd,4377.99, 26-Jan-2022
422,Revenue,CAHD,North - Community based support,Other Small Contracts,Blakehill Healthcare Ltd,4042.28, 26-Jan-2022
423,Revenue,CAHD,18-25 Year Olds,Other Small Contracts,Blakehill Healthcare Ltd,375.00, 24-Jan-2022
424,Revenue,CAHD,Central - Commissioned Services,Other Small Contracts,Blakehill Healthcare Ltd,5612.50, 24-Jan-2022
425,Revenue,CAHD,South - Commissioned Services,Other Small Contracts,Blakehill Healthcare Ltd,4397.79, 24-Jan-2022
426,Revenue,CAHD,North - Community based support,Other Small Contracts,Blakehill Healthcare Ltd,3695.85, 24-Jan-2022
427,Revenue,CAHD,18-25 Year Olds,Other Small Contracts,Blakehill Healthcare Ltd,343.75, 24-Jan-2022
428,Revenue,CAHD,Central - Commissioned Services,Other Small Contracts,Blakehill Healthcare Ltd,5718.75, 24-Jan-2022
429,Revenue,CAHD,South - Commissioned Services,Other Small Contracts,Blakehill Healthcare Ltd,4009.94, 24-Jan-2022
430,Revenue,CAHD,North - Community based support,Other Small Contracts,Blakehill Healthcare Ltd,3680.45, 24-Jan-2022
431,Revenue,CAHD,18-25 Year Olds,Other Small Contracts,Blakehill Healthcare Ltd,425.00, 24-Jan-2022
432,Revenue,CAHD,Central - Commissioned Services,Other Small Contracts,Blakehill Healthcare Ltd,5987.50, 24-Jan-2022
433,Revenue,CAHD,South - Commissioned Services,Other Small Contracts,Blakehill Healthcare Ltd,4398.97, 24-Jan-2022
434,Revenue,CAHD,North - Community based support,Other Small Contracts,Blakehill Healthcare Ltd,3710.70, 24-Jan-2022
435,Revenue,CAHD,18-25 Year Olds,Other Small Contracts,Blakehill Healthcare Ltd,468.75, 26-Jan-2022
436,Revenue,CAHD,Central - Commissioned Services,Other Small Contracts,Blakehill Healthcare Ltd,6081.25, 26-Jan-2022
437,Revenue,CAHD,South - Commissioned Services,Other Small Contracts,Blakehill Healthcare Ltd,5253.20, 26-Jan-2022
438,Revenue,CAHD,North - Community based support,Other Small Contracts,Blakehill Healthcare Ltd,3654.46, 26-Jan-2022
439,Revenue,CAHD,18-25 Year Olds,Other Small Contracts,Blakehill Healthcare Ltd,362.50, 26-Jan-2022
440,Revenue,CAHD,Central - Commissioned Services,Other Small Contracts,Blakehill Healthcare Ltd,6006.25, 26-Jan-2022
441,Revenue,CAHD,South - Commissioned Services,Other Small Contracts,Blakehill Healthcare Ltd,5980.00, 26-Jan-2022
442,Revenue,CAHD,North - Community based support,Other Small Contracts,Blakehill Healthcare Ltd,3720.30, 26-Jan-2022
443,Revenue,CAHD,South Glos Users in South Glos Homes,Permanent Nursing,Blossom Fields Nursing Home,750.40, 11-Jan-2022
444,Revenue,CAHD,South Glos Users in South Glos Homes,Permanent Nursing,Blossom Fields Nursing Home,750.40, 11-Jan-2022
445,Revenue,CAHD,South Glos Users in South Glos Homes,Permanent Nursing,Blossom Fields Nursing Home,750.40, 11-Jan-2022
446,Revenue,CAHD,South Glos Users in South Glos Homes,Permanent Nursing,Blossom Fields Nursing Home,750.40, 11-Jan-2022
447,Revenue,CAHD,South Glos Users in South Glos Homes,Permanent Nursing,Blossom Fields Nursing Home,750.40, 11-Jan-2022
448,Revenue,CAHD,South Glos Users in South Glos Homes,Permanent Nursing,Blossom Fields Nursing Home,750.40, 11-Jan-2022
449,Revenue,CAHD,North - Community based support,Permanent Nursing,Blossom Fields Nursing Home,4910.28, 11-Jan-2022
450,Revenue,CAHD,South Glos Users in South Glos Homes,Permanent Nursing,Blossom Fields Nursing Home,750.40, 11-Jan-2022
451,Revenue,CAHD,South Glos Users in South Glos Homes,Permanent Nursing,Blossom Fields Nursing Home,750.40, 11-Jan-2022
452,Revenue,CAHD,South Glos Users in South Glos Homes,Permanent Nursing,Blossom Fields Nursing Home,750.40, 11-Jan-2022
453,Revenue,CAHD,North - Community based support,Permanent Nursing,Blossom Fields Nursing Home,17266.36, 11-Jan-2022
454,Revenue,CAHD,North - Community based support,Permanent Nursing,Blossom Fields Nursing Home,2508.79, 11-Jan-2022
455,Revenue,CAHD,North - Community based support,Permanent Nursing,Blossom Fields Nursing Home,1623.33, 11-Jan-2022
456,Revenue,CAHD,South Glos Users in South Glos Homes,Permanent Nursing,Blossom Fields Nursing Home,750.40, 11-Jan-2022
457,Revenue,CAHD,North - Community based support,Fees & Charges Income - General,Blossom Fields Nursing Home,2088.19, 11-Jan-2022
458,Revenue,CAHD,South Glos Users in South Glos Homes,Permanent Nursing,Blossom Fields Nursing Home,750.40, 11-Jan-2022
459,Revenue,CAHD,South Glos Users in South Glos Homes,Permanent Nursing,Blossom Fields Nursing Home,1661.60, 11-Jan-2022
460,Revenue,CAHD,South Glos Users in South Glos Homes,Permanent Nursing,Blossom Fields Nursing Home,750.40, 11-Jan-2022
461,Revenue,CAHD,North - Community based support,Permanent Residential,Blossom Fields Nursing Home,4132.12, 11-Jan-2022
462,Revenue,CAHD,South Glos Users in South Glos Homes,Permanent Nursing,Blossom Fields Nursing Home,750.40, 11-Jan-2022
463,Revenue,CAHD,South Glos Users in South Glos Homes,Permanent Nursing,Blossom Fields Nursing Home,750.40, 11-Jan-2022
464,Revenue,CAHD,North - Community based support,Permanent Nursing,Blossom Fields Nursing Home,4132.12, 11-Jan-2022
465,Revenue,CAHD,South Glos Users in South Glos Homes,Permanent Nursing,Blossom Fields Nursing Home,750.40, 11-Jan-2022
466,Revenue,CAHD,South Glos Users in South Glos Homes,Permanent Nursing,Blossom Fields Nursing Home,750.40, 11-Jan-2022
467,Revenue,CAHD,South Glos Users in South Glos Homes,Permanent Nursing,Blossom Fields Nursing Home,750.40, 11-Jan-2022
468,Revenue,CAHD,South Glos Users in South Glos Homes,Permanent Nursing,Blossom Fields Nursing Home,750.40, 11-Jan-2022
469,Revenue,CAHD,South Glos Users in South Glos Homes,Permanent Nursing,Blossom Fields Nursing Home,750.40, 11-Jan-2022
470,Revenue,CAHD,South Glos Users in South Glos Homes,Permanent Nursing,Blossom Fields Nursing Home,750.40, 11-Jan-2022
471,Revenue,CAHD,South Glos Users in South Glos Homes,Permanent Nursing,Blossom Fields Nursing Home,750.40, 11-Jan-2022
472,Revenue,CAHD,South Glos Users in South Glos Homes,Permanent Nursing,Blossom Fields Nursing Home,750.40, 11-Jan-2022
473,Revenue,CAHD,South Glos Users in South Glos Homes,Permanent Nursing,Blossom Fields Nursing Home,750.40, 11-Jan-2022
474,Revenue,CAHD,North - Community based support,Permanent Nursing,Blossom Fields Nursing Home,3792.92, 11-Jan-2022
475,Revenue,CAHD,South Glos Users in South Glos Homes,Permanent Nursing,Blossom Fields Nursing Home,750.40, 11-Jan-2022
476,Revenue,CAHD,Covid  - Workforce capacity,Grants to Voluntary Bodies,Blossom Fields Nursing Home,4424.01, 10-Jan-2022
477,Revenue,CAHD,South Glos Users in South Glos Homes,Permanent Nursing,Blossom Fields Nursing Home,750.40, 11-Jan-2022
478,Revenue,CAHD,Central - Commissioned Services,Respite Emergency - Residential,Blossom Fields Nursing Home,1463.79, 11-Jan-2022
479,Revenue,CAHD,North - Community based support,Permanent Residential,Blossom Fields Nursing Home,3800.00, 11-Jan-2022
480,Revenue,CAHD,South Glos Users in South Glos Homes,Permanent Nursing,Blossom Fields Nursing Home,750.40, 11-Jan-2022
481,Revenue,CAHD,South - Commissioned Services,Respite Planned - Nursing,Blossom Fields Nursing Home,2700.00, 11-Jan-2022
482,Revenue,CAHD,South - Commissioned Services,Respite Planned - Nursing,Blossom Fields Nursing Home,2700.00, 11-Jan-2022
483,Revenue,CAHD,South Glos Users in South Glos Homes,Permanent Nursing,Blossom Fields Nursing Home,750.40, 11-Jan-2022
484,Revenue,CAHD,Central - Commissioned Services,Permanent Residential,Blossom Fields Nursing Home,3800.00, 11-Jan-2022
485,Revenue,CAHD,South Glos Users in South Glos Homes,Permanent Nursing,Blossom Fields Nursing Home,750.40, 11-Jan-2022
486,Revenue,CAHD,South Glos Users in South Glos Homes,Permanent Nursing,Blossom Fields Nursing Home,750.40, 11-Jan-2022
487,Revenue,CAHD,South - Commissioned Services,Permanent Nursing,Blossom Fields Nursing Home,4790.76, 11-Jan-2022
488,Revenue,CAHD,South Glos Users in South Glos Homes,Permanent Nursing,Blossom Fields Nursing Home,750.40, 11-Jan-2022
489,Revenue,CAHD,South Glos Users in South Glos Homes,Permanent Nursing,Blossom Fields Nursing Home,750.40, 11-Jan-2022
490,Revenue,CAHD,Central - Commissioned Services,Permanent Nursing,Blossom Fields Nursing Home,5123.80, 11-Jan-2022
491,Revenue,CAHD,South Glos Users in South Glos Homes,Permanent Nursing,Blossom Fields Nursing Home,750.40, 11-Jan-2022
492,Revenue,CAHD,Central - Commissioned Services,Permanent Nursing,Blossom Fields Nursing Home,4132.12, 11-Jan-2022
493,Revenue,CAHD,South Glos Users in South Glos Homes,Permanent Nursing,Blossom Fields Nursing Home,750.40, 11-Jan-2022
494,Revenue,CAHD,South - Commissioned Services,Permanent Nursing,Blossom Fields Nursing Home,3943.04, 11-Jan-2022
495,Revenue,CAHD,South Glos Users in South Glos Homes,Permanent Nursing,Blossom Fields Nursing Home,750.40, 11-Jan-2022
496,Revenue,CAHD,South Glos Users in South Glos Homes,Permanent Nursing,Blossom Fields Nursing Home,1098.80, 11-Jan-2022
497,Revenue,CAHD,South Glos Users in South Glos Homes,Permanent Nursing,Blossom Fields Nursing Home,750.40, 11-Jan-2022
498,Revenue,CAHD,Central - Commissioned Services,Permanent Nursing,Blossom Fields Nursing Home,4132.12, 11-Jan-2022
499,Revenue,CAHD,South Glos Users in South Glos Homes,Permanent Nursing,Blossom Fields Nursing Home,750.40, 11-Jan-2022
500,Revenue,CAHD,Central - Commissioned Services,Permanent Nursing,Blossom Fields Nursing Home,4790.76, 11-Jan-2022
501,Revenue,CAHD,South Glos Users in South Glos Homes,Permanent Nursing,Blossom Fields Nursing Home,750.40, 11-Jan-2022
502,Revenue,CAHD,South Glos Users in South Glos Homes,Permanent Nursing,Blossom Fields Nursing Home,750.40, 11-Jan-2022
503,Revenue,CAHD,South Glos Users in South Glos Homes,Permanent Nursing,Blossom Fields Nursing Home,750.40, 11-Jan-2022
504,Revenue,CAHD,South Glos Users in South Glos Homes,Permanent Nursing,Blossom Fields Nursing Home,750.40, 11-Jan-2022
505,Revenue,CAHD,South - Commissioned Services,Permanent Nursing,Blossom Fields Nursing Home,4133.20, 11-Jan-2022
506,Revenue,CAHD,North - S117,Permanent Residential,Blossom Fields Nursing Home,4910.40, 11-Jan-2022
507,Revenue,CAHD,South Glos Users in South Glos Homes,Permanent Nursing,Blossom Fields Nursing Home,750.40, 11-Jan-2022
508,Revenue,CAHD,South Glos Users in South Glos Homes,Permanent Nursing,Blossom Fields Nursing Home,750.40, 11-Jan-2022
509,Revenue,CAHD,South Glos Users in South Glos Homes,Permanent Nursing,Blossom Fields Nursing Home,750.40, 11-Jan-2022
510,Revenue,CAHD,North - S117,Permanent Residential,Blossom Fields Nursing Home,5115.00, 11-Jan-2022
511,Revenue,CAHD,South Glos Users in South Glos Homes,Permanent Nursing,Blossom Fields Nursing Home,750.40, 11-Jan-2022
512,Revenue,CAHD,South Glos Users in South Glos Homes,Permanent Nursing,Blossom Fields Nursing Home,750.40, 11-Jan-2022
513,Revenue,CAHD,Central - Commissioned Services,Permanent Nursing,Blossom Fields Nursing Home,4818.72, 11-Jan-2022
514,Revenue,CAHD,South Glos Users in South Glos Homes,Permanent Nursing,Blossom Fields Nursing Home,750.40, 11-Jan-2022
515,Revenue,CAHD,South Glos Users in South Glos Homes,Permanent Nursing,Blossom Fields Nursing Home,750.40, 11-Jan-2022
516,Revenue,CAHD,Central - Commissioned Services,Permanent Nursing,Blossom Fields Nursing Home,4132.12, 11-Jan-2022
517,Revenue,CAHD,South Glos Users in South Glos Homes,Permanent Nursing,Blossom Fields Nursing Home,750.40, 11-Jan-2022
518,Revenue,CAHD,Central - Commissioned Services,Permanent Nursing,Blossom Fields Nursing Home,4600.00, 11-Jan-2022
519,Revenue,CAHD,South Glos Users in South Glos Homes,Permanent Nursing,Blossom Fields Nursing Home,750.40, 11-Jan-2022
520,Revenue,CAHD,Central - Commissioned Services,Respite Planned - Residential,Blossom Fields Nursing Home,9890.16, 11-Jan-2022
521,Revenue,CAHD,South Glos Users in South Glos Homes,Permanent Nursing,Blossom Fields Nursing Home,750.40, 11-Jan-2022
522,Revenue,CAHD,South Glos Users in South Glos Homes,Permanent Nursing,Blossom Fields Nursing Home,750.40, 11-Jan-2022
523,Revenue,CAHD,South Glos Users in South Glos Homes,Permanent Nursing,Blossom Fields Nursing Home,750.40, 11-Jan-2022
524,Revenue,CAHD,South Glos Users in South Glos Homes,Permanent Nursing,Blossom Fields Nursing Home,750.40, 11-Jan-2022
525,Revenue,CAHD,South Glos Users in South Glos Homes,Permanent Nursing,Blossom Fields Nursing Home,750.40, 11-Jan-2022
526,Revenue,CAHD,South Glos Users in South Glos Homes,Permanent Nursing,Blossom Fields Nursing Home,750.40, 11-Jan-2022
527,Revenue,CAHD,South - Commissioned Services,Permanent Nursing,Blossom Fields Nursing Home,5000.00, 11-Jan-2022
528,Revenue,CAHD,South Glos Users in South Glos Homes,Permanent Nursing,Blossom Fields Nursing Home,750.40, 11-Jan-2022
529,Revenue,CAHD,South Glos Users in South Glos Homes,Permanent Nursing,Blossom Fields Nursing Home,750.40, 11-Jan-2022
530,Revenue,CAHD,Central - Commissioned Services,Fees & Charges Income - General,Blossom Fields Nursing Home,552.69, 11-Jan-2022
531,Revenue,CAHD,North - S117,Permanent Nursing,Blossom Fields Nursing Home,4132.12, 11-Jan-2022
532,Revenue,CAHD,South Glos Users in South Glos Homes,Permanent Nursing,Blossom Fields Nursing Home,750.40, 11-Jan-2022
533,Revenue,CAHD,Central - Commissioned Services,Fees & Charges Income - General,Blossom Fields Nursing Home,931.24, 11-Jan-2022
534,Revenue,CAHD,South Glos Users in South Glos Homes,Permanent Nursing,Blossom Fields Nursing Home,750.40, 11-Jan-2022
535,Revenue,CAHD,South Glos Users in South Glos Homes,Permanent Nursing,Blossom Fields Nursing Home,750.40, 11-Jan-2022
536,Revenue,CAHD,South Glos Users in South Glos Homes,Permanent Nursing,Blossom Fields Nursing Home,3108.80, 11-Jan-2022
537,Revenue,CAHD,South Glos Users in South Glos Homes,Permanent Nursing,Blossom Fields Nursing Home,750.40, 11-Jan-2022
538,Revenue,CAHD,South Glos Users in South Glos Homes,Permanent Nursing,Blossom Fields Nursing Home,750.40, 11-Jan-2022
539,Revenue,CAHD,South Glos Users in South Glos Homes,Permanent Nursing,Blossom Fields Nursing Home,750.40, 11-Jan-2022
540,Revenue,CAHD,South Glos Users in South Glos Homes,Permanent Nursing,Blossom Fields Nursing Home,750.40, 11-Jan-2022
541,Revenue,CAHD,North - Community based support,Permanent Nursing,Blossom Fields Nursing Home,4133.20, 11-Jan-2022
542,Revenue,CAHD,South Glos Users in South Glos Homes,Permanent Nursing,Blossom Fields Nursing Home,750.40, 11-Jan-2022
543,Revenue,CAHD,South - Commissioned Services,Permanent Nursing,Blossom Fields Nursing Home,3600.00, 11-Jan-2022
544,Revenue,CAHD,South Glos Users in South Glos Homes,Permanent Nursing,Blossom Fields Nursing Home,750.40, 11-Jan-2022
545,Revenue,CAHD,Central - Commissioned Services,Permanent Nursing,Blossom Fields Nursing Home,5115.00, 11-Jan-2022
546,Revenue,CAHD,South Glos Users in South Glos Homes,Permanent Nursing,Blossom Fields Nursing Home,750.40, 11-Jan-2022
547,Revenue,CAHD,South Glos Users in South Glos Homes,Permanent Nursing,Blossom Fields Nursing Home,723.60, 11-Jan-2022
548,Revenue,CAHD,Central - Commissioned Services,Permanent Nursing,Blossom Fields Nursing Home,4132.12, 11-Jan-2022
549,Revenue,CAHD,South Glos Users in South Glos Homes,Permanent Nursing,Blossom Fields Nursing Home,750.40, 11-Jan-2022
550,Revenue,CAHD,South Glos Users in South Glos Homes,Permanent Nursing,Blossom Fields Nursing Home,670.00, 11-Jan-2022
551,Revenue,CAHD,South Glos Users in South Glos Homes,Permanent Nursing,Blossom Fields Nursing Home,750.40, 11-Jan-2022
552,Revenue,CAHD,Covid  - Workforce capacity,Grants to Voluntary Bodies,Blossom Fields Nursing Home,5509.14, 10-Jan-2022
553,Revenue,CAHD,Statemented Support Payments to OLAs,Other L.A.s - General,Blue Coat CE VA Primary School,837.09, 21-Jan-2022
554,Revenue,CAHD,Statemented Support Payments to OLAs,Other L.A.s - General,Blue Coat CE VA Primary School,1292.50, 21-Jan-2022
555,Revenue,CAHD,North - Community based support,Permanent Residential,Bluebells,3699.60, 11-Jan-2022
556,Revenue,CAHD,Central - Commissioned Services,Other Small Contracts,Bluebird Care (South Gloucestershire),13678.04, 04-Jan-2022
557,Revenue,CAHD,South - Commissioned Services,Other Small Contracts,Bluebird Care (South Gloucestershire),3809.54, 04-Jan-2022
558,Revenue,CAHD,North - Community based support,Other Small Contracts,Bluebird Care (South Gloucestershire),4664.04, 04-Jan-2022
559,Revenue,CAHD,Central - Commissioned Services,Other Small Contracts,Bluebird Care (South Gloucestershire),12565.56, 12-Jan-2022
560,Revenue,CAHD,South - Commissioned Services,Other Small Contracts,Bluebird Care (South Gloucestershire),3394.29, 12-Jan-2022
561,Revenue,CAHD,North - Community based support,Other Small Contracts,Bluebird Care (South Gloucestershire),3753.70, 12-Jan-2022
562,Revenue,CAHD,Central - Commissioned Services,Other Small Contracts,Bluebird Care (South Gloucestershire),11754.94, 20-Jan-2022
563,Revenue,CAHD,South - Commissioned Services,Other Small Contracts,Bluebird Care (South Gloucestershire),3552.84, 20-Jan-2022
564,Revenue,CAHD,North - Community based support,Other Small Contracts,Bluebird Care (South Gloucestershire),4314.14, 20-Jan-2022
565,Revenue,CAHD,Central - Commissioned Services,Other Small Contracts,Bluebird Care (South Gloucestershire),12245.69, 20-Jan-2022
566,Revenue,CAHD,South - Commissioned Services,Other Small Contracts,Bluebird Care (South Gloucestershire),3764.24, 20-Jan-2022
567,Revenue,CAHD,North - Community based support,Other Small Contracts,Bluebird Care (South Gloucestershire),4655.74, 20-Jan-2022
568,Revenue,CAHD,Central - Commissioned Services,Other Small Contracts,Bluebird Care (South Gloucestershire),12056.94, 24-Jan-2022
569,Revenue,CAHD,South - Commissioned Services,Other Small Contracts,Bluebird Care (South Gloucestershire),3764.24, 24-Jan-2022
570,Revenue,CAHD,North - Community based support,Other Small Contracts,Bluebird Care (South Gloucestershire),4611.19, 24-Jan-2022
571,Revenue,CAHD,Covid  - Workforce capacity,Grants to Voluntary Bodies,Bluebird Care (South Gloucestershire),7345.53, 14-Jan-2022
572,Revenue,CAHD,Sexual Health,Other Small Contracts,Boots UK Ltd,863.21, 28-Jan-2022
573,Revenue,CAHD,Sexual Health,Other Small Contracts,Boots UK Ltd,1004.56, 28-Jan-2022
574,Revenue,CAHD,S28A cases,Permanent Residential,Bradbury House,6505.16, 11-Jan-2022
575,Revenue,CAHD,Jointly Funded H&SC Packages,Permanent Residential,Bradbury House,8441.92, 11-Jan-2022
576,Revenue,CAHD,North - S117,Permanent Residential,Bradbury House,5772.00, 11-Jan-2022
577,Revenue,CAHD,NHS Health Checks,Other Small Contracts,Bradley Stoke Surgery,575.00, 28-Jan-2022
578,Revenue,CAHD,Psychology Traded,Premises Hire,Bradley Stoke Town Council,524.67, 14-Jan-2022
579,Revenue,CAHD,CSC - Residential Placements,Permanent Residential,Branas ISAF Ltd,21921.34, 11-Jan-2022
580,Revenue,CAHD,North - Community based support,Respite Planned - Nursing,Breadstone House Care Centre,1565.19, 11-Jan-2022
581,Revenue,CAHD,Social Lettings Agency,Rent,Individual,822.73, 25-Jan-2022
582,Revenue,CAHD,Social Lettings Agency,Fees & Charges Income - General,Individual,-102.80, 25-Jan-2022
583,Revenue,CAHD,Placements OLA Special Schools and RB,Other L.A.s - General,Briarwood School,2774.72, 21-Jan-2022
584,Revenue,CAHD,Placements OLA Special Schools and RB,Other L.A.s - General,Briarwood School,792.40, 21-Jan-2022
585,Revenue,CAHD,North - Community based support,Permanent Residential,Bridge House Care Home,3100.00, 11-Jan-2022
586,Revenue,CAHD,North - Community based support,Respite Planned - Residential,Bridge House Care Home,3360.00, 11-Jan-2022
587,Revenue,CAHD,North - Community based support,Respite Planned - Residential,Bridge House Care Home,1680.00, 11-Jan-2022
588,Revenue,CAHD,North - Community based support,Permanent Residential,Bridge House Care Home,2913.52, 11-Jan-2022
589,Revenue,CAHD,Covid  - Workforce capacity,Grants to Voluntary Bodies,Bridge House Care Home,2231.79, 28-Jan-2022
590,Revenue,CAHD,North - Community based support,Permanent Residential,Bridgwater Court Care Home,10773.64, 11-Jan-2022
591,Revenue,CAHD,Health Inequalities,Grants to Voluntary Bodies,Bristol & Avon Chinese Womens Group,500.00, 04-Jan-2022
592,Revenue,CAHD,Older People`s Commissioned Se,Grants to Voluntary Bodies,Bristol Area Stroke Foundation,9717.75, 04-Jan-2022
593,Revenue,CAHD,Statemented Support Payments to OLAs,Other L.A.s - General,Bristol Cathedral Choir School,942.58, 21-Jan-2022
594,Revenue,CAHD,Statemented Support Payments to OLAs,Other L.A.s - General,Bristol Cathedral Choir School,880.08, 21-Jan-2022
595,Revenue,CAHD,Statemented Support Payments to OLAs,Other L.A.s - General,Bristol Cathedral Choir School,978.57, 21-Jan-2022
596,Revenue,CAHD,CSC - Agency Fostering,Foster Parent Allowances,Bristol City Council,3100.00, 27-Jan-2022
597,Revenue,CAHD,Statemented Support Payments to OLAs,Other L.A.s - General,Bristol City Council Schools General,897.42, 21-Jan-2022
598,Revenue,CAHD,Statemented Support Payments to OLAs,Other L.A.s - General,Bristol City Council Schools General,635.33, 21-Jan-2022
599,Revenue,CAHD,Statemented Support Payments to OLAs,Other L.A.s - General,Broadlands Academy,835.17, 21-Jan-2022
600,Revenue,CAHD,North - Community based support,Permanent Residential,Brockhills Farm,3200.00, 11-Jan-2022
601,Revenue,CAHD,Parent Partnership & Disagreement Resolutions,Fees - General,Browne Jacobson,1784.50, 12-Jan-2022
602,Revenue,CAHD,Parent Partnership & Disagreement Resolutions,Fees - General,Browne Jacobson,652.50, 14-Jan-2022
603,Revenue,CAHD,Community Support - South,Preventative Assistance,Brunel Abba Cars Limited,506.00, 14-Jan-2022
604,Revenue,CAHD,Central - Commissioned Services,Other Small Contracts,Brunelcare,356.44, 04-Jan-2022
605,Revenue,CAHD,South - Commissioned Services,Other Small Contracts,Brunelcare,13321.28, 04-Jan-2022
606,Revenue,CAHD,South - Commissioned Services,Mentoring,Brunelcare,42.56, 04-Jan-2022
607,Revenue,CAHD,North - Community based support,Other Small Contracts,Brunelcare,372.40, 04-Jan-2022
608,Revenue,CAHD,Central - Commissioned Services,Other Small Contracts,Brunelcare,361.76, 17-Jan-2022
609,Revenue,CAHD,South - Commissioned Services,Other Small Contracts,Brunelcare,13757.52, 17-Jan-2022
610,Revenue,CAHD,South - Commissioned Services,Mentoring,Brunelcare,42.56, 17-Jan-2022
611,Revenue,CAHD,North - Community based support,Other Small Contracts,Brunelcare,372.40, 17-Jan-2022
612,Revenue,CAHD,Central - Commissioned Services,Other Small Contracts,Brunelcare,340.48, 20-Jan-2022
613,Revenue,CAHD,South - Commissioned Services,Other Small Contracts,Brunelcare,13305.32, 20-Jan-2022
614,Revenue,CAHD,South - Commissioned Services,Mentoring,Brunelcare,21.28, 20-Jan-2022
615,Revenue,CAHD,North - Community based support,Other Small Contracts,Brunelcare,377.72, 20-Jan-2022
616,Revenue,CAHD,Central - Commissioned Services,Other Small Contracts,Brunelcare,351.12, 26-Jan-2022
617,Revenue,CAHD,South - Commissioned Services,Other Small Contracts,Brunelcare,13236.16, 26-Jan-2022
618,Revenue,CAHD,North - Community based support,Other Small Contracts,Brunelcare,441.56, 26-Jan-2022
619,Revenue,CAHD,Central - Commissioned Services,Other Small Contracts,Brunelcare,367.08, 26-Jan-2022
620,Revenue,CAHD,South - Commissioned Services,Other Small Contracts,Brunelcare,13119.12, 26-Jan-2022
621,Revenue,CAHD,South - Commissioned Services,Mentoring,Brunelcare,63.84, 26-Jan-2022
622,Revenue,CAHD,North - Community based support,Other Small Contracts,Brunelcare,361.76, 26-Jan-2022
623,Revenue,CAHD,Central - Commissioned Services,Other Small Contracts,Brunelcare,351.12, 26-Jan-2022
624,Revenue,CAHD,South - Commissioned Services,Other Small Contracts,Brunelcare,13177.64, 26-Jan-2022
625,Revenue,CAHD,South - Commissioned Services,Mentoring,Brunelcare,42.56, 26-Jan-2022
626,Revenue,CAHD,North - Community based support,Other Small Contracts,Brunelcare,393.68, 26-Jan-2022
627,Revenue,CAHD,North - S117,Permanent Residential,Buckland Care,3600.00, 11-Jan-2022
628,Revenue,CAHD,CSC - Agency Fostering,Foster Parent Allowances,By the Bridge Ltd,3321.34, 31-Jan-2022
629,Revenue,CAHD,CSC - Agency Fostering,Foster Parent Allowances,By the Bridge Ltd,4242.66, 31-Jan-2022
630,Revenue,CAHD,Social Lettings Agency,Rent,Individual,947.40, 13-Jan-2022
631,Revenue,CAHD,Social Lettings Agency,Fees & Charges Income - General,Individual,-94.74, 13-Jan-2022
632,Revenue,CAHD,Statemented Support Academies,Other Public Bodies,Cabot Learning Federation,5898.35, 21-Jan-2022
633,Revenue,CAHD,Statemented Support Academies,Other Public Bodies,Cabot Learning Federation,646.67, 21-Jan-2022
634,Revenue,CAHD,Statemented Support Academies,Other Public Bodies,Cabot Learning Federation,836.67, 21-Jan-2022
635,Revenue,CAHD,Statemented Support Academies,Other Public Bodies,Cabot Learning Federation,1666.67, 21-Jan-2022
636,Revenue,CAHD,Statemented Support Academies,Other Public Bodies,Cabot Learning Federation,1103.25, 21-Jan-2022
637,Revenue,CAHD,Statemented Support Academies,Other Public Bodies,Cabot Learning Federation,1899.58, 21-Jan-2022
638,Revenue,CAHD,Statemented Support Academies,Other Public Bodies,Cabot Learning Federation,788.22, 21-Jan-2022
639,Revenue,CAHD,Statemented Support Academies,Other Public Bodies,Cabot Learning Federation,957.92, 21-Jan-2022
640,Revenue,CAHD,Statemented Support Academies,Other Public Bodies,Cabot Learning Federation,917.67, 21-Jan-2022
641,Revenue,CAHD,Statemented Support Academies,Other Public Bodies,Cabot Learning Federation,1654.33, 21-Jan-2022
642,Revenue,CAHD,Statemented Support Academies,Other Public Bodies,Cabot Learning Federation,658.75, 21-Jan-2022
643,Revenue,CAHD,Statemented Support Academies,Other Public Bodies,Cabot Learning Federation,632.67, 21-Jan-2022
644,Revenue,CAHD,Statemented Support Academies,Other Public Bodies,Cabot Learning Federation,695.61, 21-Jan-2022
645,Revenue,CAHD,Statemented Support Academies,Other Public Bodies,Cabot Learning Federation,918.75, 21-Jan-2022
646,Revenue,CAHD,Statemented Support Academies,Other Public Bodies,Cabot Learning Federation,975.58, 21-Jan-2022
647,Revenue,CAHD,Statemented Support Academies,Other Public Bodies,Cabot Learning Federation,705.00, 21-Jan-2022
648,Revenue,CAHD,Statemented Support Academies,Other Public Bodies,Cabot Learning Federation,1084.17, 21-Jan-2022
649,Revenue,CAHD,Academy Resource Base Funding,Other Public Bodies,Cabot Learning Federation,5945.24, 21-Jan-2022
650,Revenue,CAHD,Academy Resource Base Funding,Other Public Bodies,Cabot Learning Federation,1702.96, 21-Jan-2022
651,Revenue,CAHD,Academy Resource Base Funding,Other Public Bodies,Cabot Learning Federation,1540.83, 21-Jan-2022
652,Revenue,CAHD,Academy Resource Base Funding,Other Public Bodies,Cabot Learning Federation,1540.83, 21-Jan-2022
653,Revenue,CAHD,Academy Resource Base Funding,Other Public Bodies,Cabot Learning Federation,1175.87, 21-Jan-2022
654,Revenue,CAHD,Academy Resource Base Funding,Other Public Bodies,Cabot Learning Federation,1175.87, 21-Jan-2022
655,Revenue,CAHD,Academy Resource Base Funding,Other Public Bodies,Cabot Learning Federation,1175.87, 21-Jan-2022
656,Revenue,CAHD,Academy Resource Base Funding,Other Public Bodies,Cabot Learning Federation,1540.83, 21-Jan-2022
657,Revenue,CAHD,Academy Resource Base Funding,Other Public Bodies,Cabot Learning Federation,1013.74, 21-Jan-2022
658,Revenue,CAHD,Academy Resource Base Funding,Other Public Bodies,Cabot Learning Federation,1702.96, 21-Jan-2022
659,Revenue,CAHD,Academy Resource Base Funding,Other Public Bodies,Cabot Learning Federation,1702.96, 21-Jan-2022
660,Revenue,CAHD,Academy Resource Base Funding,Other Public Bodies,Cabot Learning Federation,1175.87, 21-Jan-2022
661,Revenue,CAHD,Academy Resource Base Funding,Other Public Bodies,Cabot Learning Federation,1175.87, 21-Jan-2022
662,Revenue,CAHD,Academy Resource Base Funding,Other Public Bodies,Cabot Learning Federation,1702.96, 21-Jan-2022
663,Revenue,CAHD,Academy Resource Base Funding,Other Public Bodies,Cabot Learning Federation,648.70, 21-Jan-2022
664,Revenue,CAHD,Academy Resource Base Funding,Other Public Bodies,Cabot Learning Federation,1175.87, 21-Jan-2022
665,Revenue,CAHD,Academy Resource Base Funding,Other Public Bodies,Cabot Learning Federation,2513.88, 21-Jan-2022
666,Revenue,CAHD,Academy Resource Base Funding,Other Public Bodies,Cabot Learning Federation,1702.96, 21-Jan-2022
667,Revenue,CAHD,Academy Resource Base Funding,Other Public Bodies,Cabot Learning Federation,1175.87, 21-Jan-2022
668,Revenue,CAHD,Academy Resource Base Funding,Other Public Bodies,Cabot Learning Federation,1702.96, 21-Jan-2022
669,Revenue,CAHD,Academy Resource Base Funding,Other Public Bodies,Cabot Learning Federation,1702.96, 21-Jan-2022
670,Revenue,CAHD,Academy Resource Base Funding,Other Public Bodies,Cabot Learning Federation,648.70, 21-Jan-2022
671,Revenue,CAHD,Academy Resource Base Funding,Other Public Bodies,Cabot Learning Federation,1540.83, 21-Jan-2022
672,Revenue,CAHD,Academy Resource Base Funding,Other Public Bodies,Cabot Learning Federation,1175.87, 21-Jan-2022
673,Revenue,CAHD,Academy Resource Base Funding,Other Public Bodies,Cabot Learning Federation,2189.53, 21-Jan-2022
674,Revenue,CAHD,Academy Resource Base Funding,Other Public Bodies,Cabot Learning Federation,1175.87, 21-Jan-2022
675,Revenue,CAHD,Statemented Support Academies,Other Public Bodies,Cabot Learning Federation,1626.67, 21-Jan-2022
676,Revenue,CAHD,Statemented Support Academies,Other Public Bodies,Cabot Learning Federation,710.58, 21-Jan-2022
677,Revenue,CAHD,Statemented Support Academies,Other Public Bodies,Cabot Learning Federation,804.08, 21-Jan-2022
678,Revenue,CAHD,Statemented Support Academies,Other Public Bodies,Cabot Learning Federation,855.08, 21-Jan-2022
679,Revenue,CAHD,Statemented Support Academies,Other Public Bodies,Cabot Learning Federation,554.13, 21-Jan-2022
680,Revenue,CAHD,Statemented Support Academies,Other Public Bodies,Cabot Learning Federation,742.77, 21-Jan-2022
681,Revenue,CAHD,Statemented Support Academies,Other Public Bodies,Cabot Learning Federation,778.14, 21-Jan-2022
682,Revenue,CAHD,Statemented Support Academies,Other Public Bodies,Cabot Learning Federation,1202.67, 21-Jan-2022
683,Revenue,CAHD,Statemented Support Academies,Other Public Bodies,Cabot Learning Federation,813.51, 21-Jan-2022
684,Revenue,CAHD,Schools Specific Grant Income,Other Public Bodies,Cabot Learning Federation,930.00, 24-Jan-2022
685,Revenue,CAHD,Statemented Support Payments to OLAs,Other L.A.s - General,Cabot Learning Federation,601.29, 21-Jan-2022
686,Revenue,CAHD,Statemented Support Academies,Other Public Bodies,Cabot Learning Federation,661.33, 21-Jan-2022
687,Revenue,CAHD,Statemented Support Academies,Other Public Bodies,Cabot Learning Federation,1131.84, 21-Jan-2022
688,Revenue,CAHD,Statemented Support Academies,Other Public Bodies,Cabot Learning Federation,1202.67, 21-Jan-2022
689,Revenue,CAHD,Statemented Support Academies,Other Public Bodies,Cabot Learning Federation,554.13, 21-Jan-2022
690,Revenue,CAHD,Statemented Support Academies,Other Public Bodies,Cabot Learning Federation,1028.08, 21-Jan-2022
691,Revenue,CAHD,Statemented Support Academies,Other Public Bodies,Cabot Learning Federation,1096.47, 21-Jan-2022
692,Revenue,CAHD,Statemented Support Academies,Other Public Bodies,Cabot Learning Federation,1429.42, 21-Jan-2022
693,Revenue,CAHD,Statemented Support Academies,Other Public Bodies,Cabot Learning Federation,730.98, 21-Jan-2022
694,Revenue,CAHD,Statemented Support Academies,Other Public Bodies,Cabot Learning Federation,680.42, 21-Jan-2022
695,Revenue,CAHD,Statemented Support Academies,Other Public Bodies,Cabot Learning Federation,1150.25, 21-Jan-2022
696,Revenue,CAHD,Statemented Support Academies,Other Public Bodies,Cabot Learning Federation,685.33, 21-Jan-2022
697,Revenue,CAHD,Statemented Support Academies,Other Public Bodies,Cabot Learning Federation,530.55, 21-Jan-2022
698,Revenue,CAHD,Statemented Support Payments to OLAs,Other L.A.s - General,Cabot Learning Federation,1062.33, 21-Jan-2022
699,Revenue,CAHD,Statemented Support Payments to OLAs,Other L.A.s - General,Cabot Learning Federation,809.75, 21-Jan-2022
700,Revenue,CAHD,Statemented Support Payments to OLAs,Other L.A.s - General,Cabot Learning Federation,888.33, 21-Jan-2022
701,Revenue,CAHD,Statemented Support Academies,Other Public Bodies,Cabot Learning Federation,577.50, 21-Jan-2022
702,Revenue,CAHD,Statemented Support Academies,Other Public Bodies,Cabot Learning Federation,1297.08, 21-Jan-2022
703,Revenue,CAHD,Statemented Support Academies,Other Public Bodies,Cabot Learning Federation,966.83, 21-Jan-2022
704,Revenue,CAHD,Statemented Support Payments to OLAs,Other L.A.s - General,Cabot Learning Federation,665.33, 21-Jan-2022
705,Revenue,CAHD,CSC - YOT Pooled Budget,Training Expenses,CACI Limited,2250.00, 07-Jan-2022
706,Revenue,CAHD,NHS Health Checks,Other Small Contracts,Cadbury Heath Healthcare,1541.00, 28-Jan-2022
707,Revenue,CAHD,Early Years High Needs Support,Other Private Contractors,Caerleon Childcare,515.71, 21-Jan-2022
708,Revenue,CAHD,North - Community based support,Permanent Nursing,Caernarvon House,4710.40, 11-Jan-2022
709,Revenue,CAHD,North - S117,Permanent Nursing,Caernarvon House,3990.24, 11-Jan-2022
710,Revenue,CAHD,South - Commissioned Services,Permanent Nursing,Caernarvon House,4915.20, 11-Jan-2022
711,Revenue,CAHD,South - S117,Permanent Nursing,Caernarvon House,4915.20, 11-Jan-2022
712,Revenue,CAHD,North - Community based support,Permanent Nursing,Caernarvon House,3339.08, 11-Jan-2022
713,Revenue,CAHD,South - Commissioned Services,Permanent Nursing,Caernarvon House,2960.00, 11-Jan-2022
714,Revenue,CAHD,South - Commissioned Services,Permanent Nursing,Caernarvon House,4800.00, 11-Jan-2022
715,Revenue,CAHD,Post 16 High Needs Placements,Other Private Contractors,Cambian Whinfell School Limited,61036.48, 12-Jan-2022
716,Revenue,CAHD,Post 16 High Needs Placements,Other Private Contractors,Cambian Whinfell School Limited,59709.60, 11-Jan-2022
717,Revenue,CAHD,North - Community based support,Day Care / Social Activities,Camphill Communities Thornbury Limited,973.18, 07-Jan-2022
718,Revenue,CAHD,North - Community based support,Other Small Contracts,Camphill Communities Thornbury Limited,1605.50, 07-Jan-2022
719,Revenue,CAHD,North - Community based support,Supported Living,Camphill Communities Thornbury Limited,647.14, 07-Jan-2022
720,Revenue,CAHD,North - Community based support,Day Care / Social Activities,Camphill Communities Thornbury Limited,568.10, 14-Jan-2022
721,Revenue,CAHD,North - Community based support,Other Small Contracts,Camphill Communities Thornbury Limited,1561.04, 14-Jan-2022
722,Revenue,CAHD,North - Community based support,Supported Living,Camphill Communities Thornbury Limited,637.26, 14-Jan-2022
723,Revenue,CAHD,North - Community based support,Day Care / Social Activities,Camphill Communities Thornbury Limited,385.32, 21-Jan-2022
724,Revenue,CAHD,North - Community based support,Other Small Contracts,Camphill Communities Thornbury Limited,1689.48, 21-Jan-2022
725,Revenue,CAHD,North - Community based support,Supported Living,Camphill Communities Thornbury Limited,657.02, 21-Jan-2022
726,Revenue,CAHD,CSC - Agency Fostering,Foster Parent Allowances,Capstone Foster Care (South West) Limited,3498.66, 31-Jan-2022
727,Revenue,CAHD,CSC - Agency Fostering,Foster Parent Allowances,Capstone Foster Care (South West) Limited,3671.33, 31-Jan-2022
728,Revenue,CAHD,Central - Commissioned Services,Other Small Contracts,Care 1st Homecare,3066.70, 20-Jan-2022
729,Revenue,CAHD,North - Community based support,Other Small Contracts,Care 1st Homecare,1539.37, 20-Jan-2022
730,Revenue,CAHD,Central - Commissioned Services,Other Small Contracts,Care 1st Homecare,3057.60, 20-Jan-2022
731,Revenue,CAHD,North - Community based support,Other Small Contracts,Care 1st Homecare,1354.75, 20-Jan-2022
732,Revenue,CAHD,Central - Commissioned Services,Other Small Contracts,Care 1st Homecare,3057.60, 20-Jan-2022
733,Revenue,CAHD,North - Community based support,Other Small Contracts,Care 1st Homecare,1478.11, 20-Jan-2022
734,Revenue,CAHD,Central - Commissioned Services,Other Small Contracts,Care 1st Homecare,4352.02, 31-Jan-2022
735,Revenue,CAHD,North - Community based support,Other Small Contracts,Care 1st Homecare,1478.20, 31-Jan-2022
736,Revenue,CAHD,North - Community based support,Supported Living,Care Horizons,5560.28, 11-Jan-2022
737,Revenue,CAHD,North - Community based support,Supported Living,Care Horizons,5560.28, 11-Jan-2022
738,Revenue,CAHD,18-25 Year Olds,Other Small Contracts,Care Horizons Limited,80.64, 04-Jan-2022
739,Revenue,CAHD,Central - Commissioned Services,Other Small Contracts,Care Horizons Limited,4595.92, 04-Jan-2022
740,Revenue,CAHD,South - Commissioned Services,Other Small Contracts,Care Horizons Limited,403.20, 04-Jan-2022
741,Revenue,CAHD,South - Commissioned Services,Mentoring,Care Horizons Limited,80.64, 04-Jan-2022
742,Revenue,CAHD,North - Community based support,Other Small Contracts,Care Horizons Limited,3466.40, 04-Jan-2022
743,Revenue,CAHD,Younger MH non-res purchasing,Other Small Contracts,Care Horizons Limited,257.04, 04-Jan-2022
744,Revenue,CAHD,18-25 Year Olds,Other Small Contracts,Care Horizons Limited,80.64, 24-Jan-2022
745,Revenue,CAHD,Central - Commissioned Services,Other Small Contracts,Care Horizons Limited,4782.40, 24-Jan-2022
746,Revenue,CAHD,South - Commissioned Services,Other Small Contracts,Care Horizons Limited,443.52, 24-Jan-2022
747,Revenue,CAHD,South - Commissioned Services,Mentoring,Care Horizons Limited,80.64, 24-Jan-2022
748,Revenue,CAHD,North - Community based support,Other Small Contracts,Care Horizons Limited,3471.44, 24-Jan-2022
749,Revenue,CAHD,Younger MH non-res purchasing,Other Small Contracts,Care Horizons Limited,221.76, 24-Jan-2022
750,Revenue,CAHD,Home care - Elderly MH - North,Other Small Contracts,Care Horizons Limited,40.32, 24-Jan-2022
751,Revenue,CAHD,18-25 Year Olds,Other Small Contracts,Care Horizons Limited,80.64, 19-Jan-2022
752,Revenue,CAHD,Central - Commissioned Services,Other Small Contracts,Care Horizons Limited,3749.20, 19-Jan-2022
753,Revenue,CAHD,South - Commissioned Services,Other Small Contracts,Care Horizons Limited,423.36, 19-Jan-2022
754,Revenue,CAHD,South - Commissioned Services,Mentoring,Care Horizons Limited,80.64, 19-Jan-2022
755,Revenue,CAHD,North - Community based support,Other Small Contracts,Care Horizons Limited,3012.80, 19-Jan-2022
756,Revenue,CAHD,Younger MH non-res purchasing,Other Small Contracts,Care Horizons Limited,136.08, 19-Jan-2022
757,Revenue,CAHD,Home care - Elderly MH - North,Other Small Contracts,Care Horizons Limited,40.32, 19-Jan-2022
758,Revenue,CAHD,18-25 Year Olds,Other Small Contracts,Care Horizons Limited,161.28, 24-Jan-2022
759,Revenue,CAHD,Central - Commissioned Services,Other Small Contracts,Care Horizons Limited,4832.80, 24-Jan-2022
760,Revenue,CAHD,South - Commissioned Services,Other Small Contracts,Care Horizons Limited,473.76, 24-Jan-2022
761,Revenue,CAHD,South - Commissioned Services,Mentoring,Care Horizons Limited,80.64, 24-Jan-2022
762,Revenue,CAHD,North - Community based support,Other Small Contracts,Care Horizons Limited,3456.32, 24-Jan-2022
763,Revenue,CAHD,Younger MH non-res purchasing,Other Small Contracts,Care Horizons Limited,211.68, 24-Jan-2022
764,Revenue,CAHD,Home care - Elderly MH - North,Other Small Contracts,Care Horizons Limited,50.40, 24-Jan-2022
765,Revenue,CAHD,18-25 Year Olds,Other Small Contracts,Care Horizons Limited,196.56, 24-Jan-2022
766,Revenue,CAHD,Central - Commissioned Services,Other Small Contracts,Care Horizons Limited,4948.72, 24-Jan-2022
767,Revenue,CAHD,South - Commissioned Services,Other Small Contracts,Care Horizons Limited,423.36, 24-Jan-2022
768,Revenue,CAHD,South - Commissioned Services,Mentoring,Care Horizons Limited,80.64, 24-Jan-2022
769,Revenue,CAHD,North - Community based support,Other Small Contracts,Care Horizons Limited,3536.96, 24-Jan-2022
770,Revenue,CAHD,Younger MH non-res purchasing,Other Small Contracts,Care Horizons Limited,257.04, 24-Jan-2022
771,Revenue,CAHD,Covid  - Workforce capacity,Grants to Voluntary Bodies,Care Horizons Limited,2420.68, 10-Jan-2022
772,Revenue,CAHD,Covid  - Workforce capacity,Grants to Voluntary Bodies,Care Horizons Limited,5665.31, 28-Jan-2022
773,Revenue,CAHD,South - Commissioned Services,Other Small Contracts,Care Unite Ltd t/a Home Instead Senior Care,795.96, 14-Jan-2022
774,Revenue,CAHD,South - Commissioned Services,Other Small Contracts,Care Unite Ltd t/a Home Instead Senior Care,1503.48, 14-Jan-2022
775,Revenue,CAHD,South - Commissioned Services,Other Small Contracts,Care Unite Ltd t/a Home Instead Senior Care,619.08, 20-Jan-2022
776,Revenue,CAHD,South - Commissioned Services,Other Small Contracts,Care Unite Ltd t/a Home Instead Senior Care,825.44, 28-Jan-2022
777,Revenue,CAHD,South - Commissioned Services,Other Small Contracts,Care Unite Ltd t/a Home Instead Senior Care,574.86, 28-Jan-2022
778,Revenue,CAHD,Covid  - Workforce capacity,Grants to Voluntary Bodies,Care Unite Ltd t/a Home Instead Senior Care,2587.63, 10-Jan-2022
779,Revenue,CAHD,Covid  - Workforce capacity,Grants to Voluntary Bodies,Care Unite Ltd t/a Home Instead Senior Care,5665.31, 28-Jan-2022
780,Revenue,CAHD,Covid  - Workforce capacity,Grants to Voluntary Bodies,Caremark (Bristol & South Gloucestershire),1545.09, 28-Jan-2022
781,Revenue,CAHD,Central - Commissioned Services,Other Small Contracts,Carepride Ltd,146.16, 04-Jan-2022
782,Revenue,CAHD,South - Commissioned Services,Other Small Contracts,Carepride Ltd,85.68, 04-Jan-2022
783,Revenue,CAHD,North - Community based support,Other Small Contracts,Carepride Ltd,317.52, 04-Jan-2022
784,Revenue,CAHD,Central - Commissioned Services,Other Small Contracts,Carepride Ltd,136.08, 17-Jan-2022
785,Revenue,CAHD,South - Commissioned Services,Other Small Contracts,Carepride Ltd,85.68, 17-Jan-2022
786,Revenue,CAHD,North - Community based support,Other Small Contracts,Carepride Ltd,367.92, 17-Jan-2022
787,Revenue,CAHD,Central - Commissioned Services,Other Small Contracts,Carepride Ltd,156.24, 17-Jan-2022
788,Revenue,CAHD,South - Commissioned Services,Other Small Contracts,Carepride Ltd,206.64, 17-Jan-2022
789,Revenue,CAHD,North - Community based support,Other Small Contracts,Carepride Ltd,287.28, 17-Jan-2022
790,Revenue,CAHD,Central - Commissioned Services,Other Small Contracts,Carepride Ltd,136.08, 17-Jan-2022
791,Revenue,CAHD,South - Commissioned Services,Other Small Contracts,Carepride Ltd,146.16, 17-Jan-2022
792,Revenue,CAHD,North - Community based support,Other Small Contracts,Carepride Ltd,226.80, 17-Jan-2022
793,Revenue,CAHD,Central - Commissioned Services,Other Small Contracts,Carepride Ltd,80.64, 24-Jan-2022
794,Revenue,CAHD,South - Commissioned Services,Other Small Contracts,Carepride Ltd,191.52, 24-Jan-2022
795,Revenue,CAHD,North - Community based support,Other Small Contracts,Carepride Ltd,282.24, 24-Jan-2022
796,Revenue,CAHD,Covid  - Workforce capacity,Grants to Voluntary Bodies,Carepride Ltd,3923.18, 27-Jan-2022
797,Revenue,CAHD,Covid  - Workforce capacity,Grants to Voluntary Bodies,Carepride Ltd,7897.11, 28-Jan-2022
798,Revenue,CAHD,SLA Grants - Support Serv,Grants to Voluntary Bodies,Carers Support Centre,12275.00, 04-Jan-2022
799,Revenue,CAHD,SLA Grants - Support Serv,Grants to Voluntary Bodies,Carers Support Centre,25275.00, 04-Jan-2022
800,Revenue,CAHD,Health Inequalities,Other Small Contracts,Carers Support Centre,60477.00, 04-Jan-2022
801,Revenue,CAHD,Covid  - Workforce capacity,Grants to Voluntary Bodies,Caring Comes 1st Limited,2420.68, 14-Jan-2022
802,Revenue,CAHD,Covid  - Workforce capacity,Grants to Voluntary Bodies,Caring Comes 1st Limited,6008.67, 28-Jan-2022
803,Revenue,CAHD,CSC - Care Leavers Independent Living,Independent Living,Caring for Communities and People,5630.12, 25-Jan-2022
804,Revenue,CAHD,Supporting People Programme,Grants to Voluntary Bodies,Caring for Communities and People,12256.75, 04-Jan-2022
805,Revenue,CAHD,Learning Difficulties PSL,Prop.Serv. General Repairs,Carpet Giant,844.71, 17-Jan-2022
806,Revenue,CAHD,Statemented Support Academies,Other Public Bodies,Castle School Education Trust,530.55, 21-Jan-2022
807,Revenue,CAHD,Statemented Support Academies,Other Public Bodies,Castle School Education Trust,778.14, 21-Jan-2022
808,Revenue,CAHD,Statemented Support Academies,Other Public Bodies,Castle School Education Trust,821.50, 21-Jan-2022
809,Revenue,CAHD,Statemented Support Academies,Other Public Bodies,Castle School Education Trust,947.08, 21-Jan-2022
810,Revenue,CAHD,Statemented Support Academies,Other Public Bodies,Castle School Education Trust,577.71, 21-Jan-2022
811,Revenue,CAHD,Statemented Support Academies,Other Public Bodies,Castle School Education Trust,505.08, 21-Jan-2022
812,Revenue,CAHD,Statemented Support Academies,Other Public Bodies,Castle School Education Trust,672.03, 21-Jan-2022
813,Revenue,CAHD,Statemented Support Academies,Other Public Bodies,Castle School Education Trust,636.66, 21-Jan-2022
814,Revenue,CAHD,Statemented Support Academies,Other Public Bodies,Castle School Education Trust,554.13, 21-Jan-2022
815,Revenue,CAHD,Statemented Support Academies,Other Public Bodies,Castle School Education Trust,543.42, 21-Jan-2022
816,Revenue,CAHD,Statemented Support Academies,Other Public Bodies,Castle School Education Trust,954.99, 21-Jan-2022
817,Revenue,CAHD,Statemented Support Academies,Other Public Bodies,Castle School Education Trust,577.71, 21-Jan-2022
818,Revenue,CAHD,Statemented Support Academies,Other Public Bodies,Castle School Education Trust,1248.33, 21-Jan-2022
819,Revenue,CAHD,Statemented Support Academies,Other Public Bodies,Castle School Education Trust,1190.79, 21-Jan-2022
820,Revenue,CAHD,Statemented Support Academies,Other Public Bodies,Castle School Education Trust,691.92, 21-Jan-2022
821,Revenue,CAHD,Statemented Support Academies,Other Public Bodies,Castle School Education Trust,1071.67, 21-Jan-2022
822,Revenue,CAHD,Statemented Support Academies,Other Public Bodies,Castle School Education Trust,1061.10, 21-Jan-2022
823,Revenue,CAHD,Statemented Support Academies,Other Public Bodies,Castle School Education Trust,577.71, 21-Jan-2022
824,Revenue,CAHD,Statemented Support Academies,Other Public Bodies,Castle School Education Trust,1143.63, 21-Jan-2022
825,Revenue,CAHD,Statemented Support Academies,Other Public Bodies,Castle School Education Trust,943.33, 21-Jan-2022
826,Revenue,CAHD,Statemented Support Academies,Other Public Bodies,Castle School Education Trust,754.25, 21-Jan-2022
827,Revenue,CAHD,Statemented Support Academies,Other Public Bodies,Castle School Education Trust,906.75, 21-Jan-2022
828,Revenue,CAHD,Statemented Support Academies,Other Public Bodies,Castle School Education Trust,1202.67, 21-Jan-2022
829,Revenue,CAHD,Statemented Support Academies,Other Public Bodies,Castle School Education Trust,1485.54, 21-Jan-2022
830,Revenue,CAHD,Statemented Support Academies,Other Public Bodies,Castle School Education Trust,1177.50, 21-Jan-2022
831,Revenue,CAHD,Statemented Support Academies,Other Public Bodies,Castle School Education Trust,888.75, 21-Jan-2022
832,Revenue,CAHD,Statemented Support Academies,Other Public Bodies,Castle School Education Trust,1261.75, 21-Jan-2022
833,Revenue,CAHD,Statemented Support Academies,Other Public Bodies,Castle School Education Trust,1202.92, 21-Jan-2022
834,Revenue,CAHD,Statemented Support Academies,Other Public Bodies,Castle School Education Trust,896.08, 21-Jan-2022
835,Revenue,CAHD,Statemented Support Academies,Other Public Bodies,Castle School Education Trust,1244.58, 21-Jan-2022
836,Revenue,CAHD,Statemented Support Academies,Other Public Bodies,Castle School Education Trust,801.92, 21-Jan-2022
837,Revenue,CAHD,Statemented Support Academies,Other Public Bodies,Castle School Education Trust,943.17, 21-Jan-2022
838,Revenue,CAHD,Statemented Support Academies,Other Public Bodies,Castle School Education Trust,1267.50, 21-Jan-2022
839,Revenue,CAHD,Academy Resource Base Funding,Other Public Bodies,Castle School Education Trust,3397.28, 21-Jan-2022
840,Revenue,CAHD,Academy Resource Base Funding,Other Public Bodies,Castle School Education Trust,1702.96, 21-Jan-2022
841,Revenue,CAHD,Academy Resource Base Funding,Other Public Bodies,Castle School Education Trust,2513.88, 21-Jan-2022
842,Revenue,CAHD,Academy Resource Base Funding,Other Public Bodies,Castle School Education Trust,1702.96, 21-Jan-2022
843,Revenue,CAHD,Academy Resource Base Funding,Other Public Bodies,Castle School Education Trust,1702.96, 21-Jan-2022
844,Revenue,CAHD,Academy Resource Base Funding,Other Public Bodies,Castle School Education Trust,1702.96, 21-Jan-2022
845,Revenue,CAHD,Academy Resource Base Funding,Other Public Bodies,Castle School Education Trust,2513.88, 21-Jan-2022
846,Revenue,CAHD,Academy Resource Base Funding,Other Public Bodies,Castle School Education Trust,2513.88, 21-Jan-2022
847,Revenue,CAHD,Academy Resource Base Funding,Other Public Bodies,Castle School Education Trust,2513.88, 21-Jan-2022
848,Revenue,CAHD,Academy Resource Base Funding,Other Public Bodies,Castle School Education Trust,1702.96, 21-Jan-2022
849,Revenue,CAHD,Academy Resource Base Funding,Other Public Bodies,Castle School Education Trust,1702.96, 21-Jan-2022
850,Revenue,CAHD,Academy Resource Base Funding,Other Public Bodies,Castle School Education Trust,1702.96, 21-Jan-2022
851,Revenue,CAHD,Academy Resource Base Funding,Other Public Bodies,Castle School Education Trust,1702.96, 21-Jan-2022
852,Revenue,CAHD,Academy Resource Base Funding,Other Public Bodies,Castle School Education Trust,1702.96, 21-Jan-2022
853,Revenue,CAHD,Academy Resource Base Funding,Other Public Bodies,Castle School Education Trust,1702.96, 21-Jan-2022
854,Revenue,CAHD,Academy Resource Base Funding,Other Public Bodies,Castle School Education Trust,2189.53, 21-Jan-2022
855,Revenue,CAHD,Statemented Support Academies,Other Public Bodies,Castle School Education Trust,672.03, 21-Jan-2022
856,Revenue,CAHD,Statemented Support Academies,Other Public Bodies,Castle School Education Trust,822.50, 21-Jan-2022
857,Revenue,CAHD,Statemented Support Academies,Other Public Bodies,Castle School Education Trust,872.46, 21-Jan-2022
858,Revenue,CAHD,Statemented Support Academies,Other Public Bodies,Castle School Education Trust,848.88, 21-Jan-2022
859,Revenue,CAHD,Statemented Support Academies,Other Public Bodies,Castle School Education Trust,541.58, 21-Jan-2022
860,Revenue,CAHD,Statemented Support Academies,Other Public Bodies,Castle School Education Trust,723.17, 21-Jan-2022
861,Revenue,CAHD,Statemented Support Academies,Other Public Bodies,Castle School Education Trust,956.00, 21-Jan-2022
862,Revenue,CAHD,Statemented Support Academies,Other Public Bodies,Castle School Education Trust,1628.42, 21-Jan-2022
863,Revenue,CAHD,Statemented Support Academies,Other Public Bodies,Castle School Education Trust,560.17, 21-Jan-2022
864,Revenue,CAHD,Afgan LES Refugees,Other Public Bodies,Castle School Education Trust,4500.00, 13-Jan-2022
865,Revenue,CAHD,Statemented Support Academies,Other Public Bodies,Castle School Education Trust,1202.67, 21-Jan-2022
866,Revenue,CAHD,Statemented Support Academies,Other Public Bodies,Castle School Education Trust,630.58, 21-Jan-2022
867,Revenue,CAHD,Statemented Support Academies,Other Public Bodies,Castle School Education Trust,778.14, 21-Jan-2022
868,Revenue,CAHD,Statemented Support Academies,Other Public Bodies,Castle School Education Trust,941.58, 21-Jan-2022
869,Revenue,CAHD,Statemented Support Academies,Other Public Bodies,Castle School Education Trust,613.08, 21-Jan-2022
870,Revenue,CAHD,Statemented Support Academies,Other Public Bodies,Castle School Educational Academy Trust,1129.92, 21-Jan-2022
871,Revenue,CAHD,Statemented Support Academies,Other Public Bodies,Castle School Educational Academy Trust,854.00, 21-Jan-2022
872,Revenue,CAHD,Statemented Support Academies,Other Public Bodies,Castle School Educational Academy Trust,940.75, 21-Jan-2022
873,Revenue,CAHD,Statemented Support Academies,Other Public Bodies,Castle School Educational Academy Trust,790.58, 21-Jan-2022
874,Revenue,CAHD,Statemented Support Academies,Other Public Bodies,Castle School Educational Academy Trust,508.67, 21-Jan-2022
875,Revenue,CAHD,Statemented Support Academies,Other Public Bodies,Castle School Educational Academy Trust,1148.20, 21-Jan-2022
876,Revenue,CAHD,Statemented Support Academies,Other Public Bodies,Castle School Educational Academy Trust,1097.25, 21-Jan-2022
877,Revenue,CAHD,Statemented Support Academies,Other Public Bodies,Castle School Educational Academy Trust,580.67, 21-Jan-2022
878,Revenue,CAHD,Statemented Support Academies,Other Public Bodies,Castle School Educational Academy Trust,925.08, 21-Jan-2022
879,Revenue,CAHD,Statemented Support Academies,Other Public Bodies,Castle School Educational Academy Trust,652.58, 21-Jan-2022
880,Revenue,CAHD,CSC - North LAC Placements,"Provisions (Food, etc)",Castlebridge SPV Limited,562.50, 14-Jan-2022
881,Revenue,CAHD,CSC - Legal Fees,Legal Fees,Cater Walsh Reporting Limited,440.00, 06-Jan-2022
882,Revenue,CAHD,South - Commissioned Services,Day Care / Social Activities,Causeway House,5481.44, 11-Jan-2022
883,Revenue,CAHD,18-25 Year Olds,Day Care / Social Activities,Causeway House,4606.48, 11-Jan-2022
884,Revenue,CAHD,Central - Commissioned Services,Day Care / Social Activities,Causeway House,4060.72, 11-Jan-2022
885,Revenue,CAHD,North - Community based support,Day Care / Social Activities,Causeway House,3366.40, 11-Jan-2022
886,Revenue,CAHD,North - Community based support,Day Care / Social Activities,Causeway House,5015.32, 11-Jan-2022
887,Revenue,CAHD,Central - Commissioned Services,Day Care / Social Activities,Causeway House,3810.84, 11-Jan-2022
888,Revenue,CAHD,North - Community based support,Day Care / Social Activities,Causeway House,3285.96, 11-Jan-2022
889,Revenue,CAHD,North - Community based support,Day Care / Social Activities,Causeway House,593.04, 11-Jan-2022
890,Revenue,CAHD,North - S117,Permanent Residential,Cavendish Care Home,3900.00, 11-Jan-2022
891,Revenue,CAHD,Central - Commissioned Services,Permanent Nursing,Cedar Court Care Home,4000.00, 11-Jan-2022
892,Revenue,CAHD,Training - Adult Services,Training Expenses,Central Consultancy & Training,7052.50, 17-Jan-2022
893,Revenue,CAHD,CSC - Care Leavers Independent Living,Independent Living,Centrepeacehomes Ltd,2960.00, 11-Jan-2022
894,Revenue,CAHD,CSC - Care Leavers Independent Living,Independent Living,Centrepeacehomes Ltd,2960.00, 31-Jan-2022
895,Revenue,CAHD,South - Commissioned Services,Permanent Residential,Challenge House,2894.80, 11-Jan-2022
896,Revenue,CAHD,North - S117,Permanent Residential,Challenge House,2626.16, 11-Jan-2022
897,Revenue,CAHD,North - Community based support,Permanent Residential,Challenge House,2314.96, 11-Jan-2022
898,Revenue,CAHD,North - Community based support,Permanent Residential,Challenge House,2902.76, 11-Jan-2022
899,Revenue,CAHD,Central - Commissioned Services,Permanent Residential,Challenge House,2452.44, 11-Jan-2022
900,Revenue,CAHD,Central - Commissioned Services,Permanent Residential,Challenge House,2819.84, 11-Jan-2022
901,Revenue,CAHD,North - Community based support,Permanent Residential,Challenge House,2894.76, 11-Jan-2022
902,Revenue,CAHD,North - S117,Permanent Nursing,Challenge House,2505.52, 11-Jan-2022
903,Revenue,CAHD,North - Community based support,Permanent Nursing,Challenge House,2505.52, 11-Jan-2022
904,Revenue,CAHD,North - Community based support,Permanent Nursing,Challenge House,3205.48, 11-Jan-2022
905,Revenue,CAHD,South Glos Users in South Glos Homes,Permanent Nursing,Challenge House,750.40, 11-Jan-2022
906,Revenue,CAHD,North - Community based support,Respite Planned - Residential,Challenge House,3400.00, 11-Jan-2022
907,Revenue,CAHD,North - Community based support,Respite Planned - Residential,Challenge House,3400.00, 11-Jan-2022
908,Revenue,CAHD,North - Community based support,Respite Planned - Residential,Challenge House,2550.00, 11-Jan-2022
909,Revenue,CAHD,South Glos Users in South Glos Homes,Permanent Nursing,Challenge House,750.40, 11-Jan-2022
910,Revenue,CAHD,South Glos Users in South Glos Homes,Permanent Nursing,Challenge House,750.40, 11-Jan-2022
911,Revenue,CAHD,South Glos Users in South Glos Homes,Permanent Nursing,Challenge House,750.40, 11-Jan-2022
912,Revenue,CAHD,North - Community based support,Permanent Residential,Challenge House,3200.00, 11-Jan-2022
913,Revenue,CAHD,North - Community based support,Permanent Nursing,Challenge House,3478.20, 11-Jan-2022
914,Revenue,CAHD,South Glos Users in South Glos Homes,Permanent Nursing,Challenge House,750.40, 11-Jan-2022
915,Revenue,CAHD,North - Community based support,Permanent Residential,Challenge House,8750.00, 11-Jan-2022
916,Revenue,CAHD,North - Community based support,Permanent Residential,Challenge House,3500.00, 11-Jan-2022
917,Revenue,CAHD,South Glos Users in South Glos Homes,Permanent Nursing,Challenge House,750.40, 11-Jan-2022
918,Revenue,CAHD,South - Commissioned Services,Permanent Nursing,Challenge House,3009.56, 11-Jan-2022
919,Revenue,CAHD,South Glos Users in South Glos Homes,Permanent Nursing,Challenge House,750.40, 11-Jan-2022
920,Revenue,CAHD,North - Community based support,Permanent Nursing,Challenge House,3347.92, 11-Jan-2022
921,Revenue,CAHD,South Glos Users in South Glos Homes,Permanent Nursing,Challenge House,750.40, 11-Jan-2022
922,Revenue,CAHD,North - Community based support,Permanent Residential,Challenge House,3478.20, 11-Jan-2022
923,Revenue,CAHD,South Glos Users in South Glos Homes,Permanent Nursing,Challenge House,750.40, 11-Jan-2022
924,Revenue,CAHD,South Glos Users in South Glos Homes,Permanent Nursing,Challenge House,750.40, 11-Jan-2022
925,Revenue,CAHD,North - Community based support,Permanent Nursing,Challenge House,3400.00, 11-Jan-2022
926,Revenue,CAHD,South Glos Users in South Glos Homes,Permanent Nursing,Challenge House,750.40, 11-Jan-2022
927,Revenue,CAHD,North - Community based support,Permanent Residential,Challenge House,6125.00, 11-Jan-2022
928,Revenue,CAHD,North - Community based support,Permanent Residential,Challenge House,3500.00, 11-Jan-2022
929,Revenue,CAHD,South Glos Users in South Glos Homes,Permanent Nursing,Challenge House,750.40, 11-Jan-2022
930,Revenue,CAHD,South - Commissioned Services,Permanent Residential,Challenge House,3400.00, 11-Jan-2022
931,Revenue,CAHD,North - Community based support,Permanent Residential,Challenge House,3800.00, 11-Jan-2022
932,Revenue,CAHD,South Glos Users in South Glos Homes,Permanent Nursing,Challenge House,750.40, 11-Jan-2022
933,Revenue,CAHD,South - Commissioned Services,Permanent Residential,Challenge House,3400.00, 11-Jan-2022
934,Revenue,CAHD,South - Commissioned Services,Permanent Residential,Challenge House,3600.00, 11-Jan-2022
935,Revenue,CAHD,South Glos Users in South Glos Homes,Permanent Nursing,Challenge House,750.40, 11-Jan-2022
936,Revenue,CAHD,South - Commissioned Services,Respite Emergency - Residential,Challenge House,4735.71, 11-Jan-2022
937,Revenue,CAHD,South - Commissioned Services,Respite Planned - Nursing,Challenge House,3642.86, 11-Jan-2022
938,Revenue,CAHD,South - Commissioned Services,Permanent Nursing,Challenge House,3400.00, 11-Jan-2022
939,Revenue,CAHD,South - Commissioned Services,Respite Planned - Residential,Challenge House,3400.00, 11-Jan-2022
940,Revenue,CAHD,South - Commissioned Services,Respite Planned - Residential,Challenge House,2550.00, 11-Jan-2022
941,Revenue,CAHD,South - Commissioned Services,Respite Planned - Residential,Challenge House,850.00, 11-Jan-2022
942,Revenue,CAHD,North - Community based support,Permanent Nursing,Challenge House,2950.40, 11-Jan-2022
943,Revenue,CAHD,South Glos Users in South Glos Homes,Permanent Nursing,Challenge House,750.40, 11-Jan-2022
944,Revenue,CAHD,North - Community based support,Permanent Nursing,Challenge House,3318.20, 11-Jan-2022
945,Revenue,CAHD,South Glos Users in South Glos Homes,Permanent Nursing,Challenge House,750.40, 11-Jan-2022
946,Revenue,CAHD,South - Commissioned Services,Respite Emergency - Residential,Challenge House,2700.00, 11-Jan-2022
947,Revenue,CAHD,North - Community based support,Fees & Charges Income - General,Challenge House,557.80, 11-Jan-2022
948,Revenue,CAHD,South Glos Users in South Glos Homes,Permanent Nursing,Challenge House,750.40, 11-Jan-2022
949,Revenue,CAHD,North - Community based support,Permanent Residential,Challenge House,3193.00, 11-Jan-2022
950,Revenue,CAHD,South Glos Users in South Glos Homes,Permanent Nursing,Challenge House,750.40, 11-Jan-2022
951,Revenue,CAHD,Covid  - Workforce capacity,Grants to Voluntary Bodies,Challenge House,2587.63, 10-Jan-2022
952,Revenue,CAHD,Covid  - Workforce capacity,Grants to Voluntary Bodies,Challenge House,5321.96, 28-Jan-2022
953,Revenue,CAHD,Central - Commissioned Services,Permanent Nursing,Challenge House,2490.00, 11-Jan-2022
954,Revenue,CAHD,Central - Commissioned Services,Permanent Nursing,Challenge House,3200.00, 11-Jan-2022
955,Revenue,CAHD,Central - Commissioned Services,Fees & Charges Income - General,Challenge House,4979.11, 11-Jan-2022
956,Revenue,CAHD,South - Commissioned Services,Respite Planned - Residential,Challenge House,800.00, 11-Jan-2022
957,Revenue,CAHD,CSC - Age Related Allowances,Band 1 Foster Care,Individual,390.00, 28-Jan-2022
958,Revenue,CAHD,CSC - Professional Fees Foster Carers,Therapeutic Fostering Fee,Individual,750.00, 28-Jan-2022
959,Revenue,CAHD,Statemented Support Academies,Other Public Bodies,Charlton Wood Primary Academy,702.17, 21-Jan-2022
960,Revenue,CAHD,Statemented Support Academies,Other Public Bodies,Charlton Wood Primary Academy,1202.67, 21-Jan-2022
961,Revenue,CAHD,Central - Commissioned Services,Other Small Contracts,Cherish Able Care Limited,602.68, 10-Jan-2022
962,Revenue,CAHD,South - Commissioned Services,Other Small Contracts,Cherish Able Care Limited,9023.13, 10-Jan-2022
963,Revenue,CAHD,North - Community based support,Other Small Contracts,Cherish Able Care Limited,518.70, 10-Jan-2022
964,Revenue,CAHD,Central - Commissioned Services,Other Small Contracts,Cherish Able Care Limited,632.32, 12-Jan-2022
965,Revenue,CAHD,South - Commissioned Services,Other Small Contracts,Cherish Able Care Limited,7659.97, 12-Jan-2022
966,Revenue,CAHD,North - Community based support,Other Small Contracts,Cherish Able Care Limited,508.82, 12-Jan-2022
967,Revenue,CAHD,Central - Commissioned Services,Other Small Contracts,Cherish Able Care Limited,632.32, 20-Jan-2022
968,Revenue,CAHD,South - Commissioned Services,Other Small Contracts,Cherish Able Care Limited,8375.17, 20-Jan-2022
969,Revenue,CAHD,North - Community based support,Other Small Contracts,Cherish Able Care Limited,701.48, 20-Jan-2022
970,Revenue,CAHD,Central - Commissioned Services,Other Small Contracts,Cherish Able Care Limited,632.32, 24-Jan-2022
971,Revenue,CAHD,South - Commissioned Services,Other Small Contracts,Cherish Able Care Limited,9102.17, 24-Jan-2022
972,Revenue,CAHD,North - Community based support,Other Small Contracts,Cherish Able Care Limited,553.28, 24-Jan-2022
973,Revenue,CAHD,North - Community based support,Other Small Contracts,Cherry Orchards,1531.40, 17-Jan-2022
974,Revenue,CAHD,South - Commissioned Services,Other Small Contracts,Cherry Orchards,6639.36, 14-Jan-2022
975,Revenue,CAHD,Central - Commissioned Services,Other Small Contracts,Cherry Orchards,2134.08, 17-Jan-2022
976,Revenue,CAHD,North - Community based support,Other Small Contracts,Cherry Orchards,790.40, 17-Jan-2022
977,Revenue,CAHD,North - Community based support,Other Small Contracts,Cherry Orchards,790.40, 28-Jan-2022
978,Revenue,CAHD,South - Commissioned Services,Other Small Contracts,Cherry Orchards,1635.14, 28-Jan-2022
979,Revenue,CAHD,South - Commissioned Services,Other Small Contracts,Cherry Orchards,1887.08, 17-Jan-2022
980,Revenue,CAHD,South - Commissioned Services,Other Small Contracts,Cherry Orchards,1570.92, 17-Jan-2022
981,Revenue,CAHD,South - Commissioned Services,Supported Living,Cherry Orchards,1938.52, 11-Jan-2022
982,Revenue,CAHD,South - Commissioned Services,Supported Living,Cherry Orchards,1049.08, 11-Jan-2022
983,Revenue,CAHD,Younger MH non-res purchasing,Supported Living,Cherry Orchards,1958.12, 11-Jan-2022
984,Revenue,CAHD,Central - Commissioned Services,Supported Living,Cherry Orchards,2367.92, 11-Jan-2022
985,Revenue,CAHD,18-25 Year Olds,Supported Living,Cherry Orchards,2077.24, 11-Jan-2022
986,Revenue,CAHD,North - Community based support,Supported Living,Cherry Orchards,1066.96, 11-Jan-2022
987,Revenue,CAHD,North - Community based support,Supported Living,Cherry Orchards,1938.52, 11-Jan-2022
988,Revenue,CAHD,Central - Commissioned Services,Permanent Residential,Chescombe Trust Ltd,8910.48, 11-Jan-2022
989,Revenue,CAHD,S28A cases,Permanent Residential,Chescombe Trust Ltd,10188.80, 11-Jan-2022
990,Revenue,CAHD,Covid  - Workforce capacity,Grants to Voluntary Bodies,Chescombe Trust Ltd,4424.01, 10-Jan-2022
991,Revenue,CAHD,Covid  - Workforce capacity,Grants to Voluntary Bodies,Chescombe Trust Ltd,9098.84, 28-Jan-2022
992,Revenue,CAHD,CSC - Emergency Duty Team,Preventative Assistance,Childrens Contact Services Ltd,1905.65, 07-Jan-2022
993,Revenue,CAHD,CAHC - Complaints & Advocacy Service,Complaints External Expenses,Individual,954.97, 17-Jan-2022
994,Revenue,CAHD,Statemented Support Payments to OLAs,Other L.A.s - General,Churchill Academy,1085.75, 21-Jan-2022
995,Revenue,CAHD,18-25 Year Olds,Other Small Contracts,Cintre,916.20, 10-Jan-2022
996,Revenue,CAHD,Central - Commissioned Services,Other Small Contracts,Cintre,81.44, 10-Jan-2022
997,Revenue,CAHD,South - Commissioned Services,Other Small Contracts,Cintre,1160.52, 10-Jan-2022
998,Revenue,CAHD,18-25 Year Olds,Other Small Contracts,Cintre,916.20, 12-Jan-2022
999,Revenue,CAHD,Central - Commissioned Services,Other Small Contracts,Cintre,20.36, 12-Jan-2022
1000,Revenue,CAHD,South - Commissioned Services,Other Small Contracts,Cintre,1058.72, 12-Jan-2022
1001,Revenue,CAHD,18-25 Year Olds,Other Small Contracts,Cintre,916.20, 20-Jan-2022
1002,Revenue,CAHD,South - Commissioned Services,Other Small Contracts,Cintre,1140.16, 20-Jan-2022
1003,Revenue,CAHD,18-25 Year Olds,Other Small Contracts,Cintre,916.20, 24-Jan-2022
1004,Revenue,CAHD,South - Commissioned Services,Other Small Contracts,Cintre,1201.24, 24-Jan-2022
1005,Revenue,CAHD,Learning Difficulties Development Fund,Other Supplies & Services,Circles South West Ltd,4500.00, 21-Jan-2022
1006,Revenue,CAHD,Post 16 LDD Transport to college,Client Transport,Individual,540.00, 26-Jan-2022
1007,Revenue,CAHD,Placements OLA Special Schools and RB,Other L.A.s - General,Claremont School,1981.43, 21-Jan-2022
1008,Revenue,CAHD,Placements OLA Special Schools and RB,Other L.A.s - General,Claremont School,646.00, 21-Jan-2022
1009,Revenue,CAHD,Placements OLA Special Schools and RB,Other L.A.s - General,Claremont School,2774.72, 21-Jan-2022
1010,Revenue,CAHD,Placements OLA Special Schools and RB,Other L.A.s - General,Claremont School,646.00, 21-Jan-2022
1011,Revenue,CAHD,Placements OLA Special Schools and RB,Other L.A.s - General,Claremont School,1981.43, 21-Jan-2022
1012,Revenue,CAHD,Placements OLA Special Schools and RB,Other L.A.s - General,Claremont School,646.00, 21-Jan-2022
1013,Revenue,CAHD,Placements OLA Special Schools and RB,Other L.A.s - General,Claremont School,1981.43, 21-Jan-2022
1014,Revenue,CAHD,Placements OLA Special Schools and RB,Other L.A.s - General,Claremont School,646.00, 21-Jan-2022
1015,Revenue,CAHD,Placements OLA Special Schools and RB,Other L.A.s - General,Claremont School,792.58, 21-Jan-2022
1016,Revenue,CAHD,Placements OLA Special Schools and RB,Other L.A.s - General,Claremont School,2774.72, 21-Jan-2022
1017,Revenue,CAHD,Placements OLA Special Schools and RB,Other L.A.s - General,Claremont School,1981.43, 21-Jan-2022
1018,Revenue,CAHD,Placements OLA Special Schools and RB,Other L.A.s - General,Claremont School,646.00, 21-Jan-2022
1019,Revenue,CAHD,Placements OLA Special Schools and RB,Other L.A.s - General,Claremont School,2774.72, 21-Jan-2022
1020,Revenue,CAHD,Placements OLA Special Schools and RB,Other L.A.s - General,Claremont School,646.00, 21-Jan-2022
1021,Revenue,CAHD,Placements OLA Special Schools and RB,Other L.A.s - General,Claremont School,1585.16, 21-Jan-2022
1022,Revenue,CAHD,Placements OLA Special Schools and RB,Other L.A.s - General,Claremont School,516.77, 21-Jan-2022
1023,Revenue,CAHD,Placements OLA Special Schools and RB,Other L.A.s - General,Claremont School,1981.43, 21-Jan-2022
1024,Revenue,CAHD,Placements OLA Special Schools and RB,Other L.A.s - General,Claremont School,646.00, 21-Jan-2022
1025,Revenue,CAHD,South - Commissioned Services,Permanent Residential,Cleeve Lodge,3846.60, 11-Jan-2022
1026,Revenue,CAHD,South - Commissioned Services,Permanent Residential,Cleeve Lodge,1365.28, 11-Jan-2022
1027,Revenue,CAHD,North - S117,Permanent Residential,Cleeve Lodge,3273.60, 11-Jan-2022
1028,Revenue,CAHD,Central - Commissioned Services,Permanent Residential,Cleeve Lodge,3273.60, 11-Jan-2022
1029,Revenue,CAHD,South - Commissioned Services,Permanent Residential,Cleeve Lodge,4501.20, 11-Jan-2022
1030,Revenue,CAHD,North - Community based support,Permanent Residential,Cleeve Lodge,4400.00, 11-Jan-2022
1031,Revenue,CAHD,South - Commissioned Services,Permanent Nursing,Cleeve Lodge,3273.60, 11-Jan-2022
1032,Revenue,CAHD,South - Commissioned Services,Permanent Residential,Cleeve Lodge,3018.76, 11-Jan-2022
1033,Revenue,CAHD,South - Commissioned Services,Permanent Residential,Cleeve Lodge,4092.00, 11-Jan-2022
1034,Revenue,CAHD,South - Commissioned Services,Permanent Residential,Cleeve Lodge,4910.40, 11-Jan-2022
1035,Revenue,CAHD,Covid  - Workforce capacity,Grants to Voluntary Bodies,Cleeve Lodge,2918.50, 28-Jan-2022
1036,Revenue,CAHD,Independent Special Placements - Post 16,Other Private Contractors,Clifton College,8815.00, 26-Jan-2022
1037,Revenue,CAHD,Independent Special Placements - Post 16,Other Private Contractors,Clifton College,8815.00, 26-Jan-2022
1038,Revenue,CAHD,CSC - Vinney Green Secure Unit,Computer Services,Clifton Web Design,660.00, 17-Jan-2022
1039,Revenue,CAHD,Central - Commissioned Services,Other Small Contracts,Clover Health and Home Care Ltd,964.80, 26-Jan-2022
1040,Revenue,CAHD,Central - Commissioned Services,Other Small Contracts,Clover Health and Home Care Ltd,1050.56, 26-Jan-2022
1041,Revenue,CAHD,Central - Commissioned Services,Other Small Contracts,Clover Health and Home Care Ltd,1050.56, 26-Jan-2022
1042,Revenue,CAHD,Central - Commissioned Services,Other Small Contracts,Clover Health and Home Care Ltd,1061.28, 25-Jan-2022
1043,Revenue,CAHD,Central - Commissioned Services,Other Small Contracts,Clover Health and Home Care Ltd,900.48, 25-Jan-2022
1044,Revenue,CAHD,Covid  - Workforce capacity,Grants to Voluntary Bodies,Clover Health and Home Care Ltd,1502.49, 14-Jan-2022
1045,Revenue,CAHD,South - Commissioned Services,Permanent Residential,Collingwood Care Home,3580.00, 11-Jan-2022
1046,Revenue,CAHD,North - Community based support,Permanent Residential,Collingwood Care Home,3069.00, 11-Jan-2022
1047,Revenue,CAHD,Statemented Support Payments to OLAs,Other L.A.s - General,Colston`s Girls School Trust,1582.50, 21-Jan-2022
1048,Revenue,CAHD,South - Commissioned Services,Permanent Residential,Community Theraputic Services,7776.36, 11-Jan-2022
1049,Revenue,CAHD,Jointly Funded H&SC Packages,Permanent Residential,Community Theraputic Services,4992.88, 11-Jan-2022
1050,Revenue,CAHD,North - Community based support,Permanent Residential,Community Theraputic Services,8071.08, 11-Jan-2022
1051,Revenue,CAHD,Jointly Funded H&SC Packages,Permanent Residential,Community Theraputic Services,2076.20, 11-Jan-2022
1052,Revenue,CAHD,CSC - Fostering Carer Support,DBS Check Fees,Complete Background Screening Ltd,636.00, 10-Jan-2022
1053,Revenue,CAHD,Statemented Support Equipment,Educational Supplies & Equipment,Connevans Limited,1526.23, 14-Jan-2022
1054,Revenue,CAHD,Statemented Support Equipment,Educational Supplies & Equipment,Connevans Limited,1040.00, 21-Jan-2022
1055,Revenue,CAHD,Statemented Support Equipment,Educational Supplies & Equipment,Connevans Limited,1655.75, 21-Jan-2022
1056,Revenue,CAHD,Bed and Breakfast,Bed & Breakfast,Connolly & Callaghan Limited,583.80, 10-Jan-2022
1057,Revenue,CAHD,Bed and Breakfast,Bed & Breakfast,Connolly & Callaghan Limited,548.80, 10-Jan-2022
1058,Revenue,CAHD,Bed and Breakfast,Bed & Breakfast,Connolly & Callaghan Limited,422.80, 10-Jan-2022
1059,Revenue,CAHD,Bed and Breakfast,Bed & Breakfast,Connolly & Callaghan Limited,807.10, 10-Jan-2022
1060,Revenue,CAHD,Bed and Breakfast,Bed & Breakfast,Connolly & Callaghan Limited,463.40, 10-Jan-2022
1061,Revenue,CAHD,Bed and Breakfast,Bed & Breakfast,Connolly & Callaghan Limited,583.80, 10-Jan-2022
1062,Revenue,CAHD,Bed and Breakfast,Bed & Breakfast,Connolly & Callaghan Limited,583.80, 14-Jan-2022
1063,Revenue,CAHD,Bed and Breakfast,Bed & Breakfast,Connolly & Callaghan Limited,422.80, 14-Jan-2022
1064,Revenue,CAHD,Bed and Breakfast,Bed & Breakfast,Connolly & Callaghan Limited,548.80, 14-Jan-2022
1065,Revenue,CAHD,Bed and Breakfast,Bed & Breakfast,Connolly & Callaghan Limited,942.90, 20-Jan-2022
1066,Revenue,CAHD,Bed and Breakfast,Bed & Breakfast,Connolly & Callaghan Limited,548.80, 14-Jan-2022
1067,Revenue,CAHD,Bed and Breakfast,Bed & Breakfast,Connolly & Callaghan Limited,422.80, 14-Jan-2022
1068,Revenue,CAHD,Bed and Breakfast,Bed & Breakfast,Connolly & Callaghan Limited,420.00, 20-Jan-2022
1069,Revenue,CAHD,Bed and Breakfast,Bed & Breakfast,Connolly & Callaghan Limited,422.80, 20-Jan-2022
1070,Revenue,CAHD,Bed and Breakfast,Bed & Breakfast,Connolly & Callaghan Limited,807.10, 14-Jan-2022
1071,Revenue,CAHD,Bed and Breakfast,Bed & Breakfast,Connolly & Callaghan Limited,463.40, 14-Jan-2022
1072,Revenue,CAHD,Bed and Breakfast,Bed & Breakfast,Connolly & Callaghan Limited,548.80, 14-Jan-2022
1073,Revenue,CAHD,Bed and Breakfast,Bed & Breakfast,Connolly & Callaghan Limited,583.80, 14-Jan-2022
1074,Revenue,CAHD,Bed and Breakfast,Bed & Breakfast,Connolly & Callaghan Limited,508.20, 20-Jan-2022
1075,Revenue,CAHD,Bed and Breakfast,Bed & Breakfast,Connolly & Callaghan Limited,422.80, 20-Jan-2022
1076,Revenue,CAHD,Bed and Breakfast,Bed & Breakfast,Connolly & Callaghan Limited,422.80, 20-Jan-2022
1077,Revenue,CAHD,Bed and Breakfast,Bed & Breakfast,Connolly & Callaghan Limited,583.80, 20-Jan-2022
1078,Revenue,CAHD,Bed and Breakfast,Bed & Breakfast,Connolly & Callaghan Limited,422.80, 20-Jan-2022
1079,Revenue,CAHD,Bed and Breakfast,Bed & Breakfast,Connolly & Callaghan Limited,548.80, 20-Jan-2022
1080,Revenue,CAHD,Bed and Breakfast,Bed & Breakfast,Connolly & Callaghan Limited,942.90, 20-Jan-2022
1081,Revenue,CAHD,Bed and Breakfast,Bed & Breakfast,Connolly & Callaghan Limited,548.80, 20-Jan-2022
1082,Revenue,CAHD,Bed and Breakfast,Bed & Breakfast,Connolly & Callaghan Limited,422.80, 20-Jan-2022
1083,Revenue,CAHD,Bed and Breakfast,Bed & Breakfast,Connolly & Callaghan Limited,420.00, 20-Jan-2022
1084,Revenue,CAHD,Bed and Breakfast,Bed & Breakfast,Connolly & Callaghan Limited,422.80, 20-Jan-2022
1085,Revenue,CAHD,Bed and Breakfast,Bed & Breakfast,Connolly & Callaghan Limited,807.10, 20-Jan-2022
1086,Revenue,CAHD,Bed and Breakfast,Bed & Breakfast,Connolly & Callaghan Limited,463.40, 20-Jan-2022
1087,Revenue,CAHD,Bed and Breakfast,Bed & Breakfast,Connolly & Callaghan Limited,548.80, 20-Jan-2022
1088,Revenue,CAHD,Bed and Breakfast,Bed & Breakfast,Connolly & Callaghan Limited,583.80, 20-Jan-2022
1089,Revenue,CAHD,Bed and Breakfast,Bed & Breakfast,Connolly & Callaghan Limited,508.20, 20-Jan-2022
1090,Revenue,CAHD,Bed and Breakfast,Bed & Breakfast,Connolly & Callaghan Limited,422.80, 20-Jan-2022
1091,Revenue,CAHD,Bed and Breakfast,Bed & Breakfast,Connolly & Callaghan Limited,942.90, 31-Jan-2022
1092,Revenue,CAHD,Bed and Breakfast,Bed & Breakfast,Connolly & Callaghan Limited,420.00, 31-Jan-2022
1093,Revenue,CAHD,Bed and Breakfast,Bed & Breakfast,Connolly & Callaghan Limited,807.10, 31-Jan-2022
1094,Revenue,CAHD,Bed and Breakfast,Bed & Breakfast,Connolly & Callaghan Limited,508.20, 31-Jan-2022
1095,Revenue,CAHD,Bed and Breakfast,Bed & Breakfast,Connolly & Callaghan Limited,422.80, 31-Jan-2022
1096,Revenue,CAHD,Bed and Breakfast,Bed & Breakfast,Connolly & Callaghan Limited,583.80, 25-Jan-2022
1097,Revenue,CAHD,Bed and Breakfast,Bed & Breakfast,Connolly & Callaghan Limited,583.80, 31-Jan-2022
1098,Revenue,CAHD,Bed and Breakfast,Bed & Breakfast,Connolly & Callaghan Limited,422.80, 31-Jan-2022
1099,Revenue,CAHD,Bed and Breakfast,Bed & Breakfast,Connolly & Callaghan Limited,548.80, 31-Jan-2022
1100,Revenue,CAHD,Bed and Breakfast,Bed & Breakfast,Connolly & Callaghan Limited,942.90, 31-Jan-2022
1101,Revenue,CAHD,Bed and Breakfast,Bed & Breakfast,Connolly & Callaghan Limited,548.80, 31-Jan-2022
1102,Revenue,CAHD,Bed and Breakfast,Bed & Breakfast,Connolly & Callaghan Limited,420.00, 31-Jan-2022
1103,Revenue,CAHD,Bed and Breakfast,Bed & Breakfast,Connolly & Callaghan Limited,463.40, 31-Jan-2022
1104,Revenue,CAHD,Bed and Breakfast,Bed & Breakfast,Connolly & Callaghan Limited,548.80, 31-Jan-2022
1105,Revenue,CAHD,Bed and Breakfast,Bed & Breakfast,Connolly & Callaghan Limited,583.80, 28-Jan-2022
1106,Revenue,CAHD,Bed and Breakfast,Bed & Breakfast,Connolly & Callaghan Limited,463.40, 31-Jan-2022
1107,Revenue,CAHD,Bed and Breakfast,Bed & Breakfast,Connolly & Callaghan Limited,508.20, 31-Jan-2022
1108,Revenue,CAHD,Bed and Breakfast,Bed & Breakfast,Connolly & Callaghan Limited,422.80, 31-Jan-2022
1109,Revenue,CAHD,"Strategy, Advice and Public Protection",Medical Fees,Cordell Health Ltd,1120.00, 21-Jan-2022
1110,Revenue,CAHD,Independent Special Placements - Pre 16,Other Private Contractors,Cotswold Chine School,71487.00, 28-Jan-2022
1111,Revenue,CAHD,Independent Special Placements - Pre 16,Other Private Contractors,Cotswold Chine School,35939.89, 28-Jan-2022
1112,Revenue,CAHD,Central - Commissioned Services,Permanent Nursing,Cotswold House Care Home,3484.32, 11-Jan-2022
1113,Revenue,CAHD,Alexandra Way,Cleaning & Domestic Services,Countrywide Healthcare Supplies Ltd,987.25, 07-Jan-2022
1114,Revenue,CAHD,North - Community based support,Permanent Residential,Court House Residential C.H.,3400.00, 11-Jan-2022
1115,Revenue,CAHD,North - Community based support,Permanent Residential,Court House Retirement Home,3600.00, 11-Jan-2022
1116,Revenue,CAHD,Early Years Inclusion Fund,Other Public Bodies,Courtney Ladybirds Pre-School,3600.00, 21-Jan-2022
1117,Revenue,CAHD,S28A cases,Permanent Residential,Creedy Court,10597.96, 11-Jan-2022
1118,Revenue,CAHD,S28A cases,Permanent Residential,Creedy Court,8904.92, 11-Jan-2022
1119,Revenue,CAHD,North - Community based support,Permanent Residential,Creedy Court,14054.00, 11-Jan-2022
1120,Revenue,CAHD,CSC - Vinney Green Secure Unit,Operational Equipment,CRT Viewpoint Feedback Ltd,910.03, 26-Jan-2022
1121,Revenue,CAHD,Flexible Homelessness Support Grant,Other Small Contracts,Curo Places Limited,6000.00, 24-Jan-2022
1122,Revenue,CAHD,Central - Commissioned Services,Supported Living,Cygnet Healthcare Limited,3380.00, 11-Jan-2022
1123,Revenue,CAHD,CSC - Vinney Green Secure Unit,R & M by Departments,Dale Power Solutions Ltd,881.00, 25-Jan-2022
1124,Revenue,CAHD,South - Commissioned Services,Permanent Residential,Daneswood,12759.56, 11-Jan-2022
1125,Revenue,CAHD,South - Commissioned Services,Day Care / Social Activities,Daneswood,1474.72, 11-Jan-2022
1126,Revenue,CAHD,North - Community based support,Permanent Residential,Daneswood,13579.68, 11-Jan-2022
1127,Revenue,CAHD,Learning Difficulties PSL,Rent,Individual,2400.00, 21-Jan-2022
1128,Revenue,CAHD,Central - Commissioned Services,Permanent Residential,Debt Recovery,4326.88, 11-Jan-2022
1129,Revenue,CAHD,South - Commissioned Services,Permanent Residential,Debt Recovery,4422.88, 11-Jan-2022
1130,Revenue,CAHD,North - Community based support,Permanent Nursing,Debt Recovery,4642.48, 11-Jan-2022
1131,Revenue,CAHD,North - Community based support,Permanent Nursing,Debt Recovery,3822.52, 11-Jan-2022
1132,Revenue,CAHD,Central - Commissioned Services,Permanent Residential,Debt Recovery,4786.48, 11-Jan-2022
1133,Revenue,CAHD,North - Community based support,Permanent Nursing,Debt Recovery,5723.32, 11-Jan-2022
1134,Revenue,CAHD,North - Community based support,Permanent Nursing,Debt Recovery,3643.52, 11-Jan-2022
1135,Revenue,CAHD,North - Community based support,Permanent Nursing,Debt Recovery,5735.40, 11-Jan-2022
1136,Revenue,CAHD,North - Community based support,Permanent Residential,Debt Recovery,3702.24, 11-Jan-2022
1137,Revenue,CAHD,North - Community based support,Permanent Nursing,Debt Recovery,4187.16, 11-Jan-2022
1138,Revenue,CAHD,South - Commissioned Services,Permanent Nursing,Deerhurst Nursing Home,3970.68, 11-Jan-2022
1139,Revenue,CAHD,South Glos Users in South Glos Homes,Permanent Nursing,Deerhurst Nursing Home,750.40, 11-Jan-2022
1140,Revenue,CAHD,South Glos Users in South Glos Homes,Permanent Nursing,Deerhurst Nursing Home,938.00, 11-Jan-2022
1141,Revenue,CAHD,South - Commissioned Services,Permanent Nursing,Deerhurst Nursing Home,4501.20, 11-Jan-2022
1142,Revenue,CAHD,South Glos Users in South Glos Homes,Permanent Nursing,Deerhurst Nursing Home,750.40, 11-Jan-2022
1143,Revenue,CAHD,South - Commissioned Services,Permanent Nursing,Deerhurst Nursing Home,4762.80, 11-Jan-2022
1144,Revenue,CAHD,South Glos Users in South Glos Homes,Permanent Nursing,Deerhurst Nursing Home,750.40, 11-Jan-2022
1145,Revenue,CAHD,South - Commissioned Services,Day Care / Social Activities,Deerhurst Nursing Home,581.28, 11-Jan-2022
1146,Revenue,CAHD,South - Commissioned Services,Permanent Nursing,Deerhurst Nursing Home,40457.14, 11-Jan-2022
1147,Revenue,CAHD,South - Commissioned Services,Permanent Nursing,Deerhurst Nursing Home,4800.00, 11-Jan-2022
1148,Revenue,CAHD,South - Commissioned Services,Fees & Charges Income - General,Deerhurst Nursing Home,8522.19, 11-Jan-2022
1149,Revenue,CAHD,South Glos Users in South Glos Homes,Permanent Nursing,Deerhurst Nursing Home,750.40, 11-Jan-2022
1150,Revenue,CAHD,South - Commissioned Services,Fees & Charges Income - General,Deerhurst Nursing Home,4312.24, 11-Jan-2022
1151,Revenue,CAHD,South - Commissioned Services,Fees & Charges Income - General,Deerhurst Nursing Home,5109.57, 11-Jan-2022
1152,Revenue,CAHD,South Glos Users in South Glos Homes,Permanent Nursing,Deerhurst Nursing Home,750.40, 11-Jan-2022
1153,Revenue,CAHD,South Glos Users in South Glos Homes,Permanent Nursing,Deerhurst Nursing Home,750.40, 11-Jan-2022
1154,Revenue,CAHD,South - Commissioned Services,Permanent Nursing,Deerhurst Nursing Home,4006.00, 11-Jan-2022
1155,Revenue,CAHD,South Glos Users in South Glos Homes,Permanent Nursing,Deerhurst Nursing Home,750.40, 11-Jan-2022
1156,Revenue,CAHD,North - Community based support,Permanent Nursing,Deerhurst Nursing Home,3891.20, 11-Jan-2022
1157,Revenue,CAHD,South - Commissioned Services,Permanent Nursing,Deerhurst Nursing Home,3965.12, 11-Jan-2022
1158,Revenue,CAHD,South Glos Users in South Glos Homes,Permanent Nursing,Deerhurst Nursing Home,750.40, 11-Jan-2022
1159,Revenue,CAHD,North - Community based support,Permanent Nursing,Deerhurst Nursing Home,4140.00, 11-Jan-2022
1160,Revenue,CAHD,South - Commissioned Services,Permanent Nursing,Deerhurst Nursing Home,4129.40, 11-Jan-2022
1161,Revenue,CAHD,South - Commissioned Services,Permanent Nursing,Deerhurst Nursing Home,4182.12, 11-Jan-2022
1162,Revenue,CAHD,South Glos Users in South Glos Homes,Permanent Nursing,Deerhurst Nursing Home,750.40, 11-Jan-2022
1163,Revenue,CAHD,South Glos Users in South Glos Homes,Permanent Nursing,Deerhurst Nursing Home,750.40, 11-Jan-2022
1164,Revenue,CAHD,South Glos Users in South Glos Homes,Permanent Nursing,Deerhurst Nursing Home,750.40, 11-Jan-2022
1165,Revenue,CAHD,South Glos Users in South Glos Homes,Permanent Nursing,Deerhurst Nursing Home,750.40, 11-Jan-2022
1166,Revenue,CAHD,South - Commissioned Services,Permanent Nursing,Deerhurst Nursing Home,4180.04, 11-Jan-2022
1167,Revenue,CAHD,South Glos Users in South Glos Homes,Permanent Nursing,Deerhurst Nursing Home,750.40, 11-Jan-2022
1168,Revenue,CAHD,South Glos Users in South Glos Homes,Permanent Nursing,Deerhurst Nursing Home,750.40, 11-Jan-2022
1169,Revenue,CAHD,South - Commissioned Services,Permanent Nursing,Deerhurst Nursing Home,4060.32, 11-Jan-2022
1170,Revenue,CAHD,South Glos Users in South Glos Homes,Permanent Nursing,Deerhurst Nursing Home,750.40, 11-Jan-2022
1171,Revenue,CAHD,South Glos Users in South Glos Homes,Permanent Nursing,Deerhurst Nursing Home,750.40, 11-Jan-2022
1172,Revenue,CAHD,South - Commissioned Services,Permanent Nursing,Deerhurst Nursing Home,29094.43, 11-Jan-2022
1173,Revenue,CAHD,South - Commissioned Services,Permanent Nursing,Deerhurst Nursing Home,510.43, 11-Jan-2022
1174,Revenue,CAHD,South Glos Users in South Glos Homes,Permanent Nursing,Deerhurst Nursing Home,750.40, 11-Jan-2022
1175,Revenue,CAHD,South - Commissioned Services,Respite Planned - Nursing,Deerhurst Nursing Home,17719.00, 11-Jan-2022
1176,Revenue,CAHD,South - Commissioned Services,Permanent Nursing,Deerhurst Nursing Home,12475.83, 11-Jan-2022
1177,Revenue,CAHD,South - Commissioned Services,Fees & Charges Income - General,Deerhurst Nursing Home,2522.17, 11-Jan-2022
1178,Revenue,CAHD,South Glos Users in South Glos Homes,Permanent Nursing,Deerhurst Nursing Home,750.40, 11-Jan-2022
1179,Revenue,CAHD,South Glos Users in South Glos Homes,Permanent Nursing,Deerhurst Nursing Home,750.40, 11-Jan-2022
1180,Revenue,CAHD,South Glos Users in South Glos Homes,Permanent Nursing,Deerhurst Nursing Home,750.40, 11-Jan-2022
1181,Revenue,CAHD,South Glos Users in South Glos Homes,Permanent Nursing,Deerhurst Nursing Home,750.40, 11-Jan-2022
1182,Revenue,CAHD,South Glos Users in South Glos Homes,Permanent Nursing,Deerhurst Nursing Home,750.40, 11-Jan-2022
1183,Revenue,CAHD,South Glos Users in South Glos Homes,Permanent Nursing,Deerhurst Nursing Home,750.40, 11-Jan-2022
1184,Revenue,CAHD,South - Commissioned Services,Permanent Nursing,Deerhurst Nursing Home,4006.00, 11-Jan-2022
1185,Revenue,CAHD,South Glos Users in South Glos Homes,Permanent Nursing,Deerhurst Nursing Home,750.40, 11-Jan-2022
1186,Revenue,CAHD,South - Commissioned Services,Permanent Residential,Deerhurst Nursing Home,4129.00, 11-Jan-2022
1187,Revenue,CAHD,South - Commissioned Services,Permanent Nursing,Deerhurst Nursing Home,4760.00, 11-Jan-2022
1188,Revenue,CAHD,South - Commissioned Services,Permanent Nursing,Deerhurst Nursing Home,4760.00, 11-Jan-2022
1189,Revenue,CAHD,South Glos Users in South Glos Homes,Permanent Nursing,Deerhurst Nursing Home,750.40, 11-Jan-2022
1190,Revenue,CAHD,South Glos Users in South Glos Homes,Permanent Nursing,Deerhurst Nursing Home,750.40, 11-Jan-2022
1191,Revenue,CAHD,South Glos Users in South Glos Homes,Permanent Nursing,Deerhurst Nursing Home,750.40, 11-Jan-2022
1192,Revenue,CAHD,South Glos Users in South Glos Homes,Permanent Nursing,Deerhurst Nursing Home,750.40, 11-Jan-2022
1193,Revenue,CAHD,South Glos Users in South Glos Homes,Permanent Nursing,Deerhurst Nursing Home,761.95, 11-Jan-2022
1194,Revenue,CAHD,South Glos Users in South Glos Homes,Permanent Nursing,Deerhurst Nursing Home,750.40, 11-Jan-2022
1195,Revenue,CAHD,South Glos Users in South Glos Homes,Permanent Nursing,Deerhurst Nursing Home,750.40, 11-Jan-2022
1196,Revenue,CAHD,South - Commissioned Services,Permanent Nursing,Deerhurst Nursing Home,4760.00, 11-Jan-2022
1197,Revenue,CAHD,South Glos Users in South Glos Homes,Permanent Nursing,Deerhurst Nursing Home,750.40, 11-Jan-2022
1198,Revenue,CAHD,South Glos Users in South Glos Homes,Permanent Nursing,Deerhurst Nursing Home,750.40, 11-Jan-2022
1199,Revenue,CAHD,South Glos Users in South Glos Homes,Permanent Nursing,Deerhurst Nursing Home,750.40, 11-Jan-2022
1200,Revenue,CAHD,South - Commissioned Services,Permanent Residential,Deerhurst Nursing Home,3891.20, 11-Jan-2022
1201,Revenue,CAHD,South - Commissioned Services,Permanent Nursing,Deerhurst Nursing Home,4762.80, 11-Jan-2022
1202,Revenue,CAHD,South Glos Users in South Glos Homes,Permanent Nursing,Deerhurst Nursing Home,750.40, 11-Jan-2022
1203,Revenue,CAHD,South Glos Users in South Glos Homes,Permanent Nursing,Deerhurst Nursing Home,750.40, 11-Jan-2022
1204,Revenue,CAHD,South Glos Users in South Glos Homes,Permanent Nursing,Deerhurst Nursing Home,750.40, 11-Jan-2022
1205,Revenue,CAHD,Covid  - Workforce capacity,Grants to Voluntary Bodies,Deerhurst Nursing Home,8597.60, 14-Jan-2022
1206,Revenue,CAHD,Covid  - Workforce capacity,Grants to Voluntary Bodies,Deerhurst Nursing Home,17167.62, 28-Jan-2022
1207,Revenue,CAHD,North - Community based support,Permanent Residential,Deerhurst Nursing Home,8699.20, 11-Jan-2022
1208,Revenue,CAHD,South - Commissioned Services,Supported Living,Design House,2776.88, 11-Jan-2022
1209,Revenue,CAHD,South - Commissioned Services,Supported Living,Design House,3196.12, 11-Jan-2022
1210,Revenue,CAHD,South - Commissioned Services,Supported Living,Design House,2651.32, 11-Jan-2022
1211,Revenue,CAHD,18-25 Year Olds,Supported Living,Design House,3083.24, 11-Jan-2022
1212,Revenue,CAHD,18-25 Year Olds,Supported Living,Design House,4094.76, 11-Jan-2022
1213,Revenue,CAHD,Central - Commissioned Services,Day Care / Social Activities,Design House,3060.24, 11-Jan-2022
1214,Revenue,CAHD,18-25 Year Olds,Supported Living,Design House,4094.76, 11-Jan-2022
1215,Revenue,CAHD,18-25 Year Olds,Supported Living,Design House,3107.04, 11-Jan-2022
1216,Revenue,CAHD,South - Commissioned Services,Supported Living,Design House,2753.28, 11-Jan-2022
1217,Revenue,CAHD,South - Commissioned Services,Supported Living,Design House,2753.28, 11-Jan-2022
1218,Revenue,CAHD,South - Commissioned Services,Supported Living,Design House,2242.76, 11-Jan-2022
1219,Revenue,CAHD,South - Commissioned Services,Supported Living,Design House,1978.92, 11-Jan-2022
1220,Revenue,CAHD,South - Commissioned Services,Day Care / Social Activities,Design House,538.88, 11-Jan-2022
1221,Revenue,CAHD,South - Commissioned Services,Supported Living,Design House,2625.96, 11-Jan-2022
1222,Revenue,CAHD,South - Commissioned Services,Supported Living,Design House,4494.32, 11-Jan-2022
1223,Revenue,CAHD,North - Community based support,Supported Living,Design House,3434.00, 11-Jan-2022
1224,Revenue,CAHD,South - Commissioned Services,Supported Living,Design House,3051.76, 11-Jan-2022
1225,Revenue,CAHD,South - Commissioned Services,Supported Living,Design House,2653.28, 11-Jan-2022
1226,Revenue,CAHD,South - Commissioned Services,Supported Living,Design House,2355.60, 11-Jan-2022
1227,Revenue,CAHD,South - Commissioned Services,Supported Living,Design House,2355.60, 11-Jan-2022
1228,Revenue,CAHD,Bed and Breakfast,Bed & Breakfast,Designz Ltd,511.00, 07-Jan-2022
1229,Revenue,CAHD,Bed and Breakfast,Bed & Breakfast,Designz Ltd,511.00, 14-Jan-2022
1230,Revenue,CAHD,Bed and Breakfast,Bed & Breakfast,Designz Ltd,511.00, 31-Jan-2022
1231,Revenue,CAHD,Minor Adaptations Service,Operational Equipment,DFB Sound & Light Warehouse Limited,436.80, 13-Jan-2022
1232,Revenue,CAHD,Central - Commissioned Services,Other Small Contracts,Dhek Bhal,344.24, 10-Jan-2022
1233,Revenue,CAHD,South - Commissioned Services,Other Small Contracts,Dhek Bhal,214.40, 10-Jan-2022
1234,Revenue,CAHD,Central - Commissioned Services,Other Small Contracts,Dhek Bhal,333.52, 10-Jan-2022
1235,Revenue,CAHD,South - Commissioned Services,Other Small Contracts,Dhek Bhal,214.40, 10-Jan-2022
1236,Revenue,CAHD,Central - Commissioned Services,Other Small Contracts,Dhek Bhal,403.20, 24-Jan-2022
1237,Revenue,CAHD,South - Commissioned Services,Other Small Contracts,Dhek Bhal,214.40, 24-Jan-2022
1238,Revenue,CAHD,Central - Commissioned Services,Other Small Contracts,Dhek Bhal,408.56, 31-Jan-2022
1239,Revenue,CAHD,South - Commissioned Services,Other Small Contracts,Dhek Bhal,129.56, 31-Jan-2022
1240,Revenue,CAHD,CSC - Asylum Seekers - Unaccompanied,Personal Needs of Clients,Individual,500.00, 14-Jan-2022
1241,Revenue,CAHD,North - Community based support,Permanent Nursing,Douglas House,3599.80, 11-Jan-2022
1242,Revenue,CAHD,Statemented Support Academies,Other Public Bodies,Downend School,1544.42, 21-Jan-2022
1243,Revenue,CAHD,Statemented Support Academies,Other Public Bodies,Downend School,660.24, 21-Jan-2022
1244,Revenue,CAHD,Statemented Support Academies,Other Public Bodies,Downend School,1025.73, 21-Jan-2022
1245,Revenue,CAHD,Statemented Support Academies,Other Public Bodies,Downend School,1108.26, 21-Jan-2022
1246,Revenue,CAHD,Statemented Support Academies,Other Public Bodies,Downend School,554.13, 21-Jan-2022
1247,Revenue,CAHD,Statemented Support Academies,Other Public Bodies,Downend School,666.00, 21-Jan-2022
1248,Revenue,CAHD,Statemented Support Academies,Other Public Bodies,Downend School,822.83, 21-Jan-2022
1249,Revenue,CAHD,Statemented Support Academies,Other Public Bodies,Downend School,1079.67, 21-Jan-2022
1250,Revenue,CAHD,Statemented Support Academies,Other Public Bodies,Downend School,1438.38, 21-Jan-2022
1251,Revenue,CAHD,Statemented Support Academies,Other Public Bodies,Downend School,1709.55, 21-Jan-2022
1252,Revenue,CAHD,Statemented Support Academies,Other Public Bodies,Downend School,1192.50, 21-Jan-2022
1253,Revenue,CAHD,Statemented Support Academies,Other Public Bodies,Downend School,1544.49, 21-Jan-2022
1254,Revenue,CAHD,Statemented Support Academies,Other Public Bodies,Downend School,966.92, 21-Jan-2022
1255,Revenue,CAHD,Social Lettings Agency,Rent,Individual,822.73, 21-Jan-2022
1256,Revenue,CAHD,Social Lettings Agency,Fees & Charges Income - General,Individual,-65.82, 21-Jan-2022
1257,Revenue,CAHD,CSC - Care Leavers Independent Living,Adults - Family Support,Dynamic Youth Support Services,16714.20, 12-Jan-2022
1258,Revenue,CAHD,CSC - Care Leavers Independent Living,Adults - Family Support,Dynamic Youth Support Services,17271.34, 12-Jan-2022
1259,Revenue,CAHD,CSC - Professional Fees Foster Carers,Fostering Plus Enhanced Fee,Individual,1086.00, 07-Jan-2022
1260,Revenue,CAHD,CSC - Professional Fees Foster Carers,Fostering Plus Enhanced Fee,Individual,1086.00, 14-Jan-2022
1261,Revenue,CAHD,CSC - Professional Fees Foster Carers,Fostering Plus Enhanced Fee,Individual,1086.00, 21-Jan-2022
1262,Revenue,CAHD,CSC - Professional Fees Foster Carers,Band 3 Foster Care,Individual,241.00, 28-Jan-2022
1263,Revenue,CAHD,CSC - Professional Fees Foster Carers,Therapeutic Fostering Fee,Individual,1086.00, 28-Jan-2022
1264,Revenue,CAHD,North - Community based support,Permanent Residential,East Court,2763.56, 11-Jan-2022
1265,Revenue,CAHD,Community Support - Central,Preventative Assistance,Easylink UK,1209.13, 17-Jan-2022
1266,Revenue,CAHD,Community Support - North,Preventative Assistance,Easylink UK,849.25, 17-Jan-2022
1267,Revenue,CAHD,Community Support - South,Preventative Assistance,Easylink UK,579.96, 17-Jan-2022
1268,Revenue,CAHD,CSC - YOT Pooled Budget,Long Service Awards,Edenred (UK Group) Limited,530.00, 28-Jan-2022
1269,Revenue,CAHD,Central - Commissioned Services,Permanent Residential,Edgemont House Ltd,3200.00, 11-Jan-2022
1270,Revenue,CAHD,South - Commissioned Services,Permanent Residential,Edgemont House Ltd,3273.60, 11-Jan-2022
1271,Revenue,CAHD,South - Commissioned Services,Permanent Residential,Edgemont House Ltd,3339.08, 11-Jan-2022
1272,Revenue,CAHD,South - Commissioned Services,Permanent Residential,Edgemont House Ltd,3130.40, 11-Jan-2022
1273,Revenue,CAHD,South - Commissioned Services,Permanent Residential,Edgemont House Ltd,3000.00, 11-Jan-2022
1274,Revenue,CAHD,South - Commissioned Services,Permanent Residential,Edgemont House Ltd,3200.00, 11-Jan-2022
1275,Revenue,CAHD,Covid  - Workforce capacity,Grants to Voluntary Bodies,Edgemont House Ltd,1419.02, 25-Jan-2022
1276,Revenue,CAHD,Covid  - Workforce capacity,Grants to Voluntary Bodies,Edgemont House Ltd,2918.50, 28-Jan-2022
1277,Revenue,CAHD,South - Commissioned Services,Permanent Nursing,Edgemont View Ltd,3580.52, 11-Jan-2022
1278,Revenue,CAHD,South Glos Users in South Glos Homes,Permanent Nursing,Edgemont View Ltd,750.40, 11-Jan-2022
1279,Revenue,CAHD,South - Commissioned Services,Permanent Nursing,Edgemont View Ltd,3478.20, 11-Jan-2022
1280,Revenue,CAHD,South Glos Users in South Glos Homes,Permanent Nursing,Edgemont View Ltd,750.40, 11-Jan-2022
1281,Revenue,CAHD,South Glos Users in South Glos Homes,Permanent Nursing,Edgemont View Ltd,3108.80, 11-Jan-2022
1282,Revenue,CAHD,South - Commissioned Services,Permanent Nursing,Edgemont View Ltd,3547.76, 11-Jan-2022
1283,Revenue,CAHD,South Glos Users in South Glos Homes,Permanent Nursing,Edgemont View Ltd,750.40, 11-Jan-2022
1284,Revenue,CAHD,South Glos Users in South Glos Homes,Permanent Nursing,Edgemont View Ltd,750.40, 11-Jan-2022
1285,Revenue,CAHD,South - Commissioned Services,Permanent Nursing,Edgemont View Ltd,3478.20, 11-Jan-2022
1286,Revenue,CAHD,South Glos Users in South Glos Homes,Permanent Nursing,Edgemont View Ltd,750.40, 11-Jan-2022
1287,Revenue,CAHD,South Glos Users in South Glos Homes,Permanent Nursing,Edgemont View Ltd,750.40, 11-Jan-2022
1288,Revenue,CAHD,South - Commissioned Services,Permanent Nursing,Edgemont View Ltd,3500.00, 11-Jan-2022
1289,Revenue,CAHD,South - Commissioned Services,Permanent Nursing,Edgemont View Ltd,3682.80, 11-Jan-2022
1290,Revenue,CAHD,South Glos Users in South Glos Homes,Permanent Nursing,Edgemont View Ltd,750.40, 11-Jan-2022
1291,Revenue,CAHD,South - Commissioned Services,Permanent Nursing,Edgemont View Ltd,3580.52, 11-Jan-2022
1292,Revenue,CAHD,South Glos Users in South Glos Homes,Permanent Nursing,Edgemont View Ltd,750.40, 11-Jan-2022
1293,Revenue,CAHD,South Glos Users in South Glos Homes,Permanent Nursing,Edgemont View Ltd,750.40, 11-Jan-2022
1294,Revenue,CAHD,South Glos Users in South Glos Homes,Permanent Nursing,Edgemont View Ltd,3082.00, 11-Jan-2022
1295,Revenue,CAHD,South - Commissioned Services,Permanent Nursing,Edgemont View Ltd,3547.76, 11-Jan-2022
1296,Revenue,CAHD,South Glos Users in South Glos Homes,Permanent Nursing,Edgemont View Ltd,750.40, 11-Jan-2022
1297,Revenue,CAHD,South - Commissioned Services,Permanent Nursing,Edgemont View Ltd,3500.00, 11-Jan-2022
1298,Revenue,CAHD,South Glos Users in South Glos Homes,Permanent Nursing,Edgemont View Ltd,750.40, 11-Jan-2022
1299,Revenue,CAHD,South - Commissioned Services,Permanent Nursing,Edgemont View Ltd,3989.72, 11-Jan-2022
1300,Revenue,CAHD,South Glos Users in South Glos Homes,Permanent Nursing,Edgemont View Ltd,750.40, 11-Jan-2022
1301,Revenue,CAHD,South Glos Users in South Glos Homes,Permanent Nursing,Edgemont View Ltd,750.40, 11-Jan-2022
1302,Revenue,CAHD,South Glos Users in South Glos Homes,Permanent Nursing,Edgemont View Ltd,750.40, 11-Jan-2022
1303,Revenue,CAHD,South - Commissioned Services,Permanent Nursing,Edgemont View Ltd,3739.76, 11-Jan-2022
1304,Revenue,CAHD,South Glos Users in South Glos Homes,Permanent Nursing,Edgemont View Ltd,750.40, 11-Jan-2022
1305,Revenue,CAHD,South - Commissioned Services,Respite Planned - Nursing,Edgemont View Ltd,3875.00, 11-Jan-2022
1306,Revenue,CAHD,Covid  - Workforce capacity,Grants to Voluntary Bodies,Edgemont View Ltd,1919.85, 25-Jan-2022
1307,Revenue,CAHD,Covid  - Workforce capacity,Grants to Voluntary Bodies,Edgemont View Ltd,3776.88, 28-Jan-2022
1308,Revenue,CAHD,CSC - Fostering Carer Support,Care Mgt/Asesmnt Staff Pay,Individual,2020.45, 05-Jan-2022
1309,Revenue,CAHD,Psychology Traded,Training Expenses,EdPsychEd,1290.00, 27-Jan-2022
1310,Revenue,CAHD,Planning and Partnerships Procurement,Other Supplies & Services,Eldercare,450.00, 25-Jan-2022
1311,Revenue,CAHD,Planning and Partnerships Procurement,Other Supplies & Services,Eldercare,2494.87, 19-Jan-2022
1312,Revenue,CAHD,Planning and Partnerships Procurement,Other Supplies & Services,Eldercare,2807.00, 19-Jan-2022
1313,Revenue,CAHD,Social Lettings Agency,Rent,Individual,1321.36, 13-Jan-2022
1314,Revenue,CAHD,Social Lettings Agency,Fees & Charges Income - General,Individual,-79.30, 13-Jan-2022
1315,Revenue,CAHD,North - Community based support,Permanent Residential,Ellsworth House,10016.24, 11-Jan-2022
1316,Revenue,CAHD,Placements OLA Special Schools and RB,Other L.A.s - General,Elmfield School for Deaf Children,1268.03, 21-Jan-2022
1317,Revenue,CAHD,Placements OLA Special Schools and RB,Other L.A.s - General,Elmfield School for Deaf Children,792.40, 21-Jan-2022
1318,Revenue,CAHD,Placements OLA Special Schools and RB,Other L.A.s - General,Elmfield School for Deaf Children,1268.03, 21-Jan-2022
1319,Revenue,CAHD,Placements OLA Special Schools and RB,Other L.A.s - General,Elmfield School for Deaf Children,1268.03, 21-Jan-2022
1320,Revenue,CAHD,Placements OLA Special Schools and RB,Other L.A.s - General,Elmfield School for Deaf Children,792.40, 21-Jan-2022
1321,Revenue,CAHD,Placements OLA Special Schools and RB,Other L.A.s - General,Elmfield School for Deaf Children,1268.03, 21-Jan-2022
1322,Revenue,CAHD,Placements OLA Special Schools and RB,Other L.A.s - General,Elmfield School for Deaf Children,1268.03, 21-Jan-2022
1323,Revenue,CAHD,CSC - Age Related Allowances,"Holidays, Outings & Visits",Empire Fighting Chance,100.00, 17-Jan-2022
1324,Revenue,CAHD,CSC - Age Related Allowances,"Holidays, Outings & Visits",Empire Fighting Chance,100.00, 17-Jan-2022
1325,Revenue,CAHD,CSC - Age Related Allowances,"Holidays, Outings & Visits",Empire Fighting Chance,100.00, 17-Jan-2022
1326,Revenue,CAHD,CSC - Therapeutic Foster Care Programm,"Holidays, Outings & Visits",Empire Fighting Chance,100.00, 17-Jan-2022
1327,Revenue,CAHD,CSC - Therapeutic Foster Care Programm,"Holidays, Outings & Visits",Empire Fighting Chance,100.00, 17-Jan-2022
1328,Revenue,CAHD,CSC - Therapeutic Foster Care Programm,"Holidays, Outings & Visits",Empire Fighting Chance,100.00, 17-Jan-2022
1329,Revenue,CAHD,Special ISB,Other Public Bodies,Enable Trust,8493.20, 21-Jan-2022
1330,Revenue,CAHD,Special ISB,Other Public Bodies,Enable Trust,1175.87, 21-Jan-2022
1331,Revenue,CAHD,Special ISB,Other Public Bodies,Enable Trust,1175.87, 21-Jan-2022
1332,Revenue,CAHD,Special ISB,Other Public Bodies,Enable Trust,1540.83, 21-Jan-2022
1333,Revenue,CAHD,Special ISB,Other Public Bodies,Enable Trust,1175.87, 21-Jan-2022
1334,Revenue,CAHD,Special ISB,Other Public Bodies,Enable Trust,892.05, 21-Jan-2022
1335,Revenue,CAHD,Special ISB,Other Public Bodies,Enable Trust,1175.87, 21-Jan-2022
1336,Revenue,CAHD,Special ISB,Other Public Bodies,Enable Trust,1175.87, 21-Jan-2022
1337,Revenue,CAHD,Special ISB,Other Public Bodies,Enable Trust,892.05, 21-Jan-2022
1338,Revenue,CAHD,Special ISB,Other Public Bodies,Enable Trust,1540.83, 21-Jan-2022
1339,Revenue,CAHD,Special ISB,Other Public Bodies,Enable Trust,1175.87, 21-Jan-2022
1340,Revenue,CAHD,Special ISB,Other Public Bodies,Enable Trust,1175.87, 21-Jan-2022
1341,Revenue,CAHD,Special ISB,Other Public Bodies,Enable Trust,1540.83, 21-Jan-2022
1342,Revenue,CAHD,Special ISB,Other Public Bodies,Enable Trust,1540.83, 21-Jan-2022
1343,Revenue,CAHD,Special ISB,Other Public Bodies,Enable Trust,2189.53, 21-Jan-2022
1344,Revenue,CAHD,Special ISB,Other Public Bodies,Enable Trust,1175.87, 21-Jan-2022
1345,Revenue,CAHD,Special ISB,Other Public Bodies,Enable Trust,1175.87, 21-Jan-2022
1346,Revenue,CAHD,Special ISB,Other Public Bodies,Enable Trust,1175.87, 21-Jan-2022
1347,Revenue,CAHD,Special ISB,Other Public Bodies,Enable Trust,1175.87, 21-Jan-2022
1348,Revenue,CAHD,Special ISB,Other Public Bodies,Enable Trust,648.70, 21-Jan-2022
1349,Revenue,CAHD,Special ISB,Other Public Bodies,Enable Trust,892.05, 21-Jan-2022
1350,Revenue,CAHD,Special ISB,Other Public Bodies,Enable Trust,892.05, 21-Jan-2022
1351,Revenue,CAHD,Special ISB,Other Public Bodies,Enable Trust,2189.53, 21-Jan-2022
1352,Revenue,CAHD,Special ISB,Other Public Bodies,Enable Trust,1175.87, 21-Jan-2022
1353,Revenue,CAHD,Special ISB,Other Public Bodies,Enable Trust,1175.87, 21-Jan-2022
1354,Revenue,CAHD,Special ISB,Other Public Bodies,Enable Trust,1175.87, 21-Jan-2022
1355,Revenue,CAHD,Special ISB,Other Public Bodies,Enable Trust,1175.87, 21-Jan-2022
1356,Revenue,CAHD,Special ISB,Other Public Bodies,Enable Trust,1175.87, 21-Jan-2022
1357,Revenue,CAHD,Special ISB,Other Public Bodies,Enable Trust,1175.87, 21-Jan-2022
1358,Revenue,CAHD,Special ISB,Other Public Bodies,Enable Trust,1540.83, 21-Jan-2022
1359,Revenue,CAHD,Special ISB,Other Public Bodies,Enable Trust,1540.83, 21-Jan-2022
1360,Revenue,CAHD,Special ISB,Other Public Bodies,Enable Trust,1175.87, 21-Jan-2022
1361,Revenue,CAHD,Special ISB,Other Public Bodies,Enable Trust,1175.87, 21-Jan-2022
1362,Revenue,CAHD,Special ISB,Other Public Bodies,Enable Trust,2189.53, 21-Jan-2022
1363,Revenue,CAHD,Special ISB,Other Public Bodies,Enable Trust,2189.53, 21-Jan-2022
1364,Revenue,CAHD,Special ISB,Other Public Bodies,Enable Trust,1175.87, 21-Jan-2022
1365,Revenue,CAHD,Special ISB,Other Public Bodies,Enable Trust,1175.87, 21-Jan-2022
1366,Revenue,CAHD,Special ISB,Other Public Bodies,Enable Trust,1175.87, 21-Jan-2022
1367,Revenue,CAHD,Special ISB,Other Public Bodies,Enable Trust,892.05, 21-Jan-2022
1368,Revenue,CAHD,Special ISB,Other Public Bodies,Enable Trust,648.70, 21-Jan-2022
1369,Revenue,CAHD,Special ISB,Other Public Bodies,Enable Trust,2189.53, 21-Jan-2022
1370,Revenue,CAHD,Special ISB,Other Public Bodies,Enable Trust,1540.83, 21-Jan-2022
1371,Revenue,CAHD,Special ISB,Other Public Bodies,Enable Trust,1175.87, 21-Jan-2022
1372,Revenue,CAHD,Special ISB,Other Public Bodies,Enable Trust,892.05, 21-Jan-2022
1373,Revenue,CAHD,Special ISB,Other Public Bodies,Enable Trust,1175.87, 21-Jan-2022
1374,Revenue,CAHD,Special ISB,Other Public Bodies,Enable Trust,1175.87, 21-Jan-2022
1375,Revenue,CAHD,Special ISB,Other Public Bodies,Enable Trust,892.05, 21-Jan-2022
1376,Revenue,CAHD,Special ISB,Other Public Bodies,Enable Trust,2189.53, 21-Jan-2022
1377,Revenue,CAHD,Special ISB,Other Public Bodies,Enable Trust,1175.87, 21-Jan-2022
1378,Revenue,CAHD,Special ISB,Other Public Bodies,Enable Trust,1175.87, 21-Jan-2022
1379,Revenue,CAHD,Special ISB,Other Public Bodies,Enable Trust,892.05, 21-Jan-2022
1380,Revenue,CAHD,Special ISB,Other Public Bodies,Enable Trust,1175.87, 21-Jan-2022
1381,Revenue,CAHD,Special ISB,Other Public Bodies,Enable Trust,892.05, 21-Jan-2022
1382,Revenue,CAHD,Special ISB,Other Public Bodies,Enable Trust,1540.83, 21-Jan-2022
1383,Revenue,CAHD,Special ISB,Other Public Bodies,Enable Trust,1540.83, 21-Jan-2022
1384,Revenue,CAHD,Special ISB,Other Public Bodies,Enable Trust,1702.96, 21-Jan-2022
1385,Revenue,CAHD,Special ISB,Other Public Bodies,Enable Trust,1540.83, 21-Jan-2022
1386,Revenue,CAHD,Special ISB,Other Public Bodies,Enable Trust,892.05, 21-Jan-2022
1387,Revenue,CAHD,Special ISB,Other Public Bodies,Enable Trust,1540.83, 21-Jan-2022
1388,Revenue,CAHD,Special ISB,Other Public Bodies,Enable Trust,1175.87, 21-Jan-2022
1389,Revenue,CAHD,Special ISB,Other Public Bodies,Enable Trust,648.70, 21-Jan-2022
1390,Revenue,CAHD,Special ISB,Other Public Bodies,Enable Trust,1175.87, 21-Jan-2022
1391,Revenue,CAHD,Special ISB,Other Public Bodies,Enable Trust,1175.87, 21-Jan-2022
1392,Revenue,CAHD,Special ISB,Other Public Bodies,Enable Trust,1175.87, 21-Jan-2022
1393,Revenue,CAHD,Special ISB,Other Public Bodies,Enable Trust,892.05, 21-Jan-2022
1394,Revenue,CAHD,Special ISB,Other Public Bodies,Enable Trust,892.05, 21-Jan-2022
1395,Revenue,CAHD,Special ISB,Other Public Bodies,Enable Trust,2513.88, 21-Jan-2022
1396,Revenue,CAHD,Special ISB,Other Public Bodies,Enable Trust,2189.53, 21-Jan-2022
1397,Revenue,CAHD,Special ISB,Other Public Bodies,Enable Trust,648.70, 21-Jan-2022
1398,Revenue,CAHD,Special ISB,Other Public Bodies,Enable Trust,648.70, 21-Jan-2022
1399,Revenue,CAHD,Special ISB,Other Public Bodies,Enable Trust,1540.83, 21-Jan-2022
1400,Revenue,CAHD,Special ISB,Other Public Bodies,Enable Trust,2189.53, 21-Jan-2022
1401,Revenue,CAHD,Special ISB,Other Public Bodies,Enable Trust,1540.83, 21-Jan-2022
1402,Revenue,CAHD,Special ISB,Other Public Bodies,Enable Trust,1175.87, 21-Jan-2022
1403,Revenue,CAHD,Special ISB,Other Public Bodies,Enable Trust,1175.87, 21-Jan-2022
1404,Revenue,CAHD,Special ISB,Other Public Bodies,Enable Trust,2189.53, 21-Jan-2022
1405,Revenue,CAHD,Special ISB,Other Public Bodies,Enable Trust,1175.87, 21-Jan-2022
1406,Revenue,CAHD,Special ISB,Other Public Bodies,Enable Trust,1175.87, 21-Jan-2022
1407,Revenue,CAHD,Special ISB,Other Public Bodies,Enable Trust,1540.83, 21-Jan-2022
1408,Revenue,CAHD,Special ISB,Other Public Bodies,Enable Trust,1175.87, 21-Jan-2022
1409,Revenue,CAHD,Special ISB,Other Public Bodies,Enable Trust,892.05, 21-Jan-2022
1410,Revenue,CAHD,Special ISB,Other Public Bodies,Enable Trust,1175.87, 21-Jan-2022
1411,Revenue,CAHD,Special ISB,Other Public Bodies,Enable Trust,1540.83, 21-Jan-2022
1412,Revenue,CAHD,Special ISB,Other Public Bodies,Enable Trust,5945.24, 21-Jan-2022
1413,Revenue,CAHD,Special ISB,Other Public Bodies,Enable Trust,1175.87, 21-Jan-2022
1414,Revenue,CAHD,Special ISB,Other Public Bodies,Enable Trust,1175.87, 21-Jan-2022
1415,Revenue,CAHD,Special ISB,Other Public Bodies,Enable Trust,1702.96, 21-Jan-2022
1416,Revenue,CAHD,Special ISB,Other Public Bodies,Enable Trust,892.05, 21-Jan-2022
1417,Revenue,CAHD,Special ISB,Other Public Bodies,Enable Trust,892.05, 21-Jan-2022
1418,Revenue,CAHD,Special ISB,Other Public Bodies,Enable Trust,1175.87, 21-Jan-2022
1419,Revenue,CAHD,Special ISB,Other Public Bodies,Enable Trust,1540.83, 21-Jan-2022
1420,Revenue,CAHD,Special ISB,Other Public Bodies,Enable Trust,1175.87, 21-Jan-2022
1421,Revenue,CAHD,Special ISB,Other Public Bodies,Enable Trust,648.70, 21-Jan-2022
1422,Revenue,CAHD,Special ISB,Other Public Bodies,Enable Trust,1175.87, 21-Jan-2022
1423,Revenue,CAHD,Special ISB,Other Public Bodies,Enable Trust,1702.96, 21-Jan-2022
1424,Revenue,CAHD,Special ISB,Other Public Bodies,Enable Trust,1702.96, 21-Jan-2022
1425,Revenue,CAHD,Special ISB,Other Public Bodies,Enable Trust,1702.96, 21-Jan-2022
1426,Revenue,CAHD,Special ISB,Other Public Bodies,Enable Trust,1175.87, 21-Jan-2022
1427,Revenue,CAHD,Special ISB,Other Public Bodies,Enable Trust,1702.96, 21-Jan-2022
1428,Revenue,CAHD,Special ISB,Other Public Bodies,Enable Trust,1702.96, 21-Jan-2022
1429,Revenue,CAHD,Special ISB,Other Public Bodies,Enable Trust,1702.96, 21-Jan-2022
1430,Revenue,CAHD,Special ISB,Other Public Bodies,Enable Trust,1702.96, 21-Jan-2022
1431,Revenue,CAHD,Special ISB,Other Public Bodies,Enable Trust,1175.87, 21-Jan-2022
1432,Revenue,CAHD,Special ISB,Other Public Bodies,Enable Trust,1175.87, 21-Jan-2022
1433,Revenue,CAHD,Special ISB,Other Public Bodies,Enable Trust,1702.96, 21-Jan-2022
1434,Revenue,CAHD,Special ISB,Other Public Bodies,Enable Trust,2189.53, 21-Jan-2022
1435,Revenue,CAHD,Special ISB,Other Public Bodies,Enable Trust,2189.53, 21-Jan-2022
1436,Revenue,CAHD,Special ISB,Other Public Bodies,Enable Trust,2189.53, 21-Jan-2022
1437,Revenue,CAHD,Special ISB,Other Public Bodies,Enable Trust,892.05, 21-Jan-2022
1438,Revenue,CAHD,Special ISB,Other Public Bodies,Enable Trust,1175.87, 21-Jan-2022
1439,Revenue,CAHD,Special ISB,Other Public Bodies,Enable Trust,1175.87, 21-Jan-2022
1440,Revenue,CAHD,Special ISB,Other Public Bodies,Enable Trust,892.05, 21-Jan-2022
1441,Revenue,CAHD,Special ISB,Other Public Bodies,Enable Trust,892.05, 21-Jan-2022
1442,Revenue,CAHD,Special ISB,Other Public Bodies,Enable Trust,1702.96, 21-Jan-2022
1443,Revenue,CAHD,Special ISB,Other Public Bodies,Enable Trust,892.05, 21-Jan-2022
1444,Revenue,CAHD,Special ISB,Other Public Bodies,Enable Trust,892.05, 21-Jan-2022
1445,Revenue,CAHD,Special ISB,Other Public Bodies,Enable Trust,1702.96, 21-Jan-2022
1446,Revenue,CAHD,Special ISB,Other Public Bodies,Enable Trust,1175.87, 21-Jan-2022
1447,Revenue,CAHD,Special ISB,Other Public Bodies,Enable Trust,1702.96, 21-Jan-2022
1448,Revenue,CAHD,Special ISB,Other Public Bodies,Enable Trust,892.05, 21-Jan-2022
1449,Revenue,CAHD,Special ISB,Other Public Bodies,Enable Trust,1175.87, 21-Jan-2022
1450,Revenue,CAHD,Special ISB,Other Public Bodies,Enable Trust,1175.87, 21-Jan-2022
1451,Revenue,CAHD,Special ISB,Other Public Bodies,Enable Trust,892.05, 21-Jan-2022
1452,Revenue,CAHD,Special ISB,Other Public Bodies,Enable Trust,1702.96, 21-Jan-2022
1453,Revenue,CAHD,Special ISB,Other Public Bodies,Enable Trust,2513.88, 21-Jan-2022
1454,Revenue,CAHD,Special ISB,Other Public Bodies,Enable Trust,1702.96, 21-Jan-2022
1455,Revenue,CAHD,Special ISB,Other Public Bodies,Enable Trust,1702.96, 21-Jan-2022
1456,Revenue,CAHD,Special ISB,Other Public Bodies,Enable Trust,892.05, 21-Jan-2022
1457,Revenue,CAHD,Special ISB,Other Public Bodies,Enable Trust,1175.87, 21-Jan-2022
1458,Revenue,CAHD,Special ISB,Other Public Bodies,Enable Trust,1175.87, 21-Jan-2022
1459,Revenue,CAHD,Special ISB,Other Public Bodies,Enable Trust,1175.87, 21-Jan-2022
1460,Revenue,CAHD,Special ISB,Other Public Bodies,Enable Trust,892.05, 21-Jan-2022
1461,Revenue,CAHD,Special ISB,Other Public Bodies,Enable Trust,1702.96, 21-Jan-2022
1462,Revenue,CAHD,Special ISB,Other Public Bodies,Enable Trust,1508.33, 21-Jan-2022
1463,Revenue,CAHD,Special ISB,Other Public Bodies,Enable Trust,1175.87, 21-Jan-2022
1464,Revenue,CAHD,Special ISB,Other Public Bodies,Enable Trust,1702.96, 21-Jan-2022
1465,Revenue,CAHD,Special ISB,Other Public Bodies,Enable Trust,2189.53, 21-Jan-2022
1466,Revenue,CAHD,Special ISB,Other Public Bodies,Enable Trust,1175.87, 21-Jan-2022
1467,Revenue,CAHD,Special ISB,Other Public Bodies,Enable Trust,1313.74, 21-Jan-2022
1468,Revenue,CAHD,Special ISB,Other Public Bodies,Enable Trust,892.05, 21-Jan-2022
1469,Revenue,CAHD,Special ISB,Other Public Bodies,Enable Trust,1175.87, 21-Jan-2022
1470,Revenue,CAHD,Special ISB,Other Public Bodies,Enable Trust,1702.96, 21-Jan-2022
1471,Revenue,CAHD,Special ISB,Other Public Bodies,Enable Trust,648.70, 21-Jan-2022
1472,Revenue,CAHD,Special ISB,Other Public Bodies,Enable Trust,1175.87, 21-Jan-2022
1473,Revenue,CAHD,Special ISB,Other Public Bodies,Enable Trust,1175.87, 21-Jan-2022
1474,Revenue,CAHD,Special ISB,Other Public Bodies,Enable Trust,1175.87, 21-Jan-2022
1475,Revenue,CAHD,Special ISB,Other Public Bodies,Enable Trust,892.05, 21-Jan-2022
1476,Revenue,CAHD,Special ISB,Other Public Bodies,Enable Trust,1540.83, 21-Jan-2022
1477,Revenue,CAHD,Special ISB,Other Public Bodies,Enable Trust,1702.96, 21-Jan-2022
1478,Revenue,CAHD,Special ISB,Other Public Bodies,Enable Trust,1175.87, 21-Jan-2022
1479,Revenue,CAHD,Special ISB,Other Public Bodies,Enable Trust,1702.96, 21-Jan-2022
1480,Revenue,CAHD,Special ISB,Other Public Bodies,Enable Trust,2189.53, 21-Jan-2022
1481,Revenue,CAHD,Special ISB,Other Public Bodies,Enable Trust,1702.96, 21-Jan-2022
1482,Revenue,CAHD,Special ISB,Other Public Bodies,Enable Trust,1702.96, 21-Jan-2022
1483,Revenue,CAHD,Special ISB,Other Public Bodies,Enable Trust,1702.96, 21-Jan-2022
1484,Revenue,CAHD,Special ISB,Other Public Bodies,Enable Trust,1540.83, 21-Jan-2022
1485,Revenue,CAHD,Special ISB,Other Public Bodies,Enable Trust,1702.96, 21-Jan-2022
1486,Revenue,CAHD,Special ISB,Other Public Bodies,Enable Trust,1175.87, 21-Jan-2022
1487,Revenue,CAHD,Special ISB,Other Public Bodies,Enable Trust,2189.53, 21-Jan-2022
1488,Revenue,CAHD,Special ISB,Other Public Bodies,Enable Trust,1175.87, 21-Jan-2022
1489,Revenue,CAHD,Special ISB,Other Public Bodies,Enable Trust,892.05, 21-Jan-2022
1490,Revenue,CAHD,Special ISB,Other Public Bodies,Enable Trust,2189.53, 21-Jan-2022
1491,Revenue,CAHD,Special ISB,Other Public Bodies,Enable Trust,892.05, 21-Jan-2022
1492,Revenue,CAHD,Special ISB,Other Public Bodies,Enable Trust,1175.87, 21-Jan-2022
1493,Revenue,CAHD,Special ISB,Other Public Bodies,Enable Trust,1702.96, 21-Jan-2022
1494,Revenue,CAHD,Special ISB,Other Public Bodies,Enable Trust,1702.96, 21-Jan-2022
1495,Revenue,CAHD,Special ISB,Other Public Bodies,Enable Trust,1175.87, 21-Jan-2022
1496,Revenue,CAHD,Special ISB,Other Public Bodies,Enable Trust,2513.88, 21-Jan-2022
1497,Revenue,CAHD,Special ISB,Other Public Bodies,Enable Trust,1702.96, 21-Jan-2022
1498,Revenue,CAHD,Special ISB,Other Public Bodies,Enable Trust,1175.87, 21-Jan-2022
1499,Revenue,CAHD,Special ISB,Other Public Bodies,Enable Trust,1702.96, 21-Jan-2022
1500,Revenue,CAHD,Special ISB,Other Public Bodies,Enable Trust,892.05, 21-Jan-2022
1501,Revenue,CAHD,Special ISB,Other Public Bodies,Enable Trust,1702.96, 21-Jan-2022
1502,Revenue,CAHD,Special ISB,Other Public Bodies,Enable Trust,2513.88, 21-Jan-2022
1503,Revenue,CAHD,Special ISB,Other Public Bodies,Enable Trust,1702.96, 21-Jan-2022
1504,Revenue,CAHD,Special ISB,Other Public Bodies,Enable Trust,1702.96, 21-Jan-2022
1505,Revenue,CAHD,Special ISB,Other Public Bodies,Enable Trust,644.83, 21-Jan-2022
1506,Revenue,CAHD,Special ISB,Other Public Bodies,Enable Trust,1175.87, 21-Jan-2022
1507,Revenue,CAHD,Special ISB,Other Public Bodies,Enable Trust,892.05, 21-Jan-2022
1508,Revenue,CAHD,Special ISB,Other Public Bodies,Enable Trust,2189.53, 21-Jan-2022
1509,Revenue,CAHD,Special ISB,Other Public Bodies,Enable Trust,1702.96, 21-Jan-2022
1510,Revenue,CAHD,Special ISB,Other Public Bodies,Enable Trust,1175.87, 21-Jan-2022
1511,Revenue,CAHD,Special ISB,Other Public Bodies,Enable Trust,1024.15, 21-Jan-2022
1512,Revenue,CAHD,CSC - Agency Fostering,Foster Parent Allowances,Enhanced Foster Care Limited,4839.10, 27-Jan-2022
1513,Revenue,CAHD,CSC - Agency Fostering,Foster Parent Allowances,Enhanced Foster Care Limited,4839.10, 27-Jan-2022
1514,Revenue,CAHD,South - Commissioned Services,Other Small Contracts,Epiphany In Care,4806.24, 07-Jan-2022
1515,Revenue,CAHD,South - Commissioned Services,Other Small Contracts,Epiphany In Care,4322.64, 13-Jan-2022
1516,Revenue,CAHD,South - Commissioned Services,Other Small Contracts,Epiphany In Care,1795.76, 13-Jan-2022
1517,Revenue,CAHD,South - Commissioned Services,Other Small Contracts,Epiphany In Care,3786.96, 20-Jan-2022
1518,Revenue,CAHD,North - Community based support,Other Small Contracts,Epiphany In Care,11074.56, 25-Jan-2022
1519,Revenue,CAHD,Covid 19- Spend on behalf of NHS,Respite Planned - Residential,Epworth House,8496.00, 11-Jan-2022
1520,Revenue,CAHD,Central - Commissioned Services,Permanent Residential,Epworth House,3400.00, 11-Jan-2022
1521,Revenue,CAHD,North - S117,Permanent Residential,Evolve House,3490.20, 11-Jan-2022
1522,Revenue,CAHD,Placements OLA Special Schools and RB,Other L.A.s - General,Excalibur Academies Trust T/A,2238.78, 21-Jan-2022
1523,Revenue,CAHD,Covid  - Workforce capacity,Grants to Voluntary Bodies,Excel Living Limited,2086.80, 27-Jan-2022
1524,Revenue,CAHD,Covid  - Workforce capacity,Grants to Voluntary Bodies,Excel Living Limited,4291.91, 28-Jan-2022
1525,Revenue,CAHD,CSC - Residential Placements,Permanent Residential,Exceptional Care Limited,38750.00, 11-Jan-2022
1526,Revenue,CAHD,Direct Payments -Central costs,Software Support & Maintenance,Experian Limited,1220.00, 24-Jan-2022
1527,Revenue,CAHD,Social Lettings Agency,Prop.Serv. General Repairs,Express Property Services Limited,39.00, 17-Jan-2022
1528,Revenue,CAHD,Social Lettings Agency,Prop.Serv. General Repairs,Express Property Services Limited,71.50, 17-Jan-2022
1529,Revenue,CAHD,Social Lettings Agency,Prop.Serv. General Repairs,Express Property Services Limited,60.00, 17-Jan-2022
1530,Revenue,CAHD,Social Lettings Agency,Prop.Serv. General Repairs,Express Property Services Limited,60.00, 17-Jan-2022
1531,Revenue,CAHD,Social Lettings Agency,Prop.Serv. General Repairs,Express Property Services Limited,264.00, 17-Jan-2022
1532,Revenue,CAHD,Social Lettings Agency,Prop.Serv. General Repairs,Express Property Services Limited,78.00, 17-Jan-2022
1533,Revenue,CAHD,Social Lettings Agency,Prop.Serv. General Repairs,Express Property Services Limited,95.00, 17-Jan-2022
1534,Revenue,CAHD,Social Lettings Agency,Prop.Serv. General Repairs,Express Property Services Limited,610.00, 17-Jan-2022
1535,Revenue,CAHD,Social Lettings Agency,Prop.Serv. General Repairs,Express Property Services Limited,48.00, 17-Jan-2022
1536,Revenue,CAHD,Social Lettings Agency,Prop.Serv. General Repairs,Express Property Services Limited,84.36, 17-Jan-2022
1537,Revenue,CAHD,Social Lettings Agency,Prop.Serv. General Repairs,Express Property Services Limited,71.50, 17-Jan-2022
1538,Revenue,CAHD,Learning Difficulties PSL,Prop.Serv. General Repairs,Express Property Services Limited,81.56, 17-Jan-2022
1539,Revenue,CAHD,Homeless - Private Sector Leasing,Prop.Serv. General Repairs,Express Property Services Limited,48.00, 17-Jan-2022
1540,Revenue,CAHD,Homeless - Private Sector Leasing,Prop.Serv. General Repairs,Express Property Services Limited,485.00, 17-Jan-2022
1541,Revenue,CAHD,Extra Care Housing,Private & Voluntary Home Care,Extra Care Charitable Trust,28138.25, 12-Jan-2022
1542,Revenue,CAHD,North - Community based support,Permanent Residential,Eyre Court,5430.00, 11-Jan-2022
1543,Revenue,CAHD,Covid  - Workforce capacity,Grants to Voluntary Bodies,Eyre Court,2337.21, 14-Jan-2022
1544,Revenue,CAHD,Covid  - Workforce capacity,Grants to Voluntary Bodies,Eyre Court,3776.88, 28-Jan-2022
1545,Revenue,CAHD,South - Commissioned Services,Permanent Nursing,Fairview Court,3976.16, 11-Jan-2022
1546,Revenue,CAHD,South Glos Users in South Glos Homes,Permanent Nursing,Fairview Court,750.40, 11-Jan-2022
1547,Revenue,CAHD,South Glos Users in South Glos Homes,Permanent Nursing,Fairview Court,750.40, 11-Jan-2022
1548,Revenue,CAHD,South Glos Users in South Glos Homes,Permanent Nursing,Fairview Court,750.40, 11-Jan-2022
1549,Revenue,CAHD,South Glos Users in South Glos Homes,Permanent Nursing,Fairview Court,750.40, 11-Jan-2022
1550,Revenue,CAHD,South Glos Users in South Glos Homes,Permanent Nursing,Fairview Court,750.40, 11-Jan-2022
1551,Revenue,CAHD,Central - Commissioned Services,Permanent Nursing,Fairview Court,4800.00, 11-Jan-2022
1552,Revenue,CAHD,South Glos Users in South Glos Homes,Permanent Nursing,Fairview Court,750.40, 11-Jan-2022
1553,Revenue,CAHD,South - Commissioned Services,Permanent Nursing,Fairview Court,5545.60, 11-Jan-2022
1554,Revenue,CAHD,South Glos Users in South Glos Homes,Permanent Nursing,Fairview Court,750.40, 11-Jan-2022
1555,Revenue,CAHD,South - S117,Permanent Nursing,Fairview Court,4355.24, 11-Jan-2022
1556,Revenue,CAHD,South Glos Users in South Glos Homes,Permanent Nursing,Fairview Court,750.40, 11-Jan-2022
1557,Revenue,CAHD,North - Community based support,Permanent Nursing,Fairview Court,4800.00, 11-Jan-2022
1558,Revenue,CAHD,South - Commissioned Services,Permanent Nursing,Fairview Court,4078.24, 11-Jan-2022
1559,Revenue,CAHD,South Glos Users in South Glos Homes,Permanent Nursing,Fairview Court,750.40, 11-Jan-2022
1560,Revenue,CAHD,South Glos Users in South Glos Homes,Permanent Nursing,Fairview Court,750.40, 11-Jan-2022
1561,Revenue,CAHD,South Glos Users in South Glos Homes,Permanent Nursing,Fairview Court,750.40, 11-Jan-2022
1562,Revenue,CAHD,South Glos Users in South Glos Homes,Permanent Nursing,Fairview Court,750.40, 11-Jan-2022
1563,Revenue,CAHD,South Glos Users in South Glos Homes,Permanent Nursing,Fairview Court,750.40, 11-Jan-2022
1564,Revenue,CAHD,South - Commissioned Services,Permanent Nursing,Fairview Court,4800.00, 11-Jan-2022
1565,Revenue,CAHD,South Glos Users in South Glos Homes,Permanent Nursing,Fairview Court,750.40, 11-Jan-2022
1566,Revenue,CAHD,South Glos Users in South Glos Homes,Permanent Nursing,Fairview Court,750.40, 11-Jan-2022
1567,Revenue,CAHD,South Glos Users in South Glos Homes,Permanent Nursing,Fairview Court,2599.60, 11-Jan-2022
1568,Revenue,CAHD,South Glos Users in South Glos Homes,Permanent Nursing,Fairview Court,750.40, 11-Jan-2022
1569,Revenue,CAHD,South Glos Users in South Glos Homes,Permanent Nursing,Fairview Court,750.40, 11-Jan-2022
1570,Revenue,CAHD,South Glos Users in South Glos Homes,Permanent Nursing,Fairview Court,750.40, 11-Jan-2022
1571,Revenue,CAHD,South - Commissioned Services,Permanent Nursing,Fairview Court,4910.40, 11-Jan-2022
1572,Revenue,CAHD,South Glos Users in South Glos Homes,Permanent Nursing,Fairview Court,750.40, 11-Jan-2022
1573,Revenue,CAHD,South Glos Users in South Glos Homes,Permanent Nursing,Fairview Court,750.40, 11-Jan-2022
1574,Revenue,CAHD,South - Commissioned Services,Permanent Nursing,Fairview Court,3887.40, 11-Jan-2022
1575,Revenue,CAHD,South Glos Users in South Glos Homes,Permanent Nursing,Fairview Court,750.40, 11-Jan-2022
1576,Revenue,CAHD,North - Community based support,Permanent Residential,Fairview Court,3397.84, 11-Jan-2022
1577,Revenue,CAHD,South - Commissioned Services,Permanent Nursing,Fairview Court,4232.92, 11-Jan-2022
1578,Revenue,CAHD,South Glos Users in South Glos Homes,Permanent Nursing,Fairview Court,750.40, 11-Jan-2022
1579,Revenue,CAHD,South - Commissioned Services,Permanent Nursing,Fairview Court,6342.86, 11-Jan-2022
1580,Revenue,CAHD,South - Commissioned Services,Permanent Nursing,Fairview Court,4800.00, 11-Jan-2022
1581,Revenue,CAHD,South Glos Users in South Glos Homes,Permanent Nursing,Fairview Court,750.40, 11-Jan-2022
1582,Revenue,CAHD,South - Commissioned Services,Permanent Nursing,Fairview Court,16800.00, 11-Jan-2022
1583,Revenue,CAHD,South - Commissioned Services,Permanent Nursing,Fairview Court,4800.00, 11-Jan-2022
1584,Revenue,CAHD,South Glos Users in South Glos Homes,Permanent Nursing,Fairview Court,750.40, 11-Jan-2022
1585,Revenue,CAHD,South - Commissioned Services,Fees & Charges Income - General,Fairview Court,2091.04, 11-Jan-2022
1586,Revenue,CAHD,South Glos Users in South Glos Homes,Permanent Nursing,Fairview Court,750.40, 11-Jan-2022
1587,Revenue,CAHD,South Glos Users in South Glos Homes,Permanent Nursing,Fairview Court,750.40, 11-Jan-2022
1588,Revenue,CAHD,South - Commissioned Services,Permanent Nursing,Fairview Court,5237.76, 11-Jan-2022
1589,Revenue,CAHD,South Glos Users in South Glos Homes,Permanent Nursing,Fairview Court,750.40, 11-Jan-2022
1590,Revenue,CAHD,South Glos Users in South Glos Homes,Permanent Nursing,Fairview Court,750.40, 11-Jan-2022
1591,Revenue,CAHD,South - Commissioned Services,Permanent Residential,Fairview Court,3733.79, 11-Jan-2022
1592,Revenue,CAHD,South - Commissioned Services,Fees & Charges Income - General,Fairview Court,3733.79, 11-Jan-2022
1593,Revenue,CAHD,South Glos Users in South Glos Homes,Permanent Nursing,Fairview Court,2331.60, 11-Jan-2022
1594,Revenue,CAHD,South Glos Users in South Glos Homes,Permanent Nursing,Fairview Court,750.40, 11-Jan-2022
1595,Revenue,CAHD,South - Commissioned Services,Permanent Residential,Fairview Court,811.69, 11-Jan-2022
1596,Revenue,CAHD,South Glos Users in South Glos Homes,Permanent Nursing,Fairview Court,750.40, 11-Jan-2022
1597,Revenue,CAHD,South Glos Users in South Glos Homes,Permanent Nursing,Fairview Court,750.40, 11-Jan-2022
1598,Revenue,CAHD,South - Commissioned Services,Permanent Nursing,Fairview Court,3701.96, 11-Jan-2022
1599,Revenue,CAHD,South Glos Users in South Glos Homes,Permanent Nursing,Fairview Court,750.40, 11-Jan-2022
1600,Revenue,CAHD,South - Commissioned Services,Permanent Nursing,Fairview Court,4232.92, 11-Jan-2022
1601,Revenue,CAHD,South Glos Users in South Glos Homes,Permanent Nursing,Fairview Court,750.40, 11-Jan-2022
1602,Revenue,CAHD,Covid  - Workforce capacity,Grants to Voluntary Bodies,Fairview Court,11673.98, 28-Jan-2022
1603,Revenue,CAHD,South - Commissioned Services,Permanent Residential,Fairview House,3800.00, 11-Jan-2022
1604,Revenue,CAHD,South - Commissioned Services,Respite Planned - Residential,Fairview House,5835.71, 11-Jan-2022
1605,Revenue,CAHD,South - Commissioned Services,Permanent Residential,Fairview House,2403.64, 11-Jan-2022
1606,Revenue,CAHD,Central - Commissioned Services,Respite Emergency - Residential,Fairview House,5700.00, 11-Jan-2022
1607,Revenue,CAHD,Central - Commissioned Services,Permanent Residential,Fairview House,3400.00, 11-Jan-2022
1608,Revenue,CAHD,South - Commissioned Services,Permanent Residential,Fairview House,3478.20, 11-Jan-2022
1609,Revenue,CAHD,North - Community based support,Fees & Charges Income - General,Fairview House,813.14, 11-Jan-2022
1610,Revenue,CAHD,South - Commissioned Services,Permanent Residential,Fairview House,3600.00, 11-Jan-2022
1611,Revenue,CAHD,South - Commissioned Services,Permanent Residential,Fairview House,7464.29, 11-Jan-2022
1612,Revenue,CAHD,South - Commissioned Services,Permanent Residential,Fairview House,3800.00, 11-Jan-2022
1613,Revenue,CAHD,South - Commissioned Services,Permanent Residential,Fairview House,3800.00, 11-Jan-2022
1614,Revenue,CAHD,Central - Commissioned Services,Permanent Residential,Fairview House,3800.00, 11-Jan-2022
1615,Revenue,CAHD,South - Commissioned Services,Permanent Residential,Fairview House,3800.00, 11-Jan-2022
1616,Revenue,CAHD,South - Commissioned Services,Permanent Residential,Fairview House,3528.57, 11-Jan-2022
1617,Revenue,CAHD,Covid  - Workforce capacity,Grants to Voluntary Bodies,Fairview House,2403.47, 28-Jan-2022
1618,Revenue,CAHD,North - Community based support,Permanent Residential,Faith House,3263.72, 11-Jan-2022
1619,Revenue,CAHD,North - Community based support,Permanent Residential,Faith House,3200.00, 11-Jan-2022
1620,Revenue,CAHD,South - Commissioned Services,Respite Planned - Residential,Faith House,2514.29, 11-Jan-2022
1621,Revenue,CAHD,South - Commissioned Services,Respite Planned - Residential,Faith House,2285.71, 11-Jan-2022
1622,Revenue,CAHD,North - Community based support,Permanent Residential,Faith House,3414.00, 11-Jan-2022
1623,Revenue,CAHD,South - Commissioned Services,Permanent Residential,Faith House,3965.36, 11-Jan-2022
1624,Revenue,CAHD,Covid  - Workforce capacity,Grants to Voluntary Bodies,Faith House,2231.79, 28-Jan-2022
1625,Revenue,CAHD,CSC - Purchase/Sale of Placements,Other Third Party Costs,Families for Children Trust,52128.00, 05-Jan-2022
1626,Revenue,CAHD,CSC - Agency Fostering,Foster Parent Allowances,Family Placement com,3004.40, 27-Jan-2022
1627,Revenue,CAHD,CSC - Agency Fostering,Foster Parent Allowances,Family Placement com,3004.40, 28-Jan-2022
1628,Revenue,CAHD,Rapid Response Service,Other Supplies & Services,Felgains Ltd,576.00, 12-Jan-2022
1629,Revenue,CAHD,Central - Commissioned Services,Permanent Nursing,Field House Care Home,3840.00, 11-Jan-2022
1630,Revenue,CAHD,North - Community based support,Permanent Nursing,Field House Care Home,3589.48, 11-Jan-2022
1631,Revenue,CAHD,Central - Commissioned Services,Permanent Nursing,Field House Care Home,3760.00, 11-Jan-2022
1632,Revenue,CAHD,North - Community based support,Permanent Nursing,Field House Care Home,2320.12, 11-Jan-2022
1633,Revenue,CAHD,Central - Commissioned Services,Permanent Nursing,Field House Care Home,3740.00, 11-Jan-2022
1634,Revenue,CAHD,South Glos Users in South Glos Homes,Permanent Nursing,Field House Care Home,3778.80, 11-Jan-2022
1635,Revenue,CAHD,South Glos Users in South Glos Homes,Permanent Nursing,Field House Care Home,750.40, 11-Jan-2022
1636,Revenue,CAHD,North - Community based support,Permanent Nursing,Field House Care Home,2320.12, 11-Jan-2022
1637,Revenue,CAHD,Statemented Support Payments to OLAs,Other L.A.s - General,Filton Avenue Primary School,1131.84, 21-Jan-2022
1638,Revenue,CAHD,Statemented Support Payments to OLAs,Other L.A.s - General,Filton Avenue Primary School,1332.27, 21-Jan-2022
1639,Revenue,CAHD,South - Commissioned Services,Permanent Nursing,First Floor  Lingfield House,3846.48, 11-Jan-2022
1640,Revenue,CAHD,South Glos Users in South Glos Homes,Permanent Nursing,First Floor  Lingfield House,750.40, 11-Jan-2022
1641,Revenue,CAHD,South - Commissioned Services,Permanent Nursing,First Floor  Lingfield House,3480.00, 11-Jan-2022
1642,Revenue,CAHD,South - Commissioned Services,Respite Planned - Residential,First Floor  Lingfield House,1740.00, 11-Jan-2022
1643,Revenue,CAHD,South - Commissioned Services,Permanent Residential,First Floor  Lingfield House,3560.00, 11-Jan-2022
1644,Revenue,CAHD,South - Commissioned Services,Permanent Nursing,First Floor  Lingfield House,3760.00, 11-Jan-2022
1645,Revenue,CAHD,North - Community based support,Permanent Nursing,First Floor  Lingfield House,3760.00, 11-Jan-2022
1646,Revenue,CAHD,South - Commissioned Services,Permanent Nursing,First Floor  Lingfield House,2613.12, 11-Jan-2022
1647,Revenue,CAHD,South Glos Users in South Glos Homes,Permanent Nursing,First Floor  Lingfield House,750.40, 11-Jan-2022
1648,Revenue,CAHD,South - Commissioned Services,Permanent Residential,First Floor  Lingfield House,9857.14, 11-Jan-2022
1649,Revenue,CAHD,South - Commissioned Services,Permanent Residential,First Floor  Lingfield House,4000.00, 11-Jan-2022
1650,Revenue,CAHD,South - Commissioned Services,Fees & Charges Income - General,First Floor  Lingfield House,1969.99, 11-Jan-2022
1651,Revenue,CAHD,South - Commissioned Services,Permanent Nursing,First Floor  Lingfield House,3760.00, 11-Jan-2022
1652,Revenue,CAHD,South Glos Users in South Glos Homes,Permanent Nursing,First Floor  Lingfield House,750.40, 11-Jan-2022
1653,Revenue,CAHD,South Glos Users in South Glos Homes,Permanent Nursing,First Floor  Lingfield House,750.40, 11-Jan-2022
1654,Revenue,CAHD,South Glos Users in South Glos Homes,Permanent Nursing,First Floor  Lingfield House,3564.40, 11-Jan-2022
1655,Revenue,CAHD,South Glos Users in South Glos Homes,Permanent Nursing,First Floor  Lingfield House,750.40, 11-Jan-2022
1656,Revenue,CAHD,South Glos Users in South Glos Homes,Permanent Nursing,First Floor  Lingfield House,750.40, 11-Jan-2022
1657,Revenue,CAHD,South Glos Users in South Glos Homes,Permanent Nursing,First Floor  Lingfield House,750.40, 11-Jan-2022
1658,Revenue,CAHD,South - Commissioned Services,Permanent Nursing,First Floor  Lingfield House,3480.00, 11-Jan-2022
1659,Revenue,CAHD,Central - Commissioned Services,Respite Planned - Residential,First Floor  Lingfield House,3178.57, 11-Jan-2022
1660,Revenue,CAHD,Central - Commissioned Services,Respite Planned - Residential,First Floor  Lingfield House,2924.29, 11-Jan-2022
1661,Revenue,CAHD,South - Commissioned Services,Permanent Residential,First Floor  Lingfield House,3360.00, 11-Jan-2022
1662,Revenue,CAHD,South - Commissioned Services,Permanent Nursing,First Floor  Lingfield House,3760.00, 11-Jan-2022
1663,Revenue,CAHD,Covid  - Workforce capacity,Grants to Voluntary Bodies,First Floor  Lingfield House,3004.99, 14-Jan-2022
1664,Revenue,CAHD,Covid  - Workforce capacity,Grants to Voluntary Bodies,First Floor  Lingfield House,5321.96, 28-Jan-2022
1665,Revenue,CAHD,North - Community based support,Permanent Residential,First Floor  Q4  The Square,9099.40, 11-Jan-2022
1666,Revenue,CAHD,Jointly Funded H&SC Packages,Permanent Residential,First Floor  Q4  The Square,5728.52, 11-Jan-2022
1667,Revenue,CAHD,North - Community based support,Permanent Residential,First Floor  Q4  The Square,9030.88, 11-Jan-2022
1668,Revenue,CAHD,Jointly Funded H&SC Packages,Permanent Residential,First Floor  Q4  The Square,2639.56, 11-Jan-2022
1669,Revenue,CAHD,Early Years Inclusion Fund,Other Public Bodies,First Friends (Mangotsfield),2000.00, 21-Jan-2022
1670,Revenue,CAHD,Early Years Inclusion Fund,Other Public Bodies,First Step Pre-School Ltd,900.00, 13-Jan-2022
1671,Revenue,CAHD,Early Years Inclusion Fund,Other Public Bodies,First Step Pre-School Ltd,900.00, 13-Jan-2022
1672,Revenue,CAHD,CSC - Agency Fostering,Foster Parent Allowances,Five Rivers Child Care Limited,3483.34, 27-Jan-2022
1673,Revenue,CAHD,CSC - Agency Fostering,Foster Parent Allowances,Five Rivers Child Care Limited,3483.34, 27-Jan-2022
1674,Revenue,CAHD,CSC - Agency Fostering,Foster Parent Allowances,Five Rivers Child Care Limited,3627.00, 31-Jan-2022
1675,Revenue,CAHD,CSC - Residential Placements,Permanent Residential,Five Rivers Child Care Limited,30202.86, 24-Jan-2022
1676,Revenue,CAHD,CSC - Agency Fostering,Foster Parent Allowances,Foster Care Associates Limited,3562.50, 27-Jan-2022
1677,Revenue,CAHD,CSC - Agency Fostering,Foster Parent Allowances,Foster Care Associates Limited,2434.12, 07-Jan-2022
1678,Revenue,CAHD,CSC - Asylum Seekers - Unaccompanied,Foster Parent Allowances,Foster Care Associates Limited,2588.81, 07-Jan-2022
1679,Revenue,CAHD,CSC - Agency Fostering,Foster Parent Allowances,Foster Care Associates Limited,3681.25, 07-Jan-2022
1680,Revenue,CAHD,CSC - Agency Fostering,Foster Parent Allowances,Foster Care Associates Limited,3681.25, 27-Jan-2022
1681,Revenue,CAHD,Central - Commissioned Services,Other Small Contracts,Fourways Care Limited,1076.78, 04-Jan-2022
1682,Revenue,CAHD,South - Commissioned Services,Other Small Contracts,Fourways Care Limited,594.82, 04-Jan-2022
1683,Revenue,CAHD,North - Community based support,Other Small Contracts,Fourways Care Limited,7772.55, 04-Jan-2022
1684,Revenue,CAHD,Central - Commissioned Services,Other Small Contracts,Fourways Care Limited,1005.15, 04-Jan-2022
1685,Revenue,CAHD,South - Commissioned Services,Other Small Contracts,Fourways Care Limited,584.64, 04-Jan-2022
1686,Revenue,CAHD,North - Community based support,Other Small Contracts,Fourways Care Limited,7444.06, 04-Jan-2022
1687,Revenue,CAHD,Central - Commissioned Services,Other Small Contracts,Fourways Care Limited,959.34, 12-Jan-2022
1688,Revenue,CAHD,South - Commissioned Services,Other Small Contracts,Fourways Care Limited,506.10, 12-Jan-2022
1689,Revenue,CAHD,North - Community based support,Other Small Contracts,Fourways Care Limited,6230.28, 12-Jan-2022
1690,Revenue,CAHD,Central - Commissioned Services,Other Small Contracts,Fourways Care Limited,702.42, 21-Jan-2022
1691,Revenue,CAHD,South - Commissioned Services,Other Small Contracts,Fourways Care Limited,495.92, 21-Jan-2022
1692,Revenue,CAHD,North - Community based support,Other Small Contracts,Fourways Care Limited,6668.93, 21-Jan-2022
1693,Revenue,CAHD,Central - Commissioned Services,Other Small Contracts,Fourways Care Limited,866.24, 24-Jan-2022
1694,Revenue,CAHD,South - Commissioned Services,Other Small Contracts,Fourways Care Limited,526.46, 24-Jan-2022
1695,Revenue,CAHD,North - Community based support,Other Small Contracts,Fourways Care Limited,6623.12, 24-Jan-2022
1696,Revenue,CAHD,Central - Commissioned Services,Other Small Contracts,Fourways Care Limited,1030.60, 24-Jan-2022
1697,Revenue,CAHD,South - Commissioned Services,Other Small Contracts,Fourways Care Limited,594.82, 24-Jan-2022
1698,Revenue,CAHD,North - Community based support,Other Small Contracts,Fourways Care Limited,6690.20, 24-Jan-2022
1699,Revenue,CAHD,North - Community based support,Other Small Contracts,Freeways Trust Limited,2489.92, 28-Jan-2022
1700,Revenue,CAHD,Central - Commissioned Services,Permanent Residential,Freeways Trust Ltd,4059.28, 11-Jan-2022
1701,Revenue,CAHD,Central - Commissioned Services,Fees & Charges Income - General,Freeways Trust Ltd,1044.26, 11-Jan-2022
1702,Revenue,CAHD,Central - Commissioned Services,Permanent Residential,Freeways Trust Ltd,4564.92, 11-Jan-2022
1703,Revenue,CAHD,Central - Commissioned Services,Permanent Residential,Freeways Trust Ltd,5270.84, 11-Jan-2022
1704,Revenue,CAHD,North - Community based support,Permanent Residential,Freeways Trust Ltd,4101.56, 11-Jan-2022
1705,Revenue,CAHD,Central - Commissioned Services,Permanent Residential,Freeways Trust Ltd,4379.80, 11-Jan-2022
1706,Revenue,CAHD,South - Commissioned Services,Permanent Residential,Freeways Trust Ltd,4533.88, 11-Jan-2022
1707,Revenue,CAHD,Central - Commissioned Services,Permanent Residential,Freeways Trust Ltd,4098.72, 11-Jan-2022
1708,Revenue,CAHD,Central - Commissioned Services,Permanent Residential,Freeways Trust Ltd,4098.72, 11-Jan-2022
1709,Revenue,CAHD,North - Community based support,Permanent Residential,Freeways Trust Ltd,4101.56, 11-Jan-2022
1710,Revenue,CAHD,Central - Commissioned Services,Permanent Residential,Freeways Trust Ltd,6129.72, 11-Jan-2022
1711,Revenue,CAHD,Covid  - Workforce capacity,Grants to Voluntary Bodies,Freeways Trust Ltd,1168.61, 14-Jan-2022
1712,Revenue,CAHD,Covid  - Workforce capacity,Grants to Voluntary Bodies,Freeways Trust Ltd,2403.47, 28-Jan-2022
1713,Revenue,CAHD,Younger MH non-res purchasing,Supported Living,Freeways Trust Ltd,916.80, 11-Jan-2022
1714,Revenue,CAHD,South - Commissioned Services,Supported Living,Freeways Trust Ltd,1971.68, 11-Jan-2022
1715,Revenue,CAHD,North - Community based support,Supported Living,Freeways Trust Ltd,1971.68, 11-Jan-2022
1716,Revenue,CAHD,Central - Commissioned Services,Permanent Residential,Freeways Trust Ltd,3600.00, 11-Jan-2022
1717,Revenue,CAHD,S28A cases,Permanent Residential,Freeways Trust Ltd,6237.68, 11-Jan-2022
1718,Revenue,CAHD,North - Community based support,Permanent Residential,Freeways Trust Ltd,3935.80, 11-Jan-2022
1719,Revenue,CAHD,North - Community based support,Permanent Residential,Freeways Trust Ltd,3452.28, 11-Jan-2022
1720,Revenue,CAHD,North - Community based support,Permanent Residential,Freeways Trust Ltd,3905.88, 11-Jan-2022
1721,Revenue,CAHD,North - Community based support,Permanent Residential,Freeways Trust Ltd,3849.08, 11-Jan-2022
1722,Revenue,CAHD,Section 117 Placements MH Younger,Permanent Residential,Freeways Trust Ltd,3492.00, 11-Jan-2022
1723,Revenue,CAHD,Central - Commissioned Services,Day Care / Social Activities,Frenchay Beckspool Building,1255.20, 11-Jan-2022
1724,Revenue,CAHD,South - Commissioned Services,Day Care / Social Activities,Frenchay Beckspool Building,941.60, 11-Jan-2022
1725,Revenue,CAHD,North - Community based support,Permanent Nursing,Frenchay Park Nursing Home,3400.00, 11-Jan-2022
1726,Revenue,CAHD,North - Community based support,Permanent Nursing,Frenchay Park Nursing Home,3700.00, 11-Jan-2022
1727,Revenue,CAHD,CSC - Agency Fostering,Foster Parent Allowances,Fusion Fostering Ltd,3519.61, 31-Jan-2022
1728,Revenue,CAHD,CSC - Asylum Seekers - Unaccompanied,Foster Parent Allowances,Fusion Fostering Ltd,2635.00, 31-Jan-2022
1729,Revenue,CAHD,CSC - Agency Fostering,Foster Parent Allowances,Fusion Fostering Ltd,4209.05, 31-Jan-2022
1730,Revenue,CAHD,CSC - Professional Fees Foster Carers,Children - Family Support,Individual,504.00, 21-Jan-2022
1731,Revenue,CAHD,CSC - Professional Fees Foster Carers,Children - Family Support,Individual,504.00, 28-Jan-2022
1732,Revenue,CAHD,CSC - Professional Fees Foster Carers,Respite Care,Individual,648.00, 21-Jan-2022
1733,Revenue,CAHD,CSC - Age Related Allowances,Children - Family Support,Individual,779.14, 21-Jan-2022
1734,Revenue,CAHD,Travel to School (HTST) - Primary,Client Transport,Individual,576.00, 04-Jan-2022
1735,Revenue,CAHD,North - Community based support,Supported Living,Gladstone House,3312.12, 11-Jan-2022
1736,Revenue,CAHD,18-25 Year Olds,Supported Living,Gladstone House,3312.12, 11-Jan-2022
1737,Revenue,CAHD,South - Commissioned Services,Permanent Residential,Gladstone House,5999.84, 11-Jan-2022
1738,Revenue,CAHD,MH Purchasing - Younger,Permanent Residential,Gladstone House,3135.90, 11-Jan-2022
1739,Revenue,CAHD,Jointly Funded H&SC Packages,Permanent Residential,Gladstone House,783.98, 11-Jan-2022
1740,Revenue,CAHD,North - Community based support,Permanent Residential,Glan Y Felin,7075.52, 11-Jan-2022
1741,Revenue,CAHD,South - Commissioned Services,Permanent Residential,Glasallt Fawr,5635.08, 11-Jan-2022
1742,Revenue,CAHD,North - Community based support,Permanent Nursing,Glebe House Nursing Home,3823.40, 11-Jan-2022
1743,Revenue,CAHD,South Glos Users in South Glos Homes,Permanent Nursing,Glebe House Nursing Home,750.40, 11-Jan-2022
1744,Revenue,CAHD,North - Community based support,Permanent Nursing,Glebe House Nursing Home,4145.80, 11-Jan-2022
1745,Revenue,CAHD,South Glos Users in South Glos Homes,Permanent Nursing,Glebe House Nursing Home,750.40, 11-Jan-2022
1746,Revenue,CAHD,North - Community based support,Permanent Residential,Glebe House Nursing Home,4120.00, 11-Jan-2022
1747,Revenue,CAHD,North - Community based support,Permanent Nursing,Glebe House Nursing Home,4090.36, 11-Jan-2022
1748,Revenue,CAHD,South Glos Users in South Glos Homes,Permanent Nursing,Glebe House Nursing Home,750.40, 11-Jan-2022
1749,Revenue,CAHD,South Glos Users in South Glos Homes,Permanent Nursing,Glebe House Nursing Home,750.40, 11-Jan-2022
1750,Revenue,CAHD,South Glos Users in South Glos Homes,Permanent Nursing,Glebe House Nursing Home,750.40, 11-Jan-2022
1751,Revenue,CAHD,North - Community based support,Permanent Nursing,Glebe House Nursing Home,4141.72, 11-Jan-2022
1752,Revenue,CAHD,South Glos Users in South Glos Homes,Permanent Nursing,Glebe House Nursing Home,750.40, 11-Jan-2022
1753,Revenue,CAHD,Central - Commissioned Services,Permanent Residential,Glebe House Nursing Home,4071.56, 11-Jan-2022
1754,Revenue,CAHD,South Glos Users in South Glos Homes,Permanent Nursing,Glebe House Nursing Home,750.40, 11-Jan-2022
1755,Revenue,CAHD,Central - Commissioned Services,Permanent Nursing,Glebe House Nursing Home,4120.00, 11-Jan-2022
1756,Revenue,CAHD,North - Community based support,Permanent Nursing,Glebe House Nursing Home,4173.84, 11-Jan-2022
1757,Revenue,CAHD,South Glos Users in South Glos Homes,Permanent Nursing,Glebe House Nursing Home,750.40, 11-Jan-2022
1758,Revenue,CAHD,South Glos Users in South Glos Homes,Permanent Nursing,Glebe House Nursing Home,750.40, 11-Jan-2022
1759,Revenue,CAHD,North - Community based support,Permanent Nursing,Glebe House Nursing Home,4132.28, 11-Jan-2022
1760,Revenue,CAHD,South Glos Users in South Glos Homes,Permanent Nursing,Glebe House Nursing Home,750.40, 11-Jan-2022
1761,Revenue,CAHD,North - Community based support,Permanent Nursing,Glebe House Nursing Home,4173.84, 11-Jan-2022
1762,Revenue,CAHD,South Glos Users in South Glos Homes,Permanent Nursing,Glebe House Nursing Home,750.40, 11-Jan-2022
1763,Revenue,CAHD,North - Community based support,Permanent Residential,Glebe House Nursing Home,5167.40, 11-Jan-2022
1764,Revenue,CAHD,South Glos Users in South Glos Homes,Permanent Nursing,Glebe House Nursing Home,750.40, 11-Jan-2022
1765,Revenue,CAHD,South Glos Users in South Glos Homes,Permanent Nursing,Glebe House Nursing Home,750.40, 11-Jan-2022
1766,Revenue,CAHD,South Glos Users in South Glos Homes,Permanent Nursing,Glebe House Nursing Home,750.40, 11-Jan-2022
1767,Revenue,CAHD,South Glos Users in South Glos Homes,Permanent Nursing,Glebe House Nursing Home,750.40, 11-Jan-2022
1768,Revenue,CAHD,South Glos Users in South Glos Homes,Permanent Nursing,Glebe House Nursing Home,750.40, 11-Jan-2022
1769,Revenue,CAHD,South Glos Users in South Glos Homes,Permanent Nursing,Glebe House Nursing Home,750.40, 11-Jan-2022
1770,Revenue,CAHD,South Glos Users in South Glos Homes,Permanent Nursing,Glebe House Nursing Home,750.40, 11-Jan-2022
1771,Revenue,CAHD,South Glos Users in South Glos Homes,Permanent Nursing,Glebe House Nursing Home,750.40, 11-Jan-2022
1772,Revenue,CAHD,South Glos Users in South Glos Homes,Permanent Nursing,Glebe House Nursing Home,750.40, 11-Jan-2022
1773,Revenue,CAHD,Covid  - Workforce capacity,Grants to Voluntary Bodies,Glebe House Nursing Home,4507.48, 10-Jan-2022
1774,Revenue,CAHD,Covid  - Workforce capacity,Grants to Voluntary Bodies,Glebe House Nursing Home,8927.16, 28-Jan-2022
1775,Revenue,CAHD,Central - Commissioned Services,Permanent Residential,Glenthorne Court,3949.40, 11-Jan-2022
1776,Revenue,CAHD,Central - Commissioned Services,Permanent Nursing,Glenview Care Home,3224.00, 11-Jan-2022
1777,Revenue,CAHD,South - Commissioned Services,Permanent Nursing,Glenview Care Home,3220.00, 11-Jan-2022
1778,Revenue,CAHD,North - Community based support,Permanent Nursing,Glenview Care Home,3200.00, 11-Jan-2022
1779,Revenue,CAHD,Central - Commissioned Services,Permanent Nursing,Goatacre Manor Care Centre,4400.00, 11-Jan-2022
1780,Revenue,CAHD,South - Commissioned Services,Permanent Residential,Gordena Care Home,2855.04, 11-Jan-2022
1781,Revenue,CAHD,South - Commissioned Services,Permanent Residential,Gordena Care Home,4064.72, 11-Jan-2022
1782,Revenue,CAHD,Covid  - Workforce capacity,Grants to Voluntary Bodies,Gordena Care Home,667.78, 10-Jan-2022
1783,Revenue,CAHD,Covid  - Workforce capacity,Grants to Voluntary Bodies,Gordena Care Home,1201.73, 28-Jan-2022
1784,Revenue,CAHD,South - Commissioned Services,Supported Living,Granville House,1985.24, 11-Jan-2022
1785,Revenue,CAHD,18-25 Year Olds,Supported Living,Granville House,1985.24, 11-Jan-2022
1786,Revenue,CAHD,18-25 Year Olds,Supported Living,Granville House,1985.24, 11-Jan-2022
1787,Revenue,CAHD,South - Commissioned Services,Supported Living,Granville House,1985.84, 11-Jan-2022
1788,Revenue,CAHD,South - Commissioned Services,Supported Living,Granville House,1984.96, 11-Jan-2022
1789,Revenue,CAHD,North - S117,Permanent Nursing,Grasmere Rest Home,3800.00, 11-Jan-2022
1790,Revenue,CAHD,CSC - Residential Placements,Permanent Residential,Greenfields Adolecent Development Limited,21921.34, 31-Jan-2022
1791,Revenue,CAHD,Statemented Support Academies,Other Public Bodies,Greenshaw Learning Trust T/A Woodlands Primary,554.13, 21-Jan-2022
1792,Revenue,CAHD,Statemented Support Academies,Other Public Bodies,Greenshaw Learning Trust T/A Woodlands Primary,1072.89, 21-Jan-2022
1793,Revenue,CAHD,Statemented Support Academies,Other Public Bodies,Greenshaw Learning Trust T/A Woodlands Primary,577.71, 21-Jan-2022
1794,Revenue,CAHD,Statemented Support Academies,Other Public Bodies,Greenshaw Learning Trust T/A Woodlands Primary,778.14, 21-Jan-2022
1795,Revenue,CAHD,Statemented Support Academies,Other Public Bodies,Greenshaw Learning Trust T/A Woodlands Primary,860.67, 21-Jan-2022
1796,Revenue,CAHD,Academy Resource Base Funding,Other Public Bodies,Greenshaw Learning Trust T/A Woodlands Primary,849.32, 21-Jan-2022
1797,Revenue,CAHD,Academy Resource Base Funding,Other Public Bodies,Greenshaw Learning Trust T/A Woodlands Primary,1175.87, 21-Jan-2022
1798,Revenue,CAHD,Academy Resource Base Funding,Other Public Bodies,Greenshaw Learning Trust T/A Woodlands Primary,648.70, 21-Jan-2022
1799,Revenue,CAHD,Academy Resource Base Funding,Other Public Bodies,Greenshaw Learning Trust T/A Woodlands Primary,1540.83, 21-Jan-2022
1800,Revenue,CAHD,Statemented Support Academies,Other Public Bodies,Greenshaw Learning Trust T/A Yate Academy,1173.08, 21-Jan-2022
1801,Revenue,CAHD,Statemented Support Academies,Other Public Bodies,Greenshaw Learning Trust T/A Yate Academy,526.83, 21-Jan-2022
1802,Revenue,CAHD,Statemented Support Academies,Other Public Bodies,Greenshaw Learning Trust T/A Yate Academy,589.50, 21-Jan-2022
1803,Revenue,CAHD,Statemented Support Academies,Other Public Bodies,Greenshaw Learning Trust T/A Yate Academy,1111.00, 21-Jan-2022
1804,Revenue,CAHD,Statemented Support Academies,Other Public Bodies,Greenshaw Learning Trust T/A Yate Academy,707.40, 21-Jan-2022
1805,Revenue,CAHD,Statemented Support Academies,Other Public Bodies,Greenshaw Learning Trust T/A Yate Academy,1320.48, 21-Jan-2022
1806,Revenue,CAHD,Statemented Support Academies,Other Public Bodies,Greenshaw Learning Trust T/A Yate Academy,1209.92, 21-Jan-2022
1807,Revenue,CAHD,Statemented Support Academies,Other Public Bodies,Greenshaw Learning Trust T/A Yate Academy,1072.89, 21-Jan-2022
1808,Revenue,CAHD,Statemented Support Academies,Other Public Bodies,Greenshaw Learning Trust T/A Yate Academy,809.75, 21-Jan-2022
1809,Revenue,CAHD,Statemented Support Academies,Other Public Bodies,Greenshaw Learning Trust T/A Yate Academy,801.72, 21-Jan-2022
1810,Revenue,CAHD,Statemented Support Academies,Other Public Bodies,Greenshaw Learning Trust T/A Yate Academy,831.93, 21-Jan-2022
1811,Revenue,CAHD,Statemented Support Academies,Other Public Bodies,Greenshaw Learning Trust T/A Yate Academy,541.58, 21-Jan-2022
1812,Revenue,CAHD,Statemented Support Academies,Other Public Bodies,Greenshaw Learning Trust T/A Yate Academy,601.29, 21-Jan-2022
1813,Revenue,CAHD,Statemented Support Academies,Other Public Bodies,Greenshaw Learning Trust T/A Yate Academy,673.50, 21-Jan-2022
1814,Revenue,CAHD,Statemented Support Academies,Other Public Bodies,Greenshaw Learning Trust T/A Yate Academy,624.87, 21-Jan-2022
1815,Revenue,CAHD,Statemented Support Academies,Other Public Bodies,Greenshaw Learning Trust T/A Yate Academy,624.87, 21-Jan-2022
1816,Revenue,CAHD,Academy Resource Base Funding,Other Public Bodies,Greenshaw Learning Trust T/A Yate Academy,849.32, 21-Jan-2022
1817,Revenue,CAHD,Academy Resource Base Funding,Other Public Bodies,Greenshaw Learning Trust T/A Yate Academy,1540.83, 21-Jan-2022
1818,Revenue,CAHD,Academy Resource Base Funding,Other Public Bodies,Greenshaw Learning Trust T/A Yate Academy,1540.83, 21-Jan-2022
1819,Revenue,CAHD,Academy Resource Base Funding,Other Public Bodies,Greenshaw Learning Trust T/A Yate Academy,1013.74, 21-Jan-2022
1820,Revenue,CAHD,Academy Resource Base Funding,Other Public Bodies,Greenshaw Learning Trust T/A Yate Academy,1540.83, 21-Jan-2022
